Transaction Date,Local Authority Department,BENEFICIARY,Purpose,Amount,Non Recoverable,Merchant Category
01-06-2022,Adults & Health,Uniting Friends,Daycare - Private Contractors Payment,140,0,VENDOR
01-06-2022,Adults & Health,Uniting Friends,Daycare - Private Contractors Payment,140,0,VENDOR
01-06-2022,Adults & Health,Vibrance,Daycare - Private Contractors Payment,874.2,0,VOLUNTARY ORGANISATION
01-06-2022,Adults & Health,Vibrance,Daycare - Private Contractors Payment,874.2,0,VOLUNTARY ORGANISATION
01-06-2022,Adults & Health,Vibrance,Daycare - Private Contractors Payment,874.2,0,VOLUNTARY ORGANISATION
01-06-2022,Adults & Health,Vibrance,Daycare - Private Contractors Payment,749.16,0,VOLUNTARY ORGANISATION
01-06-2022,"People, Policy and Performance",Personal Information - Redacted,Events,980,0,COMMERCIAL SUPPLIER
01-06-2022,Adults & Health,Medstar Domiciliary Care Services Ltd,Daycare - Private Contractors Payment,929.2,0,COMMERCIAL SUPPLIER
01-06-2022,"People, Policy and Performance",Personal Information - Redacted,Events,1620,0,COMMERCIAL SUPPLIER
01-06-2022,"People, Policy and Performance",Personal Information - Redacted,Events,1485,0,COMMERCIAL SUPPLIER
01-06-2022,Adults & Health,Loyal Care Consortium Ltd,Home Care - Private Contractors Payment,409.2,0,NON COMMERCIAL SUPPLIER
01-06-2022,Adults & Health,Loyal Care Consortium Ltd,Home Care - Private Contractors Payment,651,0,NON COMMERCIAL SUPPLIER
01-06-2022,Adults & Health,Loyal Care Consortium Ltd,Home Care - Private Contractors Payment,-353.4,0,NON COMMERCIAL SUPPLIER
01-06-2022,Adults & Health,Loyal Care Consortium Ltd,Home Care - Private Contractors Payment,651,0,NON COMMERCIAL SUPPLIER
01-06-2022,Children and Young People,Acclaimed Care,Private Contractors Payment - Other,1440,0,CARERS
01-06-2022,Children and Young People,Gordon Care Services Limited,Client Transport,1360,0,COMMERCIAL SUPPLIER
01-06-2022,Children and Young People,Gordon Care Services Limited,Client Transport,1360,0,COMMERCIAL SUPPLIER
01-06-2022,Children and Young People,Gordon Care Services Limited,Client Transport,840,0,COMMERCIAL SUPPLIER
01-06-2022,Children and Young People,Gordon Care Services Limited,Client Transport,1360,0,COMMERCIAL SUPPLIER
01-06-2022,Children and Young People,Gordon Care Services Limited,Client Transport,1360,0,COMMERCIAL SUPPLIER
01-06-2022,Children and Young People,Gordon Care Services Limited,Client Transport,1760,0,COMMERCIAL SUPPLIER
01-06-2022,Children and Young People,Gordon Care Services Limited,Client Transport,1360,0,COMMERCIAL SUPPLIER
01-06-2022,Children and Young People,Gordon Care Services Limited,Client Transport,1360,0,COMMERCIAL SUPPLIER
01-06-2022,Children and Young People,Gordon Care Services Limited,Client Transport,840,0,COMMERCIAL SUPPLIER
01-06-2022,Children and Young People,Gordon Care Services Limited,Client Transport,1360,0,COMMERCIAL SUPPLIER
01-06-2022,Children and Young People,Gordon Care Services Limited,Client Transport,4160,0,COMMERCIAL SUPPLIER
01-06-2022,Inclusive Economy & Housing,Trowers & Hamlins LLP,Legal Fees,1750,0,LEGAL SERVICES
01-06-2022,Adults & Health,Supply Chain Coordination Ltd (SCCL),Salaries,1585.58,0,NHS BODIES
01-06-2022,Adults & Health,Valuing  Care Limited,Consultancy Fees,8315,0,COMMERCIAL SUPPLIER
01-06-2022,Housing Revenue Account,Daisy Corporate Services Trading Ltd,Land Line Telephone Costs,2529.8,0,COMMERCIAL SUPPLIER
01-06-2022,oneSource,BIP Solutions Ltd,Staff Development And Training,15465,0,COMMERCIAL SUPPLIER
01-06-2022,RMS,A M Forktrucks Ltd,Vehicle Hire,810.33,0,COMMERCIAL SUPPLIER
01-06-2022,RMS,A M Forktrucks Ltd,Vehicle Hire,433.33,0,COMMERCIAL SUPPLIER
01-06-2022,Adults & Health,Futures for Shared Lives Ltd,Adult Placement Scheme - Private Contractors Payment,536.27,0,NON COMMERCIAL SUPPLIER
01-06-2022,Adults & Health,Futures for Shared Lives Ltd,Adult Placement Scheme - Private Contractors Payment,536.27,0,NON COMMERCIAL SUPPLIER
01-06-2022,Adults & Health,Futures for Shared Lives Ltd,Adult Placement Scheme - Private Contractors Payment,766.1,0,NON COMMERCIAL SUPPLIER
01-06-2022,Adults & Health,Futures for Shared Lives Ltd,Adult Placement Scheme - Private Contractors Payment,536.27,0,NON COMMERCIAL SUPPLIER
01-06-2022,Environment and Sustainable Transport,O'Hara Bros Surfacing Ltd,"Maintenance - Equipment, Furniture And Materials",441.85,0,CIS
01-06-2022,Environment and Sustainable Transport,O'Hara Bros Surfacing Ltd,"Maintenance - Equipment, Furniture And Materials",2291.74,0,CIS
01-06-2022,Environment and Sustainable Transport,O'Hara Bros Surfacing Ltd,"Maintenance - Equipment, Furniture And Materials",5673.54,0,CIS
01-06-2022,Environment and Sustainable Transport,Tyndall Ltd,"Purchase - Equipment, Furniture And Materials",711.5,0,COMMERCIAL SUPPLIER
01-06-2022,Environment and Sustainable Transport,Tyndall Ltd,"Purchase - Equipment, Furniture And Materials",1334.01,0,COMMERCIAL SUPPLIER
01-06-2022,Environment and Sustainable Transport,L & F Plant Hire Co Ltd T/A Ti,"Purchase - Equipment, Furniture And Materials",600,0,VENDOR
01-06-2022,Environment and Sustainable Transport,L & F Plant Hire Co Ltd T/A Ti,"Purchase - Equipment, Furniture And Materials",600,0,VENDOR
01-06-2022,Environment and Sustainable Transport,L & F Plant Hire Co Ltd T/A Ti,"Purchase - Equipment, Furniture And Materials",638,0,VENDOR
01-06-2022,Environment and Sustainable Transport,L & F Plant Hire Co Ltd T/A Ti,"Purchase - Equipment, Furniture And Materials",638,0,VENDOR
01-06-2022,Environment and Sustainable Transport,L & F Plant Hire Co Ltd T/A Ti,"Purchase - Equipment, Furniture And Materials",1210,0,VENDOR
01-06-2022,Environment and Sustainable Transport,L & F Plant Hire Co Ltd T/A Ti,"Purchase - Equipment, Furniture And Materials",1210,0,VENDOR
01-06-2022,Environment and Sustainable Transport,L & F Plant Hire Co Ltd T/A Ti,"Purchase - Equipment, Furniture And Materials",1100,0,VENDOR
01-06-2022,Environment and Sustainable Transport,L & F Plant Hire Co Ltd T/A Ti,"Purchase - Equipment, Furniture And Materials",726,0,VENDOR
01-06-2022,Environment and Sustainable Transport,L & F Plant Hire Co Ltd T/A Ti,"Purchase - Equipment, Furniture And Materials",726,0,VENDOR
01-06-2022,Environment and Sustainable Transport,L & F Plant Hire Co Ltd T/A Ti,"Purchase - Equipment, Furniture And Materials",726,0,VENDOR
01-06-2022,Environment and Sustainable Transport,L & F Plant Hire Co Ltd T/A Ti,"Purchase - Equipment, Furniture And Materials",726,0,VENDOR
01-06-2022,Environment and Sustainable Transport,L & F Plant Hire Co Ltd T/A Ti,"Purchase - Equipment, Furniture And Materials",726,0,VENDOR
01-06-2022,Environment and Sustainable Transport,L & F Plant Hire Co Ltd T/A Ti,"Purchase - Equipment, Furniture And Materials",726,0,VENDOR
01-06-2022,Environment and Sustainable Transport,L & F Plant Hire Co Ltd T/A Ti,"Purchase - Equipment, Furniture And Materials",726,0,VENDOR
01-06-2022,Environment and Sustainable Transport,L & F Plant Hire Co Ltd T/A Ti,"Purchase - Equipment, Furniture And Materials",726,0,VENDOR
01-06-2022,Environment and Sustainable Transport,L & F Plant Hire Co Ltd T/A Ti,"Purchase - Equipment, Furniture And Materials",726,0,VENDOR
01-06-2022,Environment and Sustainable Transport,L & F Plant Hire Co Ltd T/A Ti,"Purchase - Equipment, Furniture And Materials",638,0,VENDOR
01-06-2022,Environment and Sustainable Transport,L & F Plant Hire Co Ltd T/A Ti,"Purchase - Equipment, Furniture And Materials",638,0,VENDOR
01-06-2022,Environment and Sustainable Transport,L & F Plant Hire Co Ltd T/A Ti,"Purchase - Equipment, Furniture And Materials",1100,0,VENDOR
01-06-2022,Environment and Sustainable Transport,L & F Plant Hire Co Ltd T/A Ti,"Purchase - Equipment, Furniture And Materials",792,0,VENDOR
01-06-2022,Environment and Sustainable Transport,L & F Plant Hire Co Ltd T/A Ti,"Purchase - Equipment, Furniture And Materials",1320,0,VENDOR
01-06-2022,Adults & Health,Headway East London,Payments To Voluntary Sector,113.4,0,COMMERCIAL SUPPLIER
01-06-2022,Adults & Health,Headway East London,Payments To Voluntary Sector,113.4,0,COMMERCIAL SUPPLIER
01-06-2022,Adults & Health,Headway East London,Payments To Voluntary Sector,113.4,0,COMMERCIAL SUPPLIER
01-06-2022,Adults & Health,Headway East London,Payments To Voluntary Sector,-4.2,0,COMMERCIAL SUPPLIER
01-06-2022,oneSource,24X Ltd,Ict Licences,4000,0,COMMERCIAL SUPPLIER
01-06-2022,Dedicated Schools Budget,Personal Information - Redacted,Professional Services - General,23124.42,0,VENDOR
01-06-2022,Children and Young People,Lextox,Legal Fees,350,0,COMMERCIAL SUPPLIER
01-06-2022,oneSource,Bdi Securities,Security Services (Excluding Premises),1275.75,0,COMMERCIAL SUPPLIER
01-06-2022,oneSource,Bdi Securities,Security Services (Excluding Premises),405,0,COMMERCIAL SUPPLIER
01-06-2022,oneSource,Hound Envelopes Ltd,Printing,887.5,0,COMMERCIAL SUPPLIER
01-06-2022,oneSource,Hound Envelopes Ltd,Printing,5796,0,COMMERCIAL SUPPLIER
01-06-2022,oneSource - Non Shared,Frontline Security Solutions,Security Services (Excluding Premises),2356.41,0,VENDOR
01-06-2022,oneSource - Non Shared,Frontline Security Solutions,Security Services (Excluding Premises),2356.41,0,VENDOR
01-06-2022,oneSource - Non Shared,Frontline Security Solutions,Security Services (Excluding Premises),2356.41,0,VENDOR
01-06-2022,oneSource - Non Shared,Frontline Security Solutions,Security Services (Excluding Premises),2356.41,0,VENDOR
01-06-2022,Environment and Sustainable Transport,Frontline Security Solutions,Security Services (Excluding Premises),2356.41,0,VENDOR
01-06-2022,Children and Young People,Resources for Autism,Professional Services - General,138614,0,COMMERCIAL SUPPLIER
01-06-2022,Housing Revenue Account,John Rowan & Partners,Facilities Management,6162.65,0,NON COMMERCIAL SUPPLIER
01-06-2022,oneSource - Non Shared,ABCA SYSTEMS LTD,Facilities Management,682.96,0,COMMERCIAL SUPPLIER
01-06-2022,Brighter Futures Director,ABCA SYSTEMS LTD,Facilities Management,635.4,0,COMMERCIAL SUPPLIER
01-06-2022,oneSource - Non Shared,ABCA SYSTEMS LTD,Facilities Management,902.17,0,COMMERCIAL SUPPLIER
01-06-2022,Adults & Health,Turnwright Ltd,"Purchase - Equipment, Furniture And Materials",221.85,0,COMMERCIAL SUPPLIER
01-06-2022,Adults & Health,Turnwright Ltd,"Purchase - Equipment, Furniture And Materials",221.85,0,COMMERCIAL SUPPLIER
01-06-2022,Adults & Health,Turnwright Ltd,"Purchase - Equipment, Furniture And Materials",323.33,0,COMMERCIAL SUPPLIER
01-06-2022,Adults & Health,Turnwright Ltd,"Purchase - Equipment, Furniture And Materials",444.5,0,COMMERCIAL SUPPLIER
01-06-2022,Adults & Health,Turnwright Ltd,"Purchase - Equipment, Furniture And Materials",8603.5,0,COMMERCIAL SUPPLIER
01-06-2022,Resources,Arthur J Gallagher (UK),Insurance (Excl Premises And Transport),51406.44,0,COMMERCIAL SUPPLIER
01-06-2022,Resources,Arthur J Gallagher (UK),Insurance (Excl Premises And Transport),2110.25,0,COMMERCIAL SUPPLIER
01-06-2022,Resources,Arthur J Gallagher (UK),Insurance (Excl Premises And Transport),22237.6,0,COMMERCIAL SUPPLIER
01-06-2022,Resources,Arthur J Gallagher (UK),Insurance (Excl Premises And Transport),16665.6,0,COMMERCIAL SUPPLIER
01-06-2022,Resources,Arthur J Gallagher (UK),Insurance (Excl Premises And Transport),8715.84,0,COMMERCIAL SUPPLIER
01-06-2022,Resources,Arthur J Gallagher (UK),Insurance (Excl Premises And Transport),7120.92,0,COMMERCIAL SUPPLIER
01-06-2022,Resources,Arthur J Gallagher (UK),Insurance (Excl Premises And Transport),78017.15,0,COMMERCIAL SUPPLIER
01-06-2022,RMS,Travis Perkins Trading Company Ltd,Building Alterations And Materials,1731.2,0,COMMERCIAL SUPPLIER
01-06-2022,RMS,Travis Perkins Trading Company Ltd,Building Alterations And Materials,2512.6,0,COMMERCIAL SUPPLIER
01-06-2022,RMS,Travis Perkins Trading Company Ltd,Building Alterations And Materials,982.65,0,COMMERCIAL SUPPLIER
01-06-2022,RMS,Travis Perkins Trading Company Ltd,Building Alterations And Materials,239,0,COMMERCIAL SUPPLIER
01-06-2022,RMS,Travis Perkins Trading Company Ltd,Building Alterations And Materials,94,0,COMMERCIAL SUPPLIER
01-06-2022,RMS,Travis Perkins Trading Company Ltd,Building Alterations And Materials,258.18,0,COMMERCIAL SUPPLIER
01-06-2022,RMS,Travis Perkins Trading Company Ltd,Building Alterations And Materials,4007.5,0,COMMERCIAL SUPPLIER
01-06-2022,RMS,Travis Perkins Trading Company Ltd,Building Alterations And Materials,295.6,0,COMMERCIAL SUPPLIER
01-06-2022,RMS,Travis Perkins Trading Company Ltd,Building Alterations And Materials,1523.5,0,COMMERCIAL SUPPLIER
01-06-2022,RMS,Travis Perkins Trading Company Ltd,Building Alterations And Materials,357.5,0,COMMERCIAL SUPPLIER
01-06-2022,Resources,Jones Lang LaSalle Ltd,Consultancy Fees,408413.2,0,COMMERCIAL SUPPLIER
01-06-2022,Resources,Jones Lang LaSalle Ltd,Consultancy Fees,167250,0,COMMERCIAL SUPPLIER
01-06-2022,Adults & Health,Supreme Care Services Ltd,Home Care - Private Contractors Payment,131.04,0,COMMERCIAL SUPPLIER
01-06-2022,Adults & Health,Supreme Care Services Ltd,Home Care - Private Contractors Payment,127.68,0,COMMERCIAL SUPPLIER
01-06-2022,Adults & Health,Supreme Care Services Ltd,Home Care - Private Contractors Payment,131.04,0,COMMERCIAL SUPPLIER
01-06-2022,Adults & Health,Supreme Care Services Ltd,Home Care - Private Contractors Payment,131.04,0,COMMERCIAL SUPPLIER
01-06-2022,Adults & Health,Remark Ltd,Daycare - Private Contractors Payment,220,0,COMMERCIAL SUPPLIER
01-06-2022,Adults & Health,Remark Ltd,Daycare - Private Contractors Payment,220,0,COMMERCIAL SUPPLIER
01-06-2022,Adults & Health,Remark Ltd,Daycare - Private Contractors Payment,220,0,COMMERCIAL SUPPLIER
01-06-2022,Adults & Health,Remark Ltd,Daycare - Private Contractors Payment,80,0,COMMERCIAL SUPPLIER
01-06-2022,Adults & Health,Remark Ltd,Daycare - Private Contractors Payment,220,0,COMMERCIAL SUPPLIER
01-06-2022,RMS,Capsticks Solicitors LLP,Legal Fees,280,0,LEGAL SERVICES
01-06-2022,Environment and Sustainable Transport,Worldline IT Services UK Ltd Re Fuel Genie,Transport Fuel,237.81,0,COMMERCIAL SUPPLIER
01-06-2022,Environment and Sustainable Transport,Worldline IT Services UK Ltd Re Fuel Genie,Transport Fuel,273.25,0,COMMERCIAL SUPPLIER
01-06-2022,Environment and Sustainable Transport,Worldline IT Services UK Ltd Re Fuel Genie,Transport Fuel,1210.94,0,COMMERCIAL SUPPLIER
01-06-2022,Children and Young People,Britannia K9 Security Ltd,Security Of Premises,1612.5,0,COMMERCIAL SUPPLIER
01-06-2022,Children and Young People,Clayhall Executive Cars Ltd,Client Transport,2090,0,COMMERCIAL SUPPLIER
01-06-2022,Children and Young People,Clayhall Executive Cars Ltd,Client Transport,2836.8,0,COMMERCIAL SUPPLIER
01-06-2022,Children and Young People,Clayhall Executive Cars Ltd,Client Transport,1872.2,0,COMMERCIAL SUPPLIER
01-06-2022,Children and Young People,Clayhall Executive Cars Ltd,Client Transport,1295,0,COMMERCIAL SUPPLIER
01-06-2022,Children and Young People,Clayhall Executive Cars Ltd,Client Transport,2819.6,0,COMMERCIAL SUPPLIER
01-06-2022,Environment and Sustainable Transport,Harris Commercial Repairs Ltd,"Purchase - Equipment, Furniture And Materials",3324.37,0,VENDOR
01-06-2022,RMS,Wolseley Uk Ltd,Building Alterations And Materials,476,0,COMMERCIAL SUPPLIER
01-06-2022,Children and Young People,Ansacare Fostering Agency Ltd,Fostering Agency Placements - Private Contractors Payment,1200,0,COMMERCIAL SUPPLIER
01-06-2022,Children and Young People,Ansacare Fostering Agency Ltd,Fostering Agency Placements - Private Contractors Payment,1200,0,COMMERCIAL SUPPLIER
01-06-2022,Children and Young People,Ansacare Fostering Agency Ltd,Fostering Agency Placements - Private Contractors Payment,1714.28,0,COMMERCIAL SUPPLIER
01-06-2022,Children and Young People,Ansacare Fostering Agency Ltd,Fostering Agency Placements - Private Contractors Payment,1200,0,COMMERCIAL SUPPLIER
01-06-2022,Children and Young People,Ansacare Fostering Agency Ltd,Fostering Agency Placements - Private Contractors Payment,1077.82,0,COMMERCIAL SUPPLIER
01-06-2022,Children and Young People,Ansacare Fostering Agency Ltd,Fostering Agency Placements - Private Contractors Payment,755.25,0,COMMERCIAL SUPPLIER
01-06-2022,Children and Young People,Ansacare Fostering Agency Ltd,Fostering Agency Placements - Private Contractors Payment,755.25,0,COMMERCIAL SUPPLIER
01-06-2022,Children and Young People,Ansacare Fostering Agency Ltd,Fostering Agency Placements - Private Contractors Payment,755.25,0,COMMERCIAL SUPPLIER
01-06-2022,Inclusive Economy & Housing,Partnering Regeneration Development Ltd,General Office Expenses,16129.5,0,COMMERCIAL SUPPLIER
01-06-2022,oneSource - Non Shared,Frontline Security Solutions,Security Services (Excluding Premises),250,0,VENDOR
01-06-2022,Environment and Sustainable Transport,Portakabin Ltd,Premises Hire - Facilities,2373.33,0,COMMERCIAL SUPPLIER
01-06-2022,oneSource - Non Shared,Newham Learning Partnership (Project Co) Limited,"Maintenance - Equipment, Furniture And Materials",318021.23,0,VENDOR
01-06-2022,oneSource - Non Shared,Newham Learning Partnership (Project Co) Limited,"Maintenance - Equipment, Furniture And Materials",393678.07,0,VENDOR
01-06-2022,oneSource - Non Shared,Building A Future (Newham Schools) Limited,"Maintenance - Equipment, Furniture And Materials",276481.1,0,VENDOR
01-06-2022,oneSource - Non Shared,Building A Future (Newham Schools) Limited,"Maintenance - Equipment, Furniture And Materials",72819.36,0,VENDOR
01-06-2022,oneSource - Non Shared,Building A Future (Newham Schools) Limited,"Maintenance - Equipment, Furniture And Materials",72313.93,0,VENDOR
01-06-2022,Inclusive Economy & Housing,Middlesex University,Professional Services - General,945,0,COMMERCIAL SUPPLIER
01-06-2022,Inclusive Economy & Housing,Middlesex University,Professional Services - General,945,0,COMMERCIAL SUPPLIER
01-06-2022,Adults & Health,Blade Security UK,Security Of Premises,13230,0,COMMERCIAL SUPPLIER
01-06-2022,Adults & Health,Independence Brokerage Services CIC,Consultancy Fees,940.63,0,COMMERCIAL SUPPLIER
01-06-2022,"People, Policy and Performance",Personal Information - Redacted,Events,270,0,COMMERCIAL SUPPLIER
01-06-2022,Inclusive Economy & Housing,NPower,Electricity,346.29,0,COMMERCIAL SUPPLIER
01-06-2022,Inclusive Economy & Housing,NPower,Electricity,1551.3,0,COMMERCIAL SUPPLIER
01-06-2022,Adults & Health,Matrix Scm,Agency Staff,3789.7,0,
01-06-2022,Adults & Health,Matrix Scm,Agency Staff,2284.35,0,
01-06-2022,Adults & Health,Matrix Scm,Agency Staff,161.76,0,
01-06-2022,Adults & Health,Matrix Scm,Agency Staff,1091.87,0,
01-06-2022,Adults & Health,Matrix Scm,Agency Staff,909.92,0,
01-06-2022,Adults & Health,Matrix Scm,Agency Staff,-924,0,
01-06-2022,Adults & Health,Matrix Scm,Agency Staff,860.77,0,
01-06-2022,Adults & Health,Matrix Scm,Agency Staff,1066.34,0,
01-06-2022,Children and Young People,Matrix Scm,Agency Staff,1004.07,0,
01-06-2022,Children and Young People,Matrix Scm,Agency Staff,2231.5,0,
01-06-2022,Children and Young People,Matrix Scm,Agency Staff,1160.56,0,
01-06-2022,Children and Young People,Matrix Scm,Agency Staff,2457.44,0,
01-06-2022,Children and Young People,Matrix Scm,Agency Staff,2620.95,0,
01-06-2022,Children and Young People,Matrix Scm,Agency Staff,524.19,0,
01-06-2022,Children and Young People,Matrix Scm,Agency Staff,1785.55,0,
01-06-2022,Children and Young People,Matrix Scm,Agency Staff,1785.55,0,
01-06-2022,Children and Young People,Matrix Scm,Agency Staff,1785.55,0,
01-06-2022,Children and Young People,Matrix Scm,Agency Staff,1785.55,0,
01-06-2022,Children and Young People,Matrix Scm,Agency Staff,1882.74,0,
01-06-2022,Children and Young People,Matrix Scm,Agency Staff,1882.74,0,
01-06-2022,Children and Young People,Matrix Scm,Agency Staff,1882.74,0,
01-06-2022,Children and Young People,Matrix Scm,Agency Staff,1255.16,0,
01-06-2022,Children and Young People,Matrix Scm,Agency Staff,1352.88,0,
01-06-2022,Children and Young People,Matrix Scm,Agency Staff,2369.75,0,
01-06-2022,Children and Young People,Matrix Scm,Agency Staff,1840.85,0,
01-06-2022,Children and Young People,Matrix Scm,Agency Staff,1121.04,0,
01-06-2022,Children and Young People,Matrix Scm,Agency Staff,1861.5,0,
01-06-2022,Children and Young People,Matrix Scm,Agency Staff,1866.8,0,
01-06-2022,Children and Young People,Matrix Scm,Agency Staff,1494.72,0,
01-06-2022,Children and Young People,Matrix Scm,Agency Staff,1457.28,0,
01-06-2022,Children and Young People,Matrix Scm,Agency Staff,1473.47,0,
01-06-2022,Children and Young People,Matrix Scm,Agency Staff,573.02,0,
01-06-2022,Children and Young People,Matrix Scm,Agency Staff,920.48,0,
01-06-2022,Children and Young People,Matrix Scm,Agency Staff,1529.28,0,
01-06-2022,Children and Young People,Matrix Scm,Agency Staff,27,0,
01-06-2022,Children and Young People,Matrix Scm,Agency Staff,1497.76,0,
01-06-2022,Children and Young People,Matrix Scm,Agency Staff,1529.28,0,
01-06-2022,Children and Young People,Matrix Scm,Agency Staff,1529.28,0,
01-06-2022,Children and Young People,Matrix Scm,Agency Staff,1529.28,0,
01-06-2022,Children and Young People,Matrix Scm,Agency Staff,1506.24,0,
01-06-2022,Children and Young People,Matrix Scm,Agency Staff,1457.28,0,
01-06-2022,Children and Young People,Matrix Scm,Agency Staff,1349.28,0,
01-06-2022,Children and Young People,Matrix Scm,Agency Staff,1457.28,0,
01-06-2022,Children and Young People,Matrix Scm,Agency Staff,1364.42,0,
01-06-2022,Children and Young People,Matrix Scm,Agency Staff,1506.24,0,
01-06-2022,Children and Young People,Matrix Scm,Agency Staff,1394.64,0,
01-06-2022,Children and Young People,Matrix Scm,Agency Staff,1473.47,0,
01-06-2022,Children and Young People,Matrix Scm,Agency Staff,1437.12,0,
01-06-2022,Children and Young People,Matrix Scm,Agency Staff,257.4,0,
01-06-2022,Children and Young People,Matrix Scm,Agency Staff,4.6,0,
01-06-2022,Children and Young People,Matrix Scm,Agency Staff,18,0,
01-06-2022,Children and Young People,Matrix Scm,Agency Staff,1457.28,0,
01-06-2022,Children and Young People,Matrix Scm,Agency Staff,1709.28,0,
01-06-2022,Children and Young People,Matrix Scm,Agency Staff,1394.66,0,
01-06-2022,Children and Young People,Matrix Scm,Agency Staff,2217.95,0,
01-06-2022,Children and Young People,Matrix Scm,Agency Staff,45,0,
01-06-2022,Children and Young People,Matrix Scm,Agency Staff,45,0,
01-06-2022,Children and Young People,Matrix Scm,Agency Staff,5.8,0,
01-06-2022,Children and Young People,Matrix Scm,Agency Staff,1393.44,0,
01-06-2022,Children and Young People,Matrix Scm,Agency Staff,1729.79,0,
01-06-2022,Children and Young People,Matrix Scm,Agency Staff,1729.79,0,
01-06-2022,Children and Young People,Matrix Scm,Agency Staff,1729.79,0,
01-06-2022,Children and Young People,Matrix Scm,Agency Staff,15.75,0,
01-06-2022,Children and Young People,Matrix Scm,Agency Staff,1532.53,0,
01-06-2022,Children and Young People,Matrix Scm,Agency Staff,1473.48,0,
01-06-2022,Children and Young People,Matrix Scm,Agency Staff,1473.48,0,
01-06-2022,Children and Young People,Matrix Scm,Agency Staff,1355.9,0,
01-06-2022,Children and Young People,Matrix Scm,Agency Staff,1506.24,0,
01-06-2022,Children and Young People,Matrix Scm,Agency Staff,1619.28,0,
01-06-2022,Children and Young People,Matrix Scm,Agency Staff,1473.48,0,
01-06-2022,Children and Young People,Matrix Scm,Agency Staff,1473.47,0,
01-06-2022,Children and Young People,Matrix Scm,Agency Staff,910.02,0,
01-06-2022,Children and Young People,Matrix Scm,Agency Staff,1499.76,0,
01-06-2022,Children and Young People,Matrix Scm,Agency Staff,1499.76,0,
01-06-2022,Children and Young People,Matrix Scm,Agency Staff,1648.44,0,
01-06-2022,Children and Young People,Matrix Scm,Agency Staff,1493.28,0,
01-06-2022,Children and Young People,Matrix Scm,Agency Staff,1506.24,0,
01-06-2022,Children and Young People,Matrix Scm,Agency Staff,1457.28,0,
01-06-2022,Children and Young People,Matrix Scm,Agency Staff,1473.47,0,
01-06-2022,Children and Young People,Matrix Scm,Agency Staff,1364.03,0,
01-06-2022,Children and Young People,Matrix Scm,Agency Staff,696.3,0,
01-06-2022,Children and Young People,Matrix Scm,Agency Staff,1464.4,0,
01-06-2022,Children and Young People,Matrix Scm,Agency Staff,1719.06,0,
01-06-2022,Children and Young People,Matrix Scm,Agency Staff,1506.24,0,
01-06-2022,Children and Young People,Matrix Scm,Agency Staff,954.37,0,
01-06-2022,Children and Young People,Matrix Scm,Agency Staff,1364.03,0,
01-06-2022,Children and Young People,Matrix Scm,Agency Staff,976.32,0,
01-06-2022,Children and Young People,Matrix Scm,Agency Staff,762.17,0,
01-06-2022,Children and Young People,Matrix Scm,Agency Staff,82.8,0,
01-06-2022,Children and Young People,Matrix Scm,Agency Staff,662.64,0,
01-06-2022,Children and Young People,Matrix Scm,Agency Staff,1014.13,0,
01-06-2022,Children and Young People,Matrix Scm,Agency Staff,759.36,0,
01-06-2022,Children and Young People,Matrix Scm,Agency Staff,1473.48,0,
01-06-2022,Children and Young People,Matrix Scm,Agency Staff,1499.4,0,
01-06-2022,Children and Young People,Matrix Scm,Agency Staff,1394.66,0,
01-06-2022,Children and Young People,Matrix Scm,Agency Staff,1193.54,0,
01-06-2022,Children and Young People,Matrix Scm,Agency Staff,1316.67,0,
01-06-2022,Children and Young People,Matrix Scm,Agency Staff,1619.3,0,
01-06-2022,Children and Young People,Matrix Scm,Agency Staff,1615.36,0,
01-06-2022,Children and Young People,Matrix Scm,Agency Staff,1817.28,0,
01-06-2022,Children and Young People,Matrix Scm,Agency Staff,3033.5,0,
01-06-2022,Children and Young People,Matrix Scm,Agency Staff,1157.12,0,
01-06-2022,Children and Young People,Matrix Scm,Agency Staff,1364.03,0,
01-06-2022,Children and Young People,Matrix Scm,Agency Staff,727.23,0,
01-06-2022,"People, Policy and Performance",Matrix Scm,Agency Staff,1341.84,0,
01-06-2022,"People, Policy and Performance",Matrix Scm,Agency Staff,2236.4,0,
01-06-2022,"People, Policy and Performance",Matrix Scm,Agency Staff,2236.4,0,
01-06-2022,Children and Young People,Matrix Scm,Agency Staff,2758.5,0,
01-06-2022,Children and Young People,Matrix Scm,Agency Staff,1655.1,0,
01-06-2022,Children and Young People,Matrix Scm,Agency Staff,768.25,0,
01-06-2022,Children and Young People,Matrix Scm,Agency Staff,2758.5,0,
01-06-2022,Children and Young People,Matrix Scm,Agency Staff,2758.5,0,
01-06-2022,Children and Young People,Matrix Scm,Agency Staff,1048.4,0,
01-06-2022,Children and Young People,Matrix Scm,Agency Staff,69.2,0,
01-06-2022,Children and Young People,Matrix Scm,Agency Staff,1529.28,0,
01-06-2022,Children and Young People,Matrix Scm,Agency Staff,1473.47,0,
01-06-2022,Children and Young People,Matrix Scm,Agency Staff,1473.47,0,
01-06-2022,Children and Young People,Matrix Scm,Agency Staff,57.6,0,
01-06-2022,Children and Young People,Matrix Scm,Agency Staff,1364.04,0,
01-06-2022,Children and Young People,Matrix Scm,Agency Staff,1768.68,0,
01-06-2022,Children and Young People,Matrix Scm,Agency Staff,852.54,0,
01-06-2022,Children and Young People,Matrix Scm,Agency Staff,1473.47,0,
01-06-2022,Children and Young People,Matrix Scm,Agency Staff,923.94,0,
01-06-2022,Children and Young People,Matrix Scm,Agency Staff,1473.47,0,
01-06-2022,Children and Young People,Matrix Scm,Agency Staff,1529.28,0,
01-06-2022,Children and Young People,Matrix Scm,Agency Staff,1364.03,0,
01-06-2022,Children and Young People,Matrix Scm,Agency Staff,1473.47,0,
01-06-2022,Children and Young People,Matrix Scm,Agency Staff,40.5,0,
01-06-2022,Children and Young People,Matrix Scm,Agency Staff,37,0,
01-06-2022,Children and Young People,Matrix Scm,Agency Staff,47.8,0,
01-06-2022,Children and Young People,Matrix Scm,Agency Staff,1473.47,0,
01-06-2022,Children and Young People,Matrix Scm,Agency Staff,7.4,0,
01-06-2022,Children and Young People,Matrix Scm,Agency Staff,221.4,0,
01-06-2022,Children and Young People,Matrix Scm,Agency Staff,1473.47,0,
01-06-2022,Children and Young People,Matrix Scm,Agency Staff,1394.66,0,
01-06-2022,Children and Young People,Matrix Scm,Agency Staff,1364.42,0,
01-06-2022,Children and Young People,Matrix Scm,Agency Staff,1364.03,0,
01-06-2022,Children and Young People,Matrix Scm,Agency Staff,1394.66,0,
01-06-2022,Children and Young People,Matrix Scm,Agency Staff,1364.03,0,
01-06-2022,Brighter Futures Director,Matrix Scm,Agency Staff,270.53,0,
01-06-2022,Children and Young People,Matrix Scm,Agency Staff,1499.78,0,
01-06-2022,Children and Young People,Matrix Scm,Agency Staff,260.55,0,
01-06-2022,Children and Young People,Matrix Scm,Agency Staff,1473.47,0,
01-06-2022,Children and Young People,Matrix Scm,Agency Staff,1729.79,0,
01-06-2022,Children and Young People,Matrix Scm,Agency Staff,1506.24,0,
01-06-2022,Children and Young People,Matrix Scm,Agency Staff,1473.84,0,
01-06-2022,Children and Young People,Matrix Scm,Agency Staff,1473.47,0,
01-06-2022,Children and Young People,Matrix Scm,Agency Staff,1473.48,0,
01-06-2022,Children and Young People,Matrix Scm,Agency Staff,1473.47,0,
01-06-2022,Children and Young People,Matrix Scm,Agency Staff,1473.5,0,
01-06-2022,Adults & Health,Matrix Scm,Agency Staff,1245.6,0,
01-06-2022,Adults & Health,Matrix Scm,Agency Staff,651.64,0,
01-06-2022,Adults & Health,Matrix Scm,Agency Staff,2514.8,0,
01-06-2022,Adults & Health,Matrix Scm,Agency Staff,1254.24,0,
01-06-2022,Adults & Health,Matrix Scm,Agency Staff,1254.24,0,
01-06-2022,Adults & Health,Matrix Scm,Agency Staff,798.85,0,
01-06-2022,Adults & Health,Matrix Scm,Agency Staff,799.2,0,
01-06-2022,Adults & Health,Matrix Scm,Agency Staff,859.53,0,
01-06-2022,Adults & Health,Matrix Scm,Agency Staff,1002.59,0,
01-06-2022,Adults & Health,Matrix Scm,Agency Staff,1345.22,0,
01-06-2022,Adults & Health,Matrix Scm,Agency Staff,729.5,0,
01-06-2022,Adults & Health,Matrix Scm,Agency Staff,6.75,0,
01-06-2022,Adults & Health,Matrix Scm,Agency Staff,703.81,0,
01-06-2022,Adults & Health,Matrix Scm,Agency Staff,9.45,0,
01-06-2022,Adults & Health,Matrix Scm,Agency Staff,1346.05,0,
01-06-2022,Adults & Health,Matrix Scm,Agency Staff,1309.68,0,
01-06-2022,Adults & Health,Matrix Scm,Agency Staff,836.52,0,
01-06-2022,Adults & Health,Matrix Scm,Agency Staff,1308.6,0,
01-06-2022,Adults & Health,Matrix Scm,Agency Staff,1370.16,0,
01-06-2022,Adults & Health,Matrix Scm,Agency Staff,845.28,0,
01-06-2022,Adults & Health,Matrix Scm,Agency Staff,1364.04,0,
01-06-2022,Adults & Health,Matrix Scm,Agency Staff,1355.9,0,
01-06-2022,Adults & Health,Matrix Scm,Agency Staff,1394.66,0,
01-06-2022,Adults & Health,Matrix Scm,Agency Staff,951.48,0,
01-06-2022,Adults & Health,Matrix Scm,Agency Staff,1469.16,0,
01-06-2022,Adults & Health,Matrix Scm,Agency Staff,469.56,0,
01-06-2022,Adults & Health,Matrix Scm,Agency Staff,1207.46,0,
01-06-2022,Adults & Health,Matrix Scm,Agency Staff,1207.44,0,
01-06-2022,Children and Young People,Matrix Scm,Agency Staff,1364.42,0,
01-06-2022,Children and Young People,Matrix Scm,Agency Staff,1618.92,0,
01-06-2022,Children and Young People,Matrix Scm,Agency Staff,954.37,0,
01-06-2022,Children and Young People,Matrix Scm,Agency Staff,1647.36,0,
01-06-2022,Children and Young People,Matrix Scm,Agency Staff,1647.36,0,
01-06-2022,Children and Young People,Matrix Scm,Agency Staff,954.37,0,
01-06-2022,Children and Young People,Matrix Scm,Agency Staff,976.32,0,
01-06-2022,Children and Young People,Matrix Scm,Agency Staff,1364.4,0,
01-06-2022,Children and Young People,Matrix Scm,Agency Staff,954.37,0,
01-06-2022,Children and Young People,Matrix Scm,Agency Staff,976.32,0,
01-06-2022,Children and Young People,Matrix Scm,Agency Staff,1618.92,0,
01-06-2022,Children and Young People,Matrix Scm,Agency Staff,1728.72,0,
01-06-2022,Children and Young People,Matrix Scm,Agency Staff,1728.72,0,
01-06-2022,Children and Young People,Matrix Scm,Agency Staff,1728.72,0,
01-06-2022,Children and Young People,Matrix Scm,Agency Staff,1473.48,0,
01-06-2022,Environment and Sustainable Transport,Matrix Scm,Agency Staff,579.97,0,
01-06-2022,Environment and Sustainable Transport,Matrix Scm,Agency Staff,530.27,0,
01-06-2022,Environment and Sustainable Transport,Matrix Scm,Agency Staff,530.27,0,
01-06-2022,Environment and Sustainable Transport,Matrix Scm,Agency Staff,430.85,0,
01-06-2022,Environment and Sustainable Transport,Matrix Scm,Agency Staff,581.4,0,
01-06-2022,Environment and Sustainable Transport,Matrix Scm,Agency Staff,581.76,0,
01-06-2022,Environment and Sustainable Transport,Matrix Scm,Agency Staff,466.92,0,
01-06-2022,Environment and Sustainable Transport,Matrix Scm,Agency Staff,95.58,0,
01-06-2022,Environment and Sustainable Transport,Matrix Scm,Agency Staff,338.1,0,
01-06-2022,Environment and Sustainable Transport,Matrix Scm,Agency Staff,565.26,0,
01-06-2022,Environment and Sustainable Transport,Matrix Scm,Agency Staff,132.91,0,
01-06-2022,Environment and Sustainable Transport,Matrix Scm,Agency Staff,530.27,0,
01-06-2022,Environment and Sustainable Transport,Matrix Scm,Agency Staff,530.27,0,
01-06-2022,Environment and Sustainable Transport,Matrix Scm,Agency Staff,682.62,0,
01-06-2022,Environment and Sustainable Transport,Matrix Scm,Agency Staff,487.04,0,
01-06-2022,Environment and Sustainable Transport,Matrix Scm,Agency Staff,241.36,0,
01-06-2022,Environment and Sustainable Transport,Matrix Scm,Agency Staff,579.97,0,
01-06-2022,Environment and Sustainable Transport,Matrix Scm,Agency Staff,124.05,0,
01-06-2022,Environment and Sustainable Transport,Matrix Scm,Agency Staff,530.27,0,
01-06-2022,Environment and Sustainable Transport,Matrix Scm,Agency Staff,530.27,0,
01-06-2022,Environment and Sustainable Transport,Matrix Scm,Agency Staff,579.97,0,
01-06-2022,Environment and Sustainable Transport,Matrix Scm,Agency Staff,328.65,0,
01-06-2022,Environment and Sustainable Transport,Matrix Scm,Agency Staff,95.58,0,
01-06-2022,Environment and Sustainable Transport,Matrix Scm,Agency Staff,530.27,0,
01-06-2022,Environment and Sustainable Transport,Matrix Scm,Agency Staff,375.28,0,
01-06-2022,Environment and Sustainable Transport,Matrix Scm,Agency Staff,581.41,0,
01-06-2022,Environment and Sustainable Transport,Matrix Scm,Agency Staff,111.51,0,
01-06-2022,Environment and Sustainable Transport,Matrix Scm,Agency Staff,0,0,
01-06-2022,Environment and Sustainable Transport,Matrix Scm,Agency Staff,528.48,0,
01-06-2022,Environment and Sustainable Transport,Matrix Scm,Agency Staff,198.18,0,
01-06-2022,Environment and Sustainable Transport,Matrix Scm,Agency Staff,330.3,0,
01-06-2022,Environment and Sustainable Transport,Matrix Scm,Agency Staff,152.19,0,
01-06-2022,Environment and Sustainable Transport,Matrix Scm,Agency Staff,579.6,0,
01-06-2022,Environment and Sustainable Transport,Matrix Scm,Agency Staff,530.27,0,
01-06-2022,Adults & Health,Matrix Scm,Agency Staff,744.54,0,
01-06-2022,Adults & Health,Matrix Scm,Agency Staff,1489.08,0,
01-06-2022,Adults & Health,Matrix Scm,Agency Staff,1515.36,0,
01-06-2022,Adults & Health,Matrix Scm,Agency Staff,1281.95,0,
01-06-2022,Adults & Health,Matrix Scm,Agency Staff,895.32,0,
01-06-2022,Environment and Sustainable Transport,Matrix Scm,Agency Staff,1038.4,0,
01-06-2022,Environment and Sustainable Transport,Matrix Scm,Agency Staff,843.38,0,
01-06-2022,Environment and Sustainable Transport,Matrix Scm,Agency Staff,177.52,0,
01-06-2022,oneSource,Matrix Scm,Agency Staff,2853.35,0,
01-06-2022,"People, Policy and Performance",Matrix Scm,Agency Staff,330.02,0,
01-06-2022,"People, Policy and Performance",Matrix Scm,Agency Staff,796.6,0,
01-06-2022,"People, Policy and Performance",Matrix Scm,Agency Staff,653.76,0,
01-06-2022,"People, Policy and Performance",Matrix Scm,Agency Staff,619.15,0,
01-06-2022,"People, Policy and Performance",Matrix Scm,Agency Staff,588.9,0,
01-06-2022,"People, Policy and Performance",Matrix Scm,Agency Staff,267.86,0,
01-06-2022,"People, Policy and Performance",Matrix Scm,Agency Staff,614.52,0,
01-06-2022,"People, Policy and Performance",Matrix Scm,Agency Staff,796.6,0,
01-06-2022,"People, Policy and Performance",Matrix Scm,Agency Staff,796.6,0,
01-06-2022,"People, Policy and Performance",Matrix Scm,Agency Staff,619.15,0,
01-06-2022,"People, Policy and Performance",Matrix Scm,Agency Staff,796.6,0,
01-06-2022,"People, Policy and Performance",Matrix Scm,Agency Staff,471.12,0,
01-06-2022,oneSource,Matrix Scm,Agency Staff,2192.35,0,
01-06-2022,oneSource,Matrix Scm,Agency Staff,422.47,0,
01-06-2022,oneSource,Matrix Scm,Agency Staff,2835.1,0,
01-06-2022,Brighter Futures Director,Matrix Scm,Agency Staff,448.36,0,
01-06-2022,Brighter Futures Director,Matrix Scm,Agency Staff,918.88,0,
01-06-2022,oneSource,Matrix Scm,Agency Staff,775.9,0,
01-06-2022,oneSource,Matrix Scm,Agency Staff,820.5,0,
01-06-2022,"People, Policy and Performance",Matrix Scm,Agency Staff,887.76,0,
01-06-2022,"People, Policy and Performance",Matrix Scm,Agency Staff,856.09,0,
01-06-2022,"People, Policy and Performance",Matrix Scm,Agency Staff,888.13,0,
01-06-2022,"People, Policy and Performance",Matrix Scm,Agency Staff,516.61,0,
01-06-2022,"People, Policy and Performance",Matrix Scm,Agency Staff,856.09,0,
01-06-2022,"People, Policy and Performance",Matrix Scm,Agency Staff,849.96,0,
01-06-2022,"People, Policy and Performance",Matrix Scm,Agency Staff,820.43,0,
01-06-2022,"People, Policy and Performance",Matrix Scm,Agency Staff,725.29,0,
01-06-2022,"People, Policy and Performance",Matrix Scm,Agency Staff,516.61,0,
01-06-2022,Adults & Health,Matrix Scm,Agency Staff,955.15,0,
01-06-2022,Adults & Health,Matrix Scm,Agency Staff,595.35,0,
01-06-2022,Adults & Health,Matrix Scm,Agency Staff,321.03,0,
01-06-2022,Adults & Health,Matrix Scm,Agency Staff,787.19,0,
01-06-2022,Environment and Sustainable Transport,Matrix Scm,Agency Staff,1153.2,0,
01-06-2022,Environment and Sustainable Transport,Matrix Scm,Agency Staff,1220.47,0,
01-06-2022,Environment and Sustainable Transport,Matrix Scm,Agency Staff,1172.42,0,
01-06-2022,Environment and Sustainable Transport,Matrix Scm,Agency Staff,667.43,0,
01-06-2022,Environment and Sustainable Transport,Matrix Scm,Agency Staff,957.49,0,
01-06-2022,Environment and Sustainable Transport,Matrix Scm,Agency Staff,351.48,0,
01-06-2022,Housing Revenue Account,Matrix Scm,Agency Staff,2077.8,0,
01-06-2022,Housing Revenue Account,Matrix Scm,Agency Staff,1957.85,0,
01-06-2022,Environment and Sustainable Transport,Matrix Scm,Agency Staff,789.48,0,
01-06-2022,Environment and Sustainable Transport,Matrix Scm,Agency Staff,1505.1,0,
01-06-2022,Children and Young People,Matrix Scm,Agency Staff,894.56,0,
01-06-2022,Resources,Matrix Scm,Agency Staff,2673.8,0,
01-06-2022,Resources,Matrix Scm,Agency Staff,2673.8,0,
01-06-2022,Resources,Matrix Scm,Agency Staff,3368.5,0,
01-06-2022,Resources,Matrix Scm,Agency Staff,3540.75,0,
01-06-2022,Resources,Matrix Scm,Agency Staff,1646.82,0,
01-06-2022,Resources,Matrix Scm,Agency Staff,1646.82,0,
01-06-2022,Resources,Matrix Scm,Agency Staff,3483.1,0,
01-06-2022,oneSource,Matrix Scm,Agency Staff,2582,0,
01-06-2022,oneSource,Matrix Scm,Agency Staff,857.57,0,
01-06-2022,oneSource,Matrix Scm,Agency Staff,4287.85,0,
01-06-2022,oneSource,Matrix Scm,Agency Staff,2582,0,
01-06-2022,oneSource,Matrix Scm,Agency Staff,1766.8,0,
01-06-2022,oneSource,Matrix Scm,Agency Staff,599.39,0,
01-06-2022,oneSource,Matrix Scm,Agency Staff,599.39,0,
01-06-2022,oneSource,Matrix Scm,Agency Staff,599.39,0,
01-06-2022,oneSource,Matrix Scm,Agency Staff,599.39,0,
01-06-2022,oneSource,Matrix Scm,Agency Staff,599.4,0,
01-06-2022,oneSource,Matrix Scm,Agency Staff,1933.5,0,
01-06-2022,oneSource,Matrix Scm,Agency Staff,993.6,0,
01-06-2022,oneSource,Matrix Scm,Agency Staff,454.38,0,
01-06-2022,oneSource,Matrix Scm,Agency Staff,986.7,0,
01-06-2022,oneSource,Matrix Scm,Agency Staff,1016.28,0,
01-06-2022,Environment and Sustainable Transport,Matrix Scm,Agency Staff,680.03,0,
01-06-2022,Environment and Sustainable Transport,Matrix Scm,Agency Staff,704.53,0,
01-06-2022,Environment and Sustainable Transport,Matrix Scm,Agency Staff,921.38,0,
01-06-2022,Environment and Sustainable Transport,Matrix Scm,Agency Staff,702,0,
01-06-2022,Environment and Sustainable Transport,Matrix Scm,Agency Staff,704.16,0,
01-06-2022,Environment and Sustainable Transport,Matrix Scm,Agency Staff,266.16,0,
01-06-2022,Environment and Sustainable Transport,Matrix Scm,Agency Staff,706.15,0,
01-06-2022,Environment and Sustainable Transport,Matrix Scm,Agency Staff,916.52,0,
01-06-2022,Environment and Sustainable Transport,Matrix Scm,Agency Staff,702.36,0,
01-06-2022,Environment and Sustainable Transport,Matrix Scm,Agency Staff,199.71,0,
01-06-2022,Environment and Sustainable Transport,Matrix Scm,Agency Staff,702,0,
01-06-2022,Environment and Sustainable Transport,Matrix Scm,Agency Staff,704.16,0,
01-06-2022,Environment and Sustainable Transport,Matrix Scm,Agency Staff,177.52,0,
01-06-2022,Environment and Sustainable Transport,Matrix Scm,Agency Staff,760.52,0,
01-06-2022,Environment and Sustainable Transport,Matrix Scm,Agency Staff,32.07,0,
01-06-2022,Environment and Sustainable Transport,Matrix Scm,Agency Staff,243.6,0,
01-06-2022,Environment and Sustainable Transport,Matrix Scm,Agency Staff,701.28,0,
01-06-2022,Environment and Sustainable Transport,Matrix Scm,Agency Staff,1014.01,0,
01-06-2022,Environment and Sustainable Transport,Matrix Scm,Agency Staff,163.28,0,
01-06-2022,Environment and Sustainable Transport,Matrix Scm,Agency Staff,938.88,0,
01-06-2022,Environment and Sustainable Transport,Matrix Scm,Agency Staff,1127.73,0,
01-06-2022,Environment and Sustainable Transport,Matrix Scm,Agency Staff,654.12,0,
01-06-2022,Environment and Sustainable Transport,Matrix Scm,Agency Staff,633.25,0,
01-06-2022,Environment and Sustainable Transport,Matrix Scm,Agency Staff,659.4,0,
01-06-2022,Environment and Sustainable Transport,Matrix Scm,Agency Staff,707.24,0,
01-06-2022,Environment and Sustainable Transport,Matrix Scm,Agency Staff,177.52,0,
01-06-2022,Environment and Sustainable Transport,Matrix Scm,Agency Staff,702,0,
01-06-2022,Environment and Sustainable Transport,Matrix Scm,Agency Staff,702.37,0,
01-06-2022,Environment and Sustainable Transport,Matrix Scm,Agency Staff,1131,0,
01-06-2022,Environment and Sustainable Transport,Matrix Scm,Agency Staff,701.28,0,
01-06-2022,Environment and Sustainable Transport,Matrix Scm,Agency Staff,633.24,0,
01-06-2022,Housing Revenue Account,Matrix Scm,Agency Staff,-530.27,0,
01-06-2022,Housing Revenue Account,Matrix Scm,Agency Staff,581.76,0,
01-06-2022,Housing Revenue Account,Matrix Scm,Agency Staff,3138.15,0,
01-06-2022,Housing Revenue Account,Matrix Scm,Agency Staff,781.44,0,
01-06-2022,Housing Revenue Account,Matrix Scm,Agency Staff,1999.9,0,
01-06-2022,Housing Revenue Account,Matrix Scm,Agency Staff,709.1,0,
01-06-2022,Housing Revenue Account,Matrix Scm,Agency Staff,547.02,0,
01-06-2022,Housing Revenue Account,Matrix Scm,Agency Staff,1957.85,0,
01-06-2022,Housing Revenue Account,Matrix Scm,Agency Staff,2208.5,0,
01-06-2022,Housing Revenue Account,Matrix Scm,Agency Staff,3808.55,0,
01-06-2022,Housing Revenue Account,Matrix Scm,Agency Staff,1049.76,0,
01-06-2022,Housing Revenue Account,Matrix Scm,Agency Staff,2853.35,0,
01-06-2022,Housing Revenue Account,Matrix Scm,Agency Staff,2279.85,0,
01-06-2022,Housing Revenue Account,Matrix Scm,Agency Staff,3481.68,0,
01-06-2022,Housing Revenue Account,Matrix Scm,Agency Staff,1991.5,0,
01-06-2022,Housing Revenue Account,Matrix Scm,Agency Staff,2232.32,0,
01-06-2022,Housing Revenue Account,Matrix Scm,Agency Staff,2208.5,0,
01-06-2022,Housing Revenue Account,Matrix Scm,Agency Staff,2236.3,0,
01-06-2022,Housing Revenue Account,Matrix Scm,Agency Staff,2853.35,0,
01-06-2022,Housing Revenue Account,Matrix Scm,Agency Staff,1829.9,0,
01-06-2022,Housing Revenue Account,Matrix Scm,Agency Staff,2449.62,0,
01-06-2022,Housing Revenue Account,Matrix Scm,Agency Staff,222.86,0,
01-06-2022,Housing Revenue Account,Matrix Scm,Agency Staff,2279.85,0,
01-06-2022,Housing Revenue Account,Matrix Scm,Agency Staff,2568.85,0,
01-06-2022,Housing Revenue Account,Matrix Scm,Agency Staff,2618.5,0,
01-06-2022,Housing Revenue Account,Matrix Scm,Agency Staff,735.13,0,
01-06-2022,Housing Revenue Account,Matrix Scm,Agency Staff,631.06,0,
01-06-2022,Housing Revenue Account,Matrix Scm,Agency Staff,80.16,0,
01-06-2022,Housing Revenue Account,Matrix Scm,Agency Staff,643.62,0,
01-06-2022,Housing Revenue Account,Matrix Scm,Agency Staff,658.58,0,
01-06-2022,Housing Revenue Account,Matrix Scm,Agency Staff,549.25,0,
01-06-2022,Housing Revenue Account,Matrix Scm,Agency Staff,611.45,0,
01-06-2022,Housing Revenue Account,Matrix Scm,Agency Staff,589.61,0,
01-06-2022,Housing Revenue Account,Matrix Scm,Agency Staff,701.03,0,
01-06-2022,Housing Revenue Account,Matrix Scm,Agency Staff,620.66,0,
01-06-2022,Housing Revenue Account,Matrix Scm,Agency Staff,740.17,0,
01-06-2022,oneSource,Matrix Scm,Agency Staff,386.7,0,
01-06-2022,oneSource,Matrix Scm,Agency Staff,5357.8,0,
01-06-2022,Environment and Sustainable Transport,Matrix Scm,Agency Staff,894.59,0,
01-06-2022,Environment and Sustainable Transport,Matrix Scm,Agency Staff,776.57,0,
01-06-2022,Environment and Sustainable Transport,Matrix Scm,Agency Staff,1222.22,0,
01-06-2022,Environment and Sustainable Transport,Matrix Scm,Agency Staff,1031.29,0,
01-06-2022,Housing Revenue Account,Matrix Scm,Agency Staff,360.99,0,
01-06-2022,Housing Revenue Account,Matrix Scm,Agency Staff,1444.58,0,
01-06-2022,Housing Revenue Account,Matrix Scm,Agency Staff,360.99,0,
01-06-2022,Housing Revenue Account,Matrix Scm,Agency Staff,1444.58,0,
01-06-2022,Housing Revenue Account,Matrix Scm,Agency Staff,2568.85,0,
01-06-2022,Housing Revenue Account,Matrix Scm,Agency Staff,2568.85,0,
01-06-2022,Housing Revenue Account,Matrix Scm,Agency Staff,1491.12,0,
01-06-2022,Housing Revenue Account,Matrix Scm,Agency Staff,3991.3,0,
01-06-2022,Housing Revenue Account,Matrix Scm,Agency Staff,422.94,0,
01-06-2022,Housing Revenue Account,Matrix Scm,Agency Staff,340.35,0,
01-06-2022,Housing Revenue Account,Matrix Scm,Agency Staff,201.4,0,
01-06-2022,Housing Revenue Account,Matrix Scm,Agency Staff,829.37,0,
01-06-2022,Housing Revenue Account,Matrix Scm,Agency Staff,418.32,0,
01-06-2022,Housing Revenue Account,Matrix Scm,Agency Staff,437.58,0,
01-06-2022,Housing Revenue Account,Matrix Scm,Agency Staff,125.88,0,
01-06-2022,Housing Revenue Account,Matrix Scm,Agency Staff,422.94,0,
01-06-2022,oneSource,Matrix Scm,Agency Staff,2208.5,0,
01-06-2022,oneSource,Matrix Scm,Agency Staff,1089.04,0,
01-06-2022,Inclusive Economy & Housing,Matrix Scm,Agency Staff,87.36,0,
01-06-2022,Inclusive Economy & Housing,Matrix Scm,Agency Staff,0,0,
01-06-2022,Inclusive Economy & Housing,Matrix Scm,Agency Staff,87.36,0,
01-06-2022,"People, Policy and Performance",Matrix Scm,Agency Staff,1655.61,0,
01-06-2022,Children and Young People,Matrix Scm,Agency Staff,1729.8,0,
01-06-2022,Children and Young People,Matrix Scm,Agency Staff,1729.8,0,
01-06-2022,Children and Young People,Matrix Scm,Agency Staff,1729.8,0,
01-06-2022,Children and Young People,Matrix Scm,Agency Staff,217.83,0,
01-06-2022,Children and Young People,Matrix Scm,Agency Staff,845.84,0,
01-06-2022,Children and Young People,Matrix Scm,Agency Staff,4058.55,0,
01-06-2022,Children and Young People,Matrix Scm,Agency Staff,3991.3,0,
01-06-2022,Housing Revenue Account,Matrix Scm,Agency Staff,-423.48,0,
01-06-2022,Housing Revenue Account,Matrix Scm,Agency Staff,581.76,0,
01-06-2022,Housing Revenue Account,Matrix Scm,Agency Staff,464.6,0,
01-06-2022,Housing Revenue Account,Matrix Scm,Agency Staff,-427.16,0,
01-06-2022,Housing Revenue Account,Matrix Scm,Agency Staff,468.64,0,
01-06-2022,Housing Revenue Account,Matrix Scm,Agency Staff,515.55,0,
01-06-2022,Housing Revenue Account,Matrix Scm,Agency Staff,530.27,0,
01-06-2022,Housing Revenue Account,Matrix Scm,Agency Staff,595.96,0,
01-06-2022,Housing Revenue Account,Matrix Scm,Agency Staff,581.76,0,
01-06-2022,Housing Revenue Account,Matrix Scm,Agency Staff,-526.34,0,
01-06-2022,Housing Revenue Account,Matrix Scm,Agency Staff,106.79,0,
01-06-2022,Housing Revenue Account,Matrix Scm,Agency Staff,464.6,0,
01-06-2022,Housing Revenue Account,Matrix Scm,Agency Staff,-543.97,0,
01-06-2022,Housing Revenue Account,Matrix Scm,Agency Staff,581.76,0,
01-06-2022,Housing Revenue Account,Matrix Scm,Agency Staff,-115.78,0,
01-06-2022,Housing Revenue Account,Matrix Scm,Agency Staff,902.18,0,
01-06-2022,Housing Revenue Account,Matrix Scm,Agency Staff,-427.16,0,
01-06-2022,Housing Revenue Account,Matrix Scm,Agency Staff,581.76,0,
01-06-2022,Housing Revenue Account,Matrix Scm,Agency Staff,581.76,0,
01-06-2022,Housing Revenue Account,Matrix Scm,Agency Staff,530.27,0,
01-06-2022,Housing Revenue Account,Matrix Scm,Agency Staff,587.16,0,
01-06-2022,Housing Revenue Account,Matrix Scm,Agency Staff,750.26,0,
01-06-2022,Housing Revenue Account,Matrix Scm,Agency Staff,587.16,0,
01-06-2022,Housing Revenue Account,Matrix Scm,Agency Staff,528.48,0,
01-06-2022,Housing Revenue Account,Matrix Scm,Agency Staff,775.2,0,
01-06-2022,Housing Revenue Account,Matrix Scm,Agency Staff,782.88,0,
01-06-2022,Housing Revenue Account,Matrix Scm,Agency Staff,391.44,0,
01-06-2022,Housing Revenue Account,Matrix Scm,Agency Staff,1103.52,0,
01-06-2022,Housing Revenue Account,Matrix Scm,Agency Staff,451.44,0,
01-06-2022,Housing Revenue Account,Matrix Scm,Agency Staff,802.56,0,
01-06-2022,Housing Revenue Account,Matrix Scm,Agency Staff,1203.84,0,
01-06-2022,Housing Revenue Account,Matrix Scm,Agency Staff,601.92,0,
01-06-2022,Housing Revenue Account,Matrix Scm,Agency Staff,802.56,0,
01-06-2022,Housing Revenue Account,Matrix Scm,Agency Staff,601.92,0,
01-06-2022,Housing Revenue Account,Matrix Scm,Agency Staff,902.88,0,
01-06-2022,Housing Revenue Account,Matrix Scm,Agency Staff,601.92,0,
01-06-2022,Housing Revenue Account,Matrix Scm,Agency Staff,802.56,0,
01-06-2022,Housing Revenue Account,Matrix Scm,Agency Staff,601.92,0,
01-06-2022,Housing Revenue Account,Matrix Scm,Agency Staff,601.92,0,
01-06-2022,oneSource - Non Shared,Matrix Scm,Agency Staff,743.6,0,
01-06-2022,Resources,Matrix Scm,Agency Staff,1117.32,0,
01-06-2022,Resources,Matrix Scm,Agency Staff,2758.5,0,
01-06-2022,oneSource,Matrix Scm,Agency Staff,1419.49,0,
01-06-2022,Housing Revenue Account,Matrix Scm,Agency Staff,2568.85,0,
01-06-2022,Housing Revenue Account,Matrix Scm,Agency Staff,419.58,0,
01-06-2022,Housing Revenue Account,Matrix Scm,Agency Staff,423.48,0,
01-06-2022,Housing Revenue Account,Matrix Scm,Agency Staff,579.97,0,
01-06-2022,Housing Revenue Account,Matrix Scm,Agency Staff,-543.97,0,
01-06-2022,Housing Revenue Account,Matrix Scm,Agency Staff,581.76,0,
01-06-2022,Children and Young People,Matrix Scm,Agency Staff,257.25,0,
01-06-2022,Children and Young People,Matrix Scm,Agency Staff,1364.04,0,
01-06-2022,Children and Young People,Matrix Scm,Agency Staff,2072.16,0,
01-06-2022,Children and Young People,Matrix Scm,Agency Staff,1439.37,0,
01-06-2022,Children and Young People,Matrix Scm,Agency Staff,965.79,0,
01-06-2022,Children and Young People,Matrix Scm,Agency Staff,1900.6,0,
01-06-2022,Children and Young People,Matrix Scm,Agency Staff,833.59,0,
01-06-2022,Children and Young People,Matrix Scm,Agency Staff,1473.47,0,
01-06-2022,Children and Young People,Matrix Scm,Agency Staff,1655.3,0,
01-06-2022,Children and Young People,Matrix Scm,Agency Staff,1506.24,0,
01-06-2022,Children and Young People,Matrix Scm,Agency Staff,2514.8,0,
01-06-2022,Children and Young People,Matrix Scm,Agency Staff,1161.08,0,
01-06-2022,Children and Young People,Matrix Scm,Agency Staff,383.76,0,
01-06-2022,Children and Young People,Matrix Scm,Agency Staff,1035.75,0,
01-06-2022,Brighter Futures Director,Matrix Scm,Agency Staff,1066.64,0,
01-06-2022,Brighter Futures Director,Matrix Scm,Agency Staff,1324.1,0,
01-06-2022,Brighter Futures Director,Matrix Scm,Agency Staff,1253.5,0,
01-06-2022,Brighter Futures Director,Matrix Scm,Agency Staff,1569.6,0,
01-06-2022,Brighter Futures Director,Matrix Scm,Agency Staff,1324.1,0,
01-06-2022,Brighter Futures Director,Matrix Scm,Agency Staff,757.56,0,
01-06-2022,Brighter Futures Director,Matrix Scm,Agency Staff,1569.6,0,
01-06-2022,Brighter Futures Director,Matrix Scm,Agency Staff,1264.4,0,
01-06-2022,Brighter Futures Director,Matrix Scm,Agency Staff,1554.5,0,
01-06-2022,Brighter Futures Director,Matrix Scm,Agency Staff,1324.1,0,
01-06-2022,Brighter Futures Director,Matrix Scm,Agency Staff,1253.89,0,
01-06-2022,Brighter Futures Director,Matrix Scm,Agency Staff,537.66,0,
01-06-2022,Brighter Futures Director,Matrix Scm,Agency Staff,1250.52,0,
01-06-2022,Brighter Futures Director,Matrix Scm,Agency Staff,1324.1,0,
01-06-2022,Brighter Futures Director,Matrix Scm,Agency Staff,1324.1,0,
01-06-2022,Brighter Futures Director,Matrix Scm,Agency Staff,1324.1,0,
01-06-2022,Children and Young People,Matrix Scm,Agency Staff,1364.05,0,
01-06-2022,Children and Young People,Matrix Scm,Agency Staff,1385.28,0,
01-06-2022,Children and Young People,Matrix Scm,Agency Staff,53.1,0,
01-06-2022,Children and Young People,Matrix Scm,Agency Staff,10.8,0,
01-06-2022,Children and Young People,Matrix Scm,Agency Staff,28.35,0,
01-06-2022,Children and Young People,Matrix Scm,Agency Staff,1400.76,0,
01-06-2022,Children and Young People,Matrix Scm,Agency Staff,1394.66,0,
01-06-2022,Children and Young People,Matrix Scm,Agency Staff,1394.64,0,
01-06-2022,Children and Young People,Matrix Scm,Agency Staff,1655.28,0,
01-06-2022,Children and Young People,Matrix Scm,Agency Staff,1364.05,0,
01-06-2022,Children and Young People,Matrix Scm,Agency Staff,1394.64,0,
01-06-2022,"People, Policy and Performance",Matrix Scm,Agency Staff,1027.54,0,
01-06-2022,"People, Policy and Performance",Matrix Scm,Agency Staff,2206.8,0,
01-06-2022,Adults & Health,Matrix Scm,Agency Staff,541.45,0,
01-06-2022,Adults & Health,Matrix Scm,Agency Staff,324.87,0,
01-06-2022,Brighter Futures Director,Matrix Scm,Agency Staff,793,0,
01-06-2022,Inclusive Economy & Housing,Matrix Scm,Agency Staff,0,0,
01-06-2022,Inclusive Economy & Housing,Matrix Scm,Agency Staff,87.36,0,
01-06-2022,Inclusive Economy & Housing,Matrix Scm,Agency Staff,0,0,
01-06-2022,Inclusive Economy & Housing,Matrix Scm,Agency Staff,87.36,0,
01-06-2022,Inclusive Economy & Housing,Matrix Scm,Agency Staff,0,0,
01-06-2022,Inclusive Economy & Housing,Matrix Scm,Agency Staff,147.04,0,
01-06-2022,Inclusive Economy & Housing,Matrix Scm,Agency Staff,177.65,0,
01-06-2022,Inclusive Economy & Housing,Matrix Scm,Agency Staff,87.36,0,
01-06-2022,Inclusive Economy & Housing,Matrix Scm,Agency Staff,760.96,0,
01-06-2022,RMS,Matrix Scm,Agency Staff,1144,0,
01-06-2022,RMS,Matrix Scm,Agency Staff,-65,0,
01-06-2022,RMS,Matrix Scm,Agency Staff,1143.6,0,
01-06-2022,RMS,Matrix Scm,Agency Staff,-17.67,0,
01-06-2022,RMS,Matrix Scm,Agency Staff,937.92,0,
01-06-2022,RMS,Matrix Scm,Agency Staff,1172.4,0,
01-06-2022,RMS,Matrix Scm,Agency Staff,1172.4,0,
01-06-2022,RMS,Matrix Scm,Agency Staff,-53,0,
01-06-2022,RMS,Matrix Scm,Agency Staff,845.25,0,
01-06-2022,RMS,Matrix Scm,Agency Staff,1304,0,
01-06-2022,RMS,Matrix Scm,Agency Staff,1172.4,0,
01-06-2022,RMS,Matrix Scm,Agency Staff,1172.4,0,
01-06-2022,RMS,Matrix Scm,Agency Staff,1172.4,0,
01-06-2022,RMS,Matrix Scm,Agency Staff,1144,0,
01-06-2022,Children and Young People,Matrix Scm,Agency Staff,38.25,0,
01-06-2022,Children and Young People,Matrix Scm,Agency Staff,947.62,0,
01-06-2022,Children and Young People,Matrix Scm,Agency Staff,852.85,0,
01-06-2022,Dedicated Schools Budget,Personal Information - Redacted,Agency Staff,765.6,0,
01-06-2022,Dedicated Schools Budget,Personal Information - Redacted,Agency Staff,1010.04,0,
01-06-2022,"People, Policy and Performance",Matrix Scm,Agency Staff,605.64,0,
01-06-2022,"People, Policy and Performance",Matrix Scm,Agency Staff,693.45,0,
01-06-2022,"People, Policy and Performance",Matrix Scm,Agency Staff,774.77,0,
01-06-2022,Inclusive Economy & Housing,Matrix Scm,Agency Staff,626.8,0,
01-06-2022,Inclusive Economy & Housing,Matrix Scm,Agency Staff,1410.3,0,
01-06-2022,RMS,Matrix Scm,Agency Staff,872.8,0,
01-06-2022,RMS,Matrix Scm,Agency Staff,819.2,0,
01-06-2022,RMS,Matrix Scm,Agency Staff,1052.64,0,
01-06-2022,RMS,Matrix Scm,Agency Staff,1055.04,0,
01-06-2022,RMS,Matrix Scm,Agency Staff,684.89,0,
01-06-2022,RMS,Matrix Scm,Agency Staff,694.15,0,
01-06-2022,RMS,Matrix Scm,Agency Staff,810.56,0,
01-06-2022,RMS,Matrix Scm,Agency Staff,941.29,0,
01-06-2022,RMS,Matrix Scm,Agency Staff,1185.6,0,
01-06-2022,RMS,Matrix Scm,Agency Staff,1185.6,0,
01-06-2022,RMS,Matrix Scm,Agency Staff,1354.56,0,
01-06-2022,RMS,Matrix Scm,Agency Staff,768.2,0,
01-06-2022,RMS,Matrix Scm,Agency Staff,1248.8,0,
01-06-2022,RMS,Matrix Scm,Agency Staff,1013.2,0,
01-06-2022,RMS,Matrix Scm,Agency Staff,810.24,0,
01-06-2022,RMS,Matrix Scm,Agency Staff,-17.67,0,
01-06-2022,RMS,Matrix Scm,Agency Staff,1186.08,0,
01-06-2022,RMS,Matrix Scm,Agency Staff,1012.8,0,
01-06-2022,RMS,Matrix Scm,Agency Staff,1120,0,
01-06-2022,RMS,Matrix Scm,Agency Staff,1120,0,
01-06-2022,RMS,Matrix Scm,Agency Staff,178.72,0,
01-06-2022,RMS,Matrix Scm,Agency Staff,185.68,0,
01-06-2022,RMS,Matrix Scm,Agency Staff,765.2,0,
01-06-2022,RMS,Matrix Scm,Agency Staff,178.72,0,
01-06-2022,RMS,Matrix Scm,Agency Staff,185.68,0,
01-06-2022,RMS,Matrix Scm,Agency Staff,765.2,0,
01-06-2022,RMS,Matrix Scm,Agency Staff,908.69,0,
01-06-2022,Children and Young People,Matrix Scm,Agency Staff,1618.91,0,
01-06-2022,Environment and Sustainable Transport,Matrix Scm,Agency Staff,152.25,0,
01-06-2022,Environment and Sustainable Transport,Matrix Scm,Agency Staff,600.13,0,
01-06-2022,Environment and Sustainable Transport,Matrix Scm,Agency Staff,581.76,0,
01-06-2022,Environment and Sustainable Transport,Matrix Scm,Agency Staff,581.76,0,
01-06-2022,Environment and Sustainable Transport,Matrix Scm,Agency Staff,530.27,0,
01-06-2022,Environment and Sustainable Transport,Matrix Scm,Agency Staff,125.51,0,
01-06-2022,Environment and Sustainable Transport,Matrix Scm,Agency Staff,-109.97,0,
01-06-2022,Environment and Sustainable Transport,Matrix Scm,Agency Staff,213.58,0,
01-06-2022,Environment and Sustainable Transport,Matrix Scm,Agency Staff,279.87,0,
01-06-2022,Environment and Sustainable Transport,Matrix Scm,Agency Staff,467.2,0,
01-06-2022,Environment and Sustainable Transport,Matrix Scm,Agency Staff,579.97,0,
01-06-2022,Environment and Sustainable Transport,Matrix Scm,Agency Staff,877.12,0,
01-06-2022,Environment and Sustainable Transport,Matrix Scm,Agency Staff,581.76,0,
01-06-2022,Environment and Sustainable Transport,Matrix Scm,Agency Staff,125.51,0,
01-06-2022,Environment and Sustainable Transport,Matrix Scm,Agency Staff,565.57,0,
01-06-2022,Environment and Sustainable Transport,Matrix Scm,Agency Staff,902.18,0,
01-06-2022,Environment and Sustainable Transport,Matrix Scm,Agency Staff,581.76,0,
01-06-2022,Environment and Sustainable Transport,Matrix Scm,Agency Staff,106.79,0,
01-06-2022,Environment and Sustainable Transport,Matrix Scm,Agency Staff,565.56,0,
01-06-2022,Environment and Sustainable Transport,Matrix Scm,Agency Staff,530.27,0,
01-06-2022,Environment and Sustainable Transport,Matrix Scm,Agency Staff,-259.93,0,
01-06-2022,Environment and Sustainable Transport,Matrix Scm,Agency Staff,275.66,0,
01-06-2022,Environment and Sustainable Transport,Matrix Scm,Agency Staff,-259.93,0,
01-06-2022,Environment and Sustainable Transport,Matrix Scm,Agency Staff,275.66,0,
01-06-2022,Environment and Sustainable Transport,Matrix Scm,Agency Staff,146.79,0,
01-06-2022,Environment and Sustainable Transport,Matrix Scm,Agency Staff,468.64,0,
01-06-2022,RMS,Matrix Scm,Agency Staff,1063.9,0,
01-06-2022,RMS,Matrix Scm,Agency Staff,619.6,0,
01-06-2022,RMS,Matrix Scm,Agency Staff,810,0,
01-06-2022,RMS,Matrix Scm,Agency Staff,1115.01,0,
01-06-2022,RMS,Matrix Scm,Agency Staff,824.25,0,
01-06-2022,RMS,Matrix Scm,Agency Staff,1072.5,0,
01-06-2022,RMS,Matrix Scm,Agency Staff,668.16,0,
01-06-2022,RMS,Matrix Scm,Agency Staff,1022.2,0,
01-06-2022,RMS,Matrix Scm,Agency Staff,981.15,0,
01-06-2022,RMS,Matrix Scm,Agency Staff,901.2,0,
01-06-2022,RMS,Matrix Scm,Agency Staff,1012.8,0,
01-06-2022,RMS,Matrix Scm,Agency Staff,1264.32,0,
01-06-2022,RMS,Matrix Scm,Agency Staff,1434.12,0,
01-06-2022,RMS,Matrix Scm,Agency Staff,1434.12,0,
01-06-2022,RMS,Matrix Scm,Agency Staff,1238.4,0,
01-06-2022,RMS,Matrix Scm,Agency Staff,202.41,0,
01-06-2022,RMS,Matrix Scm,Agency Staff,779.62,0,
01-06-2022,RMS,Matrix Scm,Agency Staff,956.08,0,
01-06-2022,RMS,Matrix Scm,Agency Staff,1434.12,0,
01-06-2022,RMS,Matrix Scm,Agency Staff,681,0,
01-06-2022,RMS,Matrix Scm,Agency Staff,2908.5,0,
01-06-2022,RMS,Matrix Scm,Agency Staff,819.7,0,
01-06-2022,RMS,Matrix Scm,Agency Staff,2010.15,0,
01-06-2022,RMS,Matrix Scm,Agency Staff,2010.15,0,
01-06-2022,RMS,Matrix Scm,Agency Staff,1843.08,0,
01-06-2022,RMS,Matrix Scm,Agency Staff,1843.08,0,
01-06-2022,RMS,Matrix Scm,Agency Staff,1563.95,0,
01-06-2022,RMS,Matrix Scm,Agency Staff,2908.5,0,
01-06-2022,RMS,Matrix Scm,Agency Staff,858.44,0,
01-06-2022,RMS,Matrix Scm,Agency Staff,1088.65,0,
01-06-2022,Inclusive Economy & Housing,Matrix Scm,Agency Staff,1280.15,0,
01-06-2022,RMS,Matrix Scm,Agency Staff,1172.4,0,
01-06-2022,RMS,Matrix Scm,Agency Staff,1099.15,0,
01-06-2022,RMS,Matrix Scm,Agency Staff,1050.2,0,
01-06-2022,RMS,Matrix Scm,Agency Staff,1050.2,0,
01-06-2022,RMS,Matrix Scm,Agency Staff,1012.8,0,
01-06-2022,RMS,Matrix Scm,Agency Staff,670.6,0,
01-06-2022,RMS,Matrix Scm,Agency Staff,889.95,0,
01-06-2022,RMS,Matrix Scm,Agency Staff,1204.4,0,
01-06-2022,RMS,Matrix Scm,Agency Staff,405.12,0,
01-06-2022,RMS,Matrix Scm,Agency Staff,603.64,0,
01-06-2022,RMS,Matrix Scm,Agency Staff,1058.2,0,
01-06-2022,RMS,Matrix Scm,Agency Staff,640.15,0,
01-06-2022,RMS,Matrix Scm,Agency Staff,909.4,0,
01-06-2022,RMS,Matrix Scm,Agency Staff,-65,0,
01-06-2022,RMS,Matrix Scm,Agency Staff,417.78,0,
01-06-2022,RMS,Matrix Scm,Agency Staff,1039.2,0,
01-06-2022,RMS,Matrix Scm,Agency Staff,1012.8,0,
01-06-2022,RMS,Matrix Scm,Agency Staff,1012.8,0,
01-06-2022,RMS,Matrix Scm,Agency Staff,1179.4,0,
01-06-2022,RMS,Matrix Scm,Agency Staff,1376.4,0,
01-06-2022,"People, Policy and Performance",Matrix Scm,Agency Staff,2284.45,0,
01-06-2022,oneSource - Non Shared,Matrix Scm,Agency Staff,1706.81,0,
01-06-2022,Environment and Sustainable Transport,Matrix Scm,Agency Staff,2284.35,0,
01-06-2022,RMS,Matrix Scm,Agency Staff,632.2,0,
01-06-2022,RMS,Matrix Scm,Agency Staff,988.4,0,
01-06-2022,RMS,Matrix Scm,Agency Staff,-17.67,0,
01-06-2022,RMS,Matrix Scm,Agency Staff,1076.55,0,
01-06-2022,RMS,Matrix Scm,Agency Staff,988.4,0,
01-06-2022,RMS,Matrix Scm,Agency Staff,1076.55,0,
01-06-2022,RMS,Matrix Scm,Agency Staff,943.81,0,
01-06-2022,RMS,Matrix Scm,Agency Staff,875.2,0,
01-06-2022,RMS,Matrix Scm,Agency Staff,759.4,0,
01-06-2022,RMS,Matrix Scm,Agency Staff,957.15,0,
01-06-2022,RMS,Matrix Scm,Agency Staff,892.5,0,
01-06-2022,RMS,Matrix Scm,Agency Staff,487.51,0,
01-06-2022,RMS,Matrix Scm,Agency Staff,1012.8,0,
01-06-2022,RMS,Matrix Scm,Agency Staff,942.4,0,
01-06-2022,RMS,Matrix Scm,Agency Staff,988,0,
01-06-2022,RMS,Matrix Scm,Agency Staff,1152.06,0,
01-06-2022,RMS,Matrix Scm,Agency Staff,975.6,0,
01-06-2022,RMS,Matrix Scm,Agency Staff,592.8,0,
01-06-2022,RMS,Matrix Scm,Agency Staff,1050.78,0,
01-06-2022,Environment and Sustainable Transport,Matrix Scm,Agency Staff,110.4,0,
01-06-2022,Environment and Sustainable Transport,Matrix Scm,Agency Staff,600.13,0,
01-06-2022,Environment and Sustainable Transport,Matrix Scm,Agency Staff,133.84,0,
01-06-2022,Environment and Sustainable Transport,Matrix Scm,Agency Staff,600.13,0,
01-06-2022,Environment and Sustainable Transport,Matrix Scm,Agency Staff,128.8,0,
01-06-2022,Environment and Sustainable Transport,Matrix Scm,Agency Staff,133.84,0,
01-06-2022,Environment and Sustainable Transport,Matrix Scm,Agency Staff,583.45,0,
01-06-2022,Environment and Sustainable Transport,Matrix Scm,Agency Staff,128.73,0,
01-06-2022,Environment and Sustainable Transport,Matrix Scm,Agency Staff,579.97,0,
01-06-2022,Environment and Sustainable Transport,Matrix Scm,Agency Staff,197.23,0,
01-06-2022,Environment and Sustainable Transport,Matrix Scm,Agency Staff,-172.81,0,
01-06-2022,Environment and Sustainable Transport,Matrix Scm,Agency Staff,120.19,0,
01-06-2022,Environment and Sustainable Transport,Matrix Scm,Agency Staff,-109.97,0,
01-06-2022,Environment and Sustainable Transport,Matrix Scm,Agency Staff,530.27,0,
01-06-2022,Environment and Sustainable Transport,Matrix Scm,Agency Staff,209.9,0,
01-06-2022,Environment and Sustainable Transport,Matrix Scm,Agency Staff,581.76,0,
01-06-2022,Environment and Sustainable Transport,Matrix Scm,Agency Staff,146.31,0,
01-06-2022,Environment and Sustainable Transport,Matrix Scm,Agency Staff,581.76,0,
01-06-2022,Children and Young People,Matrix Scm,Agency Staff,398.37,0,
01-06-2022,Children and Young People,Matrix Scm,Agency Staff,416.75,0,
01-06-2022,Children and Young People,Matrix Scm,Agency Staff,367.6,0,
01-06-2022,Children and Young People,Matrix Scm,Agency Staff,323.2,0,
01-06-2022,Environment and Sustainable Transport,Matrix Scm,Agency Staff,1391.67,0,
01-06-2022,Inclusive Economy & Housing,Matrix Scm,Agency Staff,959.76,0,
01-06-2022,Inclusive Economy & Housing,Matrix Scm,Agency Staff,885.6,0,
01-06-2022,Inclusive Economy & Housing,Matrix Scm,Agency Staff,887.4,0,
01-06-2022,Inclusive Economy & Housing,Matrix Scm,Agency Staff,657.11,0,
01-06-2022,Inclusive Economy & Housing,Matrix Scm,Agency Staff,756.36,0,
01-06-2022,Inclusive Economy & Housing,Matrix Scm,Agency Staff,756.36,0,
01-06-2022,Environment and Sustainable Transport,Matrix Scm,Agency Staff,158.41,0,
01-06-2022,Environment and Sustainable Transport,Matrix Scm,Agency Staff,717.05,0,
01-06-2022,Environment and Sustainable Transport,Matrix Scm,Agency Staff,480.76,0,
01-06-2022,Environment and Sustainable Transport,Matrix Scm,Agency Staff,351.27,0,
01-06-2022,Environment and Sustainable Transport,Matrix Scm,Agency Staff,115.49,0,
01-06-2022,Environment and Sustainable Transport,Matrix Scm,Agency Staff,533.95,0,
01-06-2022,Environment and Sustainable Transport,Matrix Scm,Agency Staff,648.45,0,
01-06-2022,Environment and Sustainable Transport,Matrix Scm,Agency Staff,234.18,0,
01-06-2022,Environment and Sustainable Transport,Matrix Scm,Agency Staff,698.5,0,
01-06-2022,Environment and Sustainable Transport,Matrix Scm,Agency Staff,692.32,0,
01-06-2022,Environment and Sustainable Transport,Matrix Scm,Agency Staff,115.49,0,
01-06-2022,Environment and Sustainable Transport,Matrix Scm,Agency Staff,0,0,
01-06-2022,Environment and Sustainable Transport,Matrix Scm,Agency Staff,533.95,0,
01-06-2022,Environment and Sustainable Transport,Matrix Scm,Agency Staff,530.27,0,
01-06-2022,Environment and Sustainable Transport,Matrix Scm,Agency Staff,702.54,0,
01-06-2022,Environment and Sustainable Transport,Matrix Scm,Agency Staff,441.75,0,
01-06-2022,Environment and Sustainable Transport,Matrix Scm,Agency Staff,127.96,0,
01-06-2022,Environment and Sustainable Transport,Matrix Scm,Agency Staff,127.96,0,
01-06-2022,Environment and Sustainable Transport,Matrix Scm,Agency Staff,468.36,0,
01-06-2022,Environment and Sustainable Transport,Matrix Scm,Agency Staff,164.14,0,
01-06-2022,Environment and Sustainable Transport,Matrix Scm,Agency Staff,717.75,0,
01-06-2022,Environment and Sustainable Transport,Matrix Scm,Agency Staff,164.14,0,
01-06-2022,Environment and Sustainable Transport,Matrix Scm,Agency Staff,712.8,0,
01-06-2022,Environment and Sustainable Transport,Matrix Scm,Agency Staff,143.55,0,
01-06-2022,Environment and Sustainable Transport,Matrix Scm,Agency Staff,530.27,0,
01-06-2022,Environment and Sustainable Transport,Matrix Scm,Agency Staff,640.74,0,
01-06-2022,Environment and Sustainable Transport,Matrix Scm,Agency Staff,164.14,0,
01-06-2022,Environment and Sustainable Transport,Matrix Scm,Agency Staff,717.75,0,
01-06-2022,Environment and Sustainable Transport,Matrix Scm,Agency Staff,581.41,0,
01-06-2022,Inclusive Economy & Housing,Matrix Scm,Agency Staff,978,0,
01-06-2022,Inclusive Economy & Housing,Matrix Scm,Agency Staff,912.8,0,
01-06-2022,Inclusive Economy & Housing,Matrix Scm,Agency Staff,995.76,0,
01-06-2022,Inclusive Economy & Housing,Matrix Scm,Agency Staff,849.96,0,
01-06-2022,Children and Young People,Matrix Scm,Agency Staff,1634.51,0,
01-06-2022,Children and Young People,Matrix Scm,Agency Staff,1686.96,0,
01-06-2022,Children and Young People,Matrix Scm,Agency Staff,1881.36,0,
01-06-2022,Adults & Health,Matrix Scm,Agency Staff,1135.05,0,
01-06-2022,Adults & Health,Matrix Scm,Agency Staff,29.7,0,
01-06-2022,Adults & Health,Matrix Scm,Agency Staff,1181.15,0,
01-06-2022,Adults & Health,Matrix Scm,Agency Staff,1207.46,0,
01-06-2022,Adults & Health,Matrix Scm,Agency Staff,735.5,0,
01-06-2022,Adults & Health,Matrix Scm,Agency Staff,144.24,0,
01-06-2022,Adults & Health,Matrix Scm,Agency Staff,735.5,0,
01-06-2022,Adults & Health,Matrix Scm,Agency Staff,816.67,0,
01-06-2022,Resources,Matrix Scm,Agency Staff,1382.76,0,
01-06-2022,Environment and Sustainable Transport,Matrix Scm,Agency Staff,539.93,0,
01-06-2022,Environment and Sustainable Transport,Matrix Scm,Agency Staff,2168.84,0,
01-06-2022,Environment and Sustainable Transport,Matrix Scm,Agency Staff,2711.05,0,
01-06-2022,Adults & Health,Matrix Scm,Agency Staff,1288,0,
01-06-2022,Adults & Health,Matrix Scm,Agency Staff,1546.91,0,
01-06-2022,Adults & Health,Matrix Scm,Agency Staff,1079.68,0,
01-06-2022,Adults & Health,Matrix Scm,Agency Staff,2084.9,0,
01-06-2022,Adults & Health,Matrix Scm,Agency Staff,549.7,0,
01-06-2022,Adults & Health,Matrix Scm,Agency Staff,208.51,0,
01-06-2022,Adults & Health,Matrix Scm,Agency Staff,2284.45,0,
01-06-2022,Adults & Health,Matrix Scm,Agency Staff,2371.45,0,
01-06-2022,Adults & Health,Matrix Scm,Agency Staff,2068.7,0,
01-06-2022,Adults & Health,Matrix Scm,Agency Staff,567.72,0,
01-06-2022,Adults & Health,Matrix Scm,Agency Staff,771.49,0,
01-06-2022,RMS,Matrix Scm,Agency Staff,105.9,0,
01-06-2022,RMS,Matrix Scm,Agency Staff,788.8,0,
01-06-2022,RMS,Matrix Scm,Agency Staff,668.16,0,
01-06-2022,Environment and Sustainable Transport,Matrix Scm,Agency Staff,617.19,0,
01-06-2022,Environment and Sustainable Transport,Matrix Scm,Agency Staff,1287.91,0,
01-06-2022,Environment and Sustainable Transport,Matrix Scm,Agency Staff,530.27,0,
01-06-2022,Environment and Sustainable Transport,Matrix Scm,Agency Staff,585.66,0,
01-06-2022,Environment and Sustainable Transport,Matrix Scm,Agency Staff,658.3,0,
01-06-2022,Inclusive Economy & Housing,Matrix Scm,Agency Staff,9.45,0,
01-06-2022,Inclusive Economy & Housing,Matrix Scm,Agency Staff,1510.21,0,
01-06-2022,Inclusive Economy & Housing,Matrix Scm,Agency Staff,1521.36,0,
01-06-2022,Children and Young People,Matrix Scm,Agency Staff,410.57,0,
01-06-2022,Children and Young People,Matrix Scm,Agency Staff,325.2,0,
01-06-2022,Children and Young People,Matrix Scm,Agency Staff,341.26,0,
01-06-2022,Children and Young People,Matrix Scm,Agency Staff,323.2,0,
01-06-2022,Children and Young People,Matrix Scm,Agency Staff,455,0,
01-06-2022,Children and Young People,Matrix Scm,Agency Staff,365.85,0,
01-06-2022,Children and Young People,Amegreen Children's Services Limited,Residential Placements - Private Contractors Payment,4340,0,
01-06-2022,Children and Young People,Amegreen Children's Services Limited,Residential Placements - Private Contractors Payment,5952,0,
01-06-2022,Children and Young People,Amegreen Children's Services Limited,Residential Placements - Private Contractors Payment,4340,0,
01-06-2022,Children and Young People,Amegreen Children's Services Limited,Residential Placements - Private Contractors Payment,4340,0,
01-06-2022,Environment and Sustainable Transport,RFW Engineering Ltd,"Purchase - Equipment, Furniture And Materials",1140,0,COMMERCIAL SUPPLIER
01-06-2022,Children and Young People,Early Start Group Ltd,Private Contractors Payment - Other,58282,0,COMMERCIAL SUPPLIER
01-06-2022,Inclusive Economy & Housing,Compass Computer Consultants Limited,Professional Services - General,838.67,0,COMMERCIAL SUPPLIER
01-06-2022,Adults & Health,Personal Information - Redacted,Legal Fees,350,0,INDIVIDUALS
01-06-2022,Children and Young People,C Scarborough,Legal Fees,800,0,COMMERCIAL SUPPLIER
01-06-2022,Children and Young People,Newham Partnership Working Ltd,Professional Services - General,7157,0,VENDOR
01-06-2022,Children and Young People,Personal Information - Redacted,Legal Fees,3584.84,0,COMMERCIAL SUPPLIER
01-06-2022,Children and Young People,Personal Information - Redacted,Legal Fees,680,0,COMMERCIAL SUPPLIER
01-06-2022,Children and Young People,Personal Information - Redacted,Legal Fees,510,0,COMMERCIAL SUPPLIER
01-06-2022,Brighter Futures Director,Healthtap Limited,Consultancy Fees,2905,0,COMMERCIAL SUPPLIER
01-06-2022,Brighter Futures Director,Healthtap Limited,Consultancy Fees,2075,0,COMMERCIAL SUPPLIER
01-06-2022,Brighter Futures Director,Healthtap Limited,Consultancy Fees,3570,0,COMMERCIAL SUPPLIER
01-06-2022,Brighter Futures Director,Healthtap Limited,Consultancy Fees,2550,0,COMMERCIAL SUPPLIER
01-06-2022,Children and Young People,Oak Housing Ltd,Consultancy Fees,3360,0,COMMERCIAL SUPPLIER
01-06-2022,Inclusive Economy & Housing,London Letting & Management Ltd t/a Marlin Apartment,Rents Payable,258808.16,0,COMMERCIAL SUPPLIER
01-06-2022,Children and Young People,Unique Contact and Community Services,Contact Costs (Placements),452.5,0,COMMERCIAL SUPPLIER
01-06-2022,Collection Fund,Greater London Authority,Payment To Other Local Authorities,347725,0,LOCAL AUTHORITY SERVICES
01-06-2022,RMS,Roadmarking Excel Ltd,"Maintenance - Equipment, Furniture And Materials",447.02,0,CIS
01-06-2022,Adults & Health,The Courtney Hotel London Ltd,Rents Payable,3093.86,0,NON COMMERCIAL SUPPLIER
01-06-2022,Adults & Health,The Courtney Hotel London Ltd,Rents Payable,459.73,0,NON COMMERCIAL SUPPLIER
01-06-2022,Children and Young People,adam HTT LTd T/A Adam,Additional Placements - Third Party,224,0,VENDOR
01-06-2022,Children and Young People,adam HTT LTd T/A Adam,Additional Placements - Third Party,202.5,0,VENDOR
01-06-2022,Children and Young People,adam HTT LTd T/A Adam,Additional Placements - Third Party,72,0,VENDOR
01-06-2022,Children and Young People,adam HTT LTd T/A Adam,Additional Placements - Third Party,126,0,VENDOR
01-06-2022,Children and Young People,adam HTT LTd T/A Adam,Additional Placements - Third Party,285,0,VENDOR
01-06-2022,Children and Young People,adam HTT LTd T/A Adam,Additional Placements - Third Party,76.5,0,VENDOR
01-06-2022,Children and Young People,adam HTT LTd T/A Adam,Additional Placements - Third Party,124,0,VENDOR
01-06-2022,Children and Young People,adam HTT LTd T/A Adam,Additional Placements - Third Party,105,0,VENDOR
01-06-2022,Children and Young People,adam HTT LTd T/A Adam,Additional Placements - Third Party,65,0,VENDOR
01-06-2022,Children and Young People,adam HTT LTd T/A Adam,Additional Placements - Third Party,93,0,VENDOR
01-06-2022,Children and Young People,adam HTT LTd T/A Adam,Additional Placements - Third Party,66,0,VENDOR
01-06-2022,Children and Young People,adam HTT LTd T/A Adam,Additional Placements - Third Party,80.94,0,VENDOR
01-06-2022,Children and Young People,adam HTT LTd T/A Adam,Additional Placements - Third Party,232.5,0,VENDOR
01-06-2022,Children and Young People,adam HTT LTd T/A Adam,Additional Placements - Third Party,62,0,VENDOR
01-06-2022,Children and Young People,adam HTT LTd T/A Adam,Additional Placements - Third Party,220,0,VENDOR
01-06-2022,Children and Young People,adam HTT LTd T/A Adam,Additional Placements - Third Party,220,0,VENDOR
01-06-2022,Children and Young People,adam HTT LTd T/A Adam,Additional Placements - Third Party,108,0,VENDOR
01-06-2022,Children and Young People,adam HTT LTd T/A Adam,Additional Placements - Third Party,108,0,VENDOR
01-06-2022,Children and Young People,adam HTT LTd T/A Adam,Additional Placements - Third Party,486,0,VENDOR
01-06-2022,Children and Young People,adam HTT LTd T/A Adam,Additional Placements - Third Party,486,0,VENDOR
01-06-2022,Children and Young People,adam HTT LTd T/A Adam,Additional Placements - Third Party,270,0,VENDOR
01-06-2022,Children and Young People,adam HTT LTd T/A Adam,Additional Placements - Third Party,270,0,VENDOR
01-06-2022,Children and Young People,adam HTT LTd T/A Adam,Additional Placements - Third Party,52.8,0,VENDOR
01-06-2022,Children and Young People,adam HTT LTd T/A Adam,Additional Placements - Third Party,52.8,0,VENDOR
01-06-2022,Children and Young People,adam HTT LTd T/A Adam,Additional Placements - Third Party,132,0,VENDOR
01-06-2022,Children and Young People,adam HTT LTd T/A Adam,Additional Placements - Third Party,1260,0,VENDOR
01-06-2022,Children and Young People,adam HTT LTd T/A Adam,Additional Placements - Third Party,947.36,0,VENDOR
01-06-2022,Children and Young People,adam HTT LTd T/A Adam,Additional Placements - Third Party,1125.85,0,VENDOR
01-06-2022,Children and Young People,adam HTT LTd T/A Adam,Additional Placements - Third Party,248.9,0,VENDOR
01-06-2022,Children and Young People,adam HTT LTd T/A Adam,Additional Placements - Third Party,264.9,0,VENDOR
01-06-2022,Children and Young People,adam HTT LTd T/A Adam,Additional Placements - Third Party,350.6,0,VENDOR
01-06-2022,Children and Young People,adam HTT LTd T/A Adam,Additional Placements - Third Party,70.12,0,VENDOR
01-06-2022,Children and Young People,adam HTT LTd T/A Adam,Additional Placements - Third Party,563.4,0,VENDOR
01-06-2022,Children and Young People,adam HTT LTd T/A Adam,Additional Placements - Third Party,96,0,VENDOR
01-06-2022,Children and Young People,adam HTT LTd T/A Adam,Additional Placements - Third Party,124,0,VENDOR
01-06-2022,Children and Young People,adam HTT LTd T/A Adam,Additional Placements - Third Party,96,0,VENDOR
01-06-2022,Children and Young People,adam HTT LTd T/A Adam,Additional Placements - Third Party,124,0,VENDOR
01-06-2022,Children and Young People,adam HTT LTd T/A Adam,Additional Placements - Third Party,96,0,VENDOR
01-06-2022,Children and Young People,adam HTT LTd T/A Adam,Additional Placements - Third Party,124,0,VENDOR
01-06-2022,Children and Young People,adam HTT LTd T/A Adam,Additional Placements - Third Party,71.7,0,VENDOR
01-06-2022,Children and Young People,adam HTT LTd T/A Adam,Additional Placements - Third Party,71.7,0,VENDOR
01-06-2022,Children and Young People,adam HTT LTd T/A Adam,Additional Placements - Third Party,71.7,0,VENDOR
01-06-2022,Children and Young People,adam HTT LTd T/A Adam,Additional Placements - Third Party,71.7,0,VENDOR
01-06-2022,Children and Young People,adam HTT LTd T/A Adam,Additional Placements - Third Party,122,0,VENDOR
01-06-2022,Children and Young People,adam HTT LTd T/A Adam,Additional Placements - Third Party,122,0,VENDOR
01-06-2022,Children and Young People,adam HTT LTd T/A Adam,Additional Placements - Third Party,119.5,0,VENDOR
01-06-2022,Children and Young People,adam HTT LTd T/A Adam,Additional Placements - Third Party,119.5,0,VENDOR
01-06-2022,Children and Young People,adam HTT LTd T/A Adam,Additional Placements - Third Party,229.5,0,VENDOR
01-06-2022,Children and Young People,adam HTT LTd T/A Adam,Additional Placements - Third Party,229.5,0,VENDOR
01-06-2022,Children and Young People,adam HTT LTd T/A Adam,Additional Placements - Third Party,292.5,0,VENDOR
01-06-2022,Children and Young People,adam HTT LTd T/A Adam,Additional Placements - Third Party,247.5,0,VENDOR
01-06-2022,Children and Young People,adam HTT LTd T/A Adam,Additional Placements - Third Party,116.55,0,VENDOR
01-06-2022,Children and Young People,adam HTT LTd T/A Adam,Additional Placements - Third Party,38.86,0,VENDOR
01-06-2022,Children and Young People,adam HTT LTd T/A Adam,Additional Placements - Third Party,90.65,0,VENDOR
01-06-2022,Children and Young People,adam HTT LTd T/A Adam,Additional Placements - Third Party,64.75,0,VENDOR
01-06-2022,Children and Young People,adam HTT LTd T/A Adam,Additional Placements - Third Party,64.75,0,VENDOR
01-06-2022,Children and Young People,adam HTT LTd T/A Adam,Additional Placements - Third Party,64.75,0,VENDOR
01-06-2022,Children and Young People,adam HTT LTd T/A Adam,Additional Placements - Third Party,64.75,0,VENDOR
01-06-2022,Children and Young People,adam HTT LTd T/A Adam,Additional Placements - Third Party,93,0,VENDOR
01-06-2022,Children and Young People,adam HTT LTd T/A Adam,Additional Placements - Third Party,93,0,VENDOR
01-06-2022,Children and Young People,adam HTT LTd T/A Adam,Additional Placements - Third Party,103.5,0,VENDOR
01-06-2022,Children and Young People,adam HTT LTd T/A Adam,Additional Placements - Third Party,89.65,0,VENDOR
01-06-2022,Children and Young People,adam HTT LTd T/A Adam,Additional Placements - Third Party,75,0,VENDOR
01-06-2022,Children and Young People,adam HTT LTd T/A Adam,Additional Placements - Third Party,75,0,VENDOR
01-06-2022,Children and Young People,adam HTT LTd T/A Adam,Additional Placements - Third Party,68,0,VENDOR
01-06-2022,Children and Young People,adam HTT LTd T/A Adam,Additional Placements - Third Party,122.4,0,VENDOR
01-06-2022,Children and Young People,adam HTT LTd T/A Adam,Additional Placements - Third Party,45.8,0,VENDOR
01-06-2022,Children and Young People,adam HTT LTd T/A Adam,Additional Placements - Third Party,153.46,0,VENDOR
01-06-2022,Children and Young People,adam HTT LTd T/A Adam,Additional Placements - Third Party,153.46,0,VENDOR
01-06-2022,Children and Young People,adam HTT LTd T/A Adam,Additional Placements - Third Party,140,0,VENDOR
01-06-2022,Children and Young People,adam HTT LTd T/A Adam,Additional Placements - Third Party,80,0,VENDOR
01-06-2022,Children and Young People,adam HTT LTd T/A Adam,Additional Placements - Third Party,92,0,VENDOR
01-06-2022,Children and Young People,adam HTT LTd T/A Adam,Additional Placements - Third Party,92,0,VENDOR
01-06-2022,Children and Young People,adam HTT LTd T/A Adam,Additional Placements - Third Party,129.5,0,VENDOR
01-06-2022,Children and Young People,adam HTT LTd T/A Adam,Additional Placements - Third Party,129.5,0,VENDOR
01-06-2022,Children and Young People,adam HTT LTd T/A Adam,Additional Placements - Third Party,62.75,0,VENDOR
01-06-2022,Children and Young People,adam HTT LTd T/A Adam,Additional Placements - Third Party,62.75,0,VENDOR
01-06-2022,Children and Young People,adam HTT LTd T/A Adam,Additional Placements - Third Party,135,0,VENDOR
01-06-2022,Children and Young People,adam HTT LTd T/A Adam,Additional Placements - Third Party,67.5,0,VENDOR
01-06-2022,Children and Young People,adam HTT LTd T/A Adam,Additional Placements - Third Party,65,0,VENDOR
01-06-2022,Children and Young People,adam HTT LTd T/A Adam,Additional Placements - Third Party,52,0,VENDOR
01-06-2022,Children and Young People,adam HTT LTd T/A Adam,Additional Placements - Third Party,106.4,0,VENDOR
01-06-2022,Children and Young People,adam HTT LTd T/A Adam,Additional Placements - Third Party,78,0,VENDOR
01-06-2022,Children and Young People,adam HTT LTd T/A Adam,Additional Placements - Third Party,390,0,VENDOR
01-06-2022,Children and Young People,adam HTT LTd T/A Adam,Additional Placements - Third Party,420,0,VENDOR
01-06-2022,Children and Young People,adam HTT LTd T/A Adam,Additional Placements - Third Party,224,0,VENDOR
01-06-2022,Children and Young People,adam HTT LTd T/A Adam,Additional Placements - Third Party,61.5,0,VENDOR
01-06-2022,Children and Young People,adam HTT LTd T/A Adam,Additional Placements - Third Party,108,0,VENDOR
01-06-2022,Children and Young People,adam HTT LTd T/A Adam,Additional Placements - Third Party,345,0,VENDOR
01-06-2022,Children and Young People,adam HTT LTd T/A Adam,Additional Placements - Third Party,34.8,0,VENDOR
01-06-2022,Children and Young People,adam HTT LTd T/A Adam,Additional Placements - Third Party,1260,0,VENDOR
01-06-2022,Children and Young People,adam HTT LTd T/A Adam,Additional Placements - Third Party,1260,0,VENDOR
01-06-2022,Children and Young People,adam HTT LTd T/A Adam,Additional Placements - Third Party,900,0,VENDOR
01-06-2022,Children and Young People,adam HTT LTd T/A Adam,Additional Placements - Third Party,270,0,VENDOR
01-06-2022,Children and Young People,adam HTT LTd T/A Adam,Additional Placements - Third Party,270,0,VENDOR
01-06-2022,Children and Young People,adam HTT LTd T/A Adam,Additional Placements - Third Party,270,0,VENDOR
01-06-2022,Children and Young People,adam HTT LTd T/A Adam,Additional Placements - Third Party,270,0,VENDOR
01-06-2022,Children and Young People,adam HTT LTd T/A Adam,Additional Placements - Third Party,270,0,VENDOR
01-06-2022,Children and Young People,adam HTT LTd T/A Adam,Additional Placements - Third Party,132,0,VENDOR
01-06-2022,Children and Young People,adam HTT LTd T/A Adam,Additional Placements - Third Party,132,0,VENDOR
01-06-2022,Children and Young People,adam HTT LTd T/A Adam,Additional Placements - Third Party,132,0,VENDOR
01-06-2022,Children and Young People,adam HTT LTd T/A Adam,Additional Placements - Third Party,96,0,VENDOR
01-06-2022,Children and Young People,adam HTT LTd T/A Adam,Additional Placements - Third Party,96,0,VENDOR
01-06-2022,Children and Young People,adam HTT LTd T/A Adam,Additional Placements - Third Party,96,0,VENDOR
01-06-2022,Children and Young People,adam HTT LTd T/A Adam,Additional Placements - Third Party,96,0,VENDOR
01-06-2022,Children and Young People,adam HTT LTd T/A Adam,Additional Placements - Third Party,144,0,VENDOR
01-06-2022,Children and Young People,adam HTT LTd T/A Adam,Additional Placements - Third Party,144,0,VENDOR
01-06-2022,Children and Young People,adam HTT LTd T/A Adam,Additional Placements - Third Party,144,0,VENDOR
01-06-2022,Children and Young People,adam HTT LTd T/A Adam,Additional Placements - Third Party,144,0,VENDOR
01-06-2022,Children and Young People,adam HTT LTd T/A Adam,Additional Placements - Third Party,64,0,VENDOR
01-06-2022,Children and Young People,adam HTT LTd T/A Adam,Additional Placements - Third Party,64,0,VENDOR
01-06-2022,Children and Young People,adam HTT LTd T/A Adam,Additional Placements - Third Party,64,0,VENDOR
01-06-2022,Children and Young People,adam HTT LTd T/A Adam,Additional Placements - Third Party,64,0,VENDOR
01-06-2022,Children and Young People,adam HTT LTd T/A Adam,Additional Placements - Third Party,83.7,0,VENDOR
01-06-2022,Inclusive Economy & Housing,Single Homeless Project,Private Contractors Payment - Other,30000,0,COMMERCIAL SUPPLIER
01-06-2022,Adults & Health,Bluewood Care Ltd,Home Care - Private Contractors Payment,396,0,NON COMMERCIAL SUPPLIER
01-06-2022,Adults & Health,Bluewood Care Ltd,Home Care - Private Contractors Payment,693,0,NON COMMERCIAL SUPPLIER
01-06-2022,Adults & Health,Bluewood Care Ltd,Home Care - Private Contractors Payment,37.5,0,NON COMMERCIAL SUPPLIER
01-06-2022,Adults & Health,Bluewood Care Ltd,Home Care - Private Contractors Payment,693,0,NON COMMERCIAL SUPPLIER
01-06-2022,Adults & Health,Bluewood Care Ltd,Home Care - Private Contractors Payment,39.75,0,NON COMMERCIAL SUPPLIER
01-06-2022,Adults & Health,Bluewood Care Ltd,Home Care - Private Contractors Payment,693,0,NON COMMERCIAL SUPPLIER
01-06-2022,Adults & Health,Bluewood Care Ltd,Home Care - Private Contractors Payment,396,0,NON COMMERCIAL SUPPLIER
01-06-2022,Adults & Health,Bluewood Care Ltd,Home Care - Private Contractors Payment,39.75,0,NON COMMERCIAL SUPPLIER
01-06-2022,RMS,Titon Hardware Ltd,"Purchase - Equipment, Furniture And Materials",390,0,NON COMMERCIAL SUPPLIER
01-06-2022,RMS,Titon Hardware Ltd,"Purchase - Equipment, Furniture And Materials",539,0,NON COMMERCIAL SUPPLIER
01-06-2022,RMS,Titon Hardware Ltd,"Purchase - Equipment, Furniture And Materials",196,0,NON COMMERCIAL SUPPLIER
01-06-2022,RMS,Titon Hardware Ltd,"Purchase - Equipment, Furniture And Materials",156,0,NON COMMERCIAL SUPPLIER
01-06-2022,Housing Revenue Account,Swan Housing Group,Professional Services - General,828596.66,0,VENDOR
01-06-2022,oneSource - Non Shared,W Hardy Ltd,Building Alterations And Materials,285,0,CIS
01-06-2022,oneSource - Non Shared,W Hardy Ltd,Building Alterations And Materials,475,0,CIS
01-06-2022,oneSource - Non Shared,W Hardy Ltd,Premises Hire - Facilities,3750,0,CIS
01-06-2022,oneSource - Non Shared,W Hardy Ltd,Building Alterations And Materials,1630,0,CIS
02-06-2022,Adults & Health,Unique Contact and Community Services,Home Care - Private Contractors Payment,91,0,COMMERCIAL SUPPLIER
02-06-2022,Adults & Health,Unique Contact and Community Services,Daycare - Private Contractors Payment,136.5,0,COMMERCIAL SUPPLIER
02-06-2022,Adults & Health,Unique Contact and Community Services,Home Care - Private Contractors Payment,91,0,COMMERCIAL SUPPLIER
02-06-2022,Adults & Health,Unique Contact and Community Services,Daycare - Private Contractors Payment,136.5,0,COMMERCIAL SUPPLIER
02-06-2022,Adults & Health,Unique Contact and Community Services,Daycare - Private Contractors Payment,136.5,0,COMMERCIAL SUPPLIER
02-06-2022,Adults & Health,Unique Contact and Community Services,Daycare - Private Contractors Payment,136.5,0,COMMERCIAL SUPPLIER
02-06-2022,Adults & Health,Unique Contact and Community Services,Home Care - Private Contractors Payment,91,0,COMMERCIAL SUPPLIER
02-06-2022,Adults & Health,Headway East London,Daycare - Private Contractors Payment,84,0,COMMERCIAL SUPPLIER
02-06-2022,Adults & Health,Headway East London,Daycare - Private Contractors Payment,84,0,COMMERCIAL SUPPLIER
02-06-2022,Adults & Health,Headway East London,Daycare - Private Contractors Payment,84,0,COMMERCIAL SUPPLIER
02-06-2022,Adults & Health,Headway East London,Daycare - Private Contractors Payment,84,0,COMMERCIAL SUPPLIER
02-06-2022,Adults & Health,Kaf Healthcare Training Ltd,Home Care - Private Contractors Payment,131.04,0,VENDOR
02-06-2022,Adults & Health,Kaf Healthcare Training Ltd,Home Care - Private Contractors Payment,336.96,0,VENDOR
02-06-2022,Adults & Health,Kaf Healthcare Training Ltd,Home Care - Private Contractors Payment,42.12,0,VENDOR
02-06-2022,Adults & Health,Kaf Healthcare Training Ltd,Daycare - Private Contractors Payment,37.44,0,VENDOR
02-06-2022,Adults & Health,Kaf Healthcare Training Ltd,Home Care - Private Contractors Payment,18.72,0,VENDOR
02-06-2022,Adults & Health,Kaf Healthcare Training Ltd,Home Care - Private Contractors Payment,131.04,0,VENDOR
02-06-2022,Adults & Health,Kaf Healthcare Training Ltd,Home Care - Private Contractors Payment,294.84,0,VENDOR
02-06-2022,Adults & Health,Kaf Healthcare Training Ltd,Home Care - Private Contractors Payment,131.04,0,VENDOR
02-06-2022,Adults & Health,Kaf Healthcare Training Ltd,Home Care - Private Contractors Payment,294.84,0,VENDOR
02-06-2022,Adults & Health,Kaf Healthcare Training Ltd,Home Care - Private Contractors Payment,294.84,0,VENDOR
02-06-2022,RMS,Travis Perkins Trading Company Ltd,"Purchase - Equipment, Furniture And Materials",14394.63,0,COMMERCIAL SUPPLIER
02-06-2022,RMS,Travis Perkins Trading Company Ltd,"Purchase - Equipment, Furniture And Materials",165551.86,0,COMMERCIAL SUPPLIER
02-06-2022,RMS,Travis Perkins Trading Company Ltd,"Purchase - Equipment, Furniture And Materials",395.75,0,COMMERCIAL SUPPLIER
02-06-2022,RMS,Travis Perkins Trading Company Ltd,"Purchase - Equipment, Furniture And Materials",30953.02,0,COMMERCIAL SUPPLIER
02-06-2022,RMS,Travis Perkins Trading Company Ltd,"Purchase - Equipment, Furniture And Materials",10239.79,0,COMMERCIAL SUPPLIER
02-06-2022,RMS,Travis Perkins Trading Company Ltd,"Purchase - Equipment, Furniture And Materials",2985.35,0,COMMERCIAL SUPPLIER
02-06-2022,RMS,Travis Perkins Trading Company Ltd,"Purchase - Equipment, Furniture And Materials",4280.97,0,COMMERCIAL SUPPLIER
02-06-2022,RMS,Travis Perkins Trading Company Ltd,"Purchase - Equipment, Furniture And Materials",12293.2,0,COMMERCIAL SUPPLIER
02-06-2022,RMS,Travis Perkins Trading Company Ltd,"Purchase - Equipment, Furniture And Materials",3460.67,0,COMMERCIAL SUPPLIER
02-06-2022,RMS,Travis Perkins Trading Company Ltd,"Purchase - Equipment, Furniture And Materials",255.63,0,COMMERCIAL SUPPLIER
02-06-2022,RMS,Travis Perkins Trading Company Ltd,"Purchase - Equipment, Furniture And Materials",2479.09,0,COMMERCIAL SUPPLIER
02-06-2022,oneSource - Non Shared,W Hardy Ltd,Building Alterations And Materials,2730,0,CIS
02-06-2022,Brighter Futures Director,W Hardy Ltd,Building Alterations And Materials,930,0,CIS
02-06-2022,Children and Young People,W Hardy Ltd,Building Alterations And Materials,760,0,CIS
02-06-2022,Children and Young People,W Hardy Ltd,Building Alterations And Materials,325,0,CIS
02-06-2022,Children and Young People,W Hardy Ltd,Building Alterations And Materials,720,0,CIS
02-06-2022,Children and Young People,W Hardy Ltd,Building Alterations And Materials,730,0,CIS
03-06-2022,Brighter Futures Director,Lavender Health & Social Care Limited,Agency Staff,18173.52,0,COMMERCIAL SUPPLIER
03-06-2022,Brighter Futures Director,Lavender Health & Social Care Limited,Agency Staff,4728.6,0,COMMERCIAL SUPPLIER
03-06-2022,Environment and Sustainable Transport,Smart Platform Rental Ltd,Vehicle Hire,375,0,COMMERCIAL SUPPLIER
03-06-2022,Children and Young People,Personal Information - Redacted,Ict Software,76.66,0,Employee
03-06-2022,Children and Young People,Personal Information - Redacted,Ict Software,6.66,0,Employee
04-06-2022,Environment and Sustainable Transport,Archant Community Media Limited,"Advertising, Publicity And Marketing",1006.7,0,NON COMMERCIAL SUPPLIER
04-06-2022,Environment and Sustainable Transport,Archant Community Media Limited,"Advertising, Publicity And Marketing",486.44,0,NON COMMERCIAL SUPPLIER
04-06-2022,Environment and Sustainable Transport,Archant Community Media Limited,"Advertising, Publicity And Marketing",606.5,0,NON COMMERCIAL SUPPLIER
04-06-2022,Inclusive Economy & Housing,Archant Community Media Limited,"Advertising, Publicity And Marketing",221.2,0,NON COMMERCIAL SUPPLIER
04-06-2022,"People, Policy and Performance",Centre Stage,Events,250,0,COMMERCIAL SUPPLIER
04-06-2022,"People, Policy and Performance",Centre Stage,Events,250,0,COMMERCIAL SUPPLIER
05-06-2022,RMS,cer Financial Ltd,Agency Staff,360,0,COMMERCIAL SUPPLIER
05-06-2022,RMS,cer Financial Ltd,Agency Staff,360,0,COMMERCIAL SUPPLIER
05-06-2022,RMS,cer Financial Ltd,Agency Staff,360,0,COMMERCIAL SUPPLIER
05-06-2022,RMS,cer Financial Ltd,Agency Staff,360,0,COMMERCIAL SUPPLIER
05-06-2022,RMS,cer Financial Ltd,Agency Staff,360,0,COMMERCIAL SUPPLIER
05-06-2022,RMS,cer Financial Ltd,Agency Staff,400,0,COMMERCIAL SUPPLIER
05-06-2022,RMS,cer Financial Ltd,Agency Staff,775,0,COMMERCIAL SUPPLIER
05-06-2022,RMS,cer Financial Ltd,Private Contractors Payment - Other,360,0,COMMERCIAL SUPPLIER
05-06-2022,RMS,cer Financial Ltd,Private Contractors Payment - Other,360,0,COMMERCIAL SUPPLIER
05-06-2022,RMS,cer Financial Ltd,Private Contractors Payment - Other,360,0,COMMERCIAL SUPPLIER
05-06-2022,RMS,cer Financial Ltd,Private Contractors Payment - Other,360,0,COMMERCIAL SUPPLIER
05-06-2022,RMS,cer Financial Ltd,Private Contractors Payment - Other,360,0,COMMERCIAL SUPPLIER
05-06-2022,RMS,cer Financial Ltd,Private Contractors Payment - Other,260,0,COMMERCIAL SUPPLIER
05-06-2022,RMS,cer Financial Ltd,Private Contractors Payment - Other,360,0,COMMERCIAL SUPPLIER
05-06-2022,"People, Policy and Performance",Centre Stage,Events,250,0,COMMERCIAL SUPPLIER
05-06-2022,"People, Policy and Performance",Centre Stage,Events,250,0,COMMERCIAL SUPPLIER
05-06-2022,Children and Young People,Phillips & Gupta Ltd,Legal Fees,2205,0,LEGAL SERVICES
05-06-2022,Children and Young People,Gendered Intelligence,Private Contractors Payment - Other,600,0,COMMERCIAL SUPPLIER
05-06-2022,"People, Policy and Performance",Personal Information - Redacted,Events,3375,0,COMMERCIAL SUPPLIER
05-06-2022,Adults & Health,Personal Information - Redacted,Day Care Income,-16.2,0,INDIVIDUALS
05-06-2022,Adults & Health,Personal Information - Redacted,Day Care Income,-16.2,0,INDIVIDUALS
05-06-2022,Adults & Health,Personal Information - Redacted,Day Care Income,-16.2,0,INDIVIDUALS
05-06-2022,Adults & Health,Personal Information - Redacted,Day Care Income,-16.2,0,INDIVIDUALS
05-06-2022,Adults & Health,Personal Information - Redacted,Day Care Income,-85.6,0,INDIVIDUALS
05-06-2022,Adults & Health,Personal Information - Redacted,Day Care Income,-85.6,0,INDIVIDUALS
05-06-2022,Adults & Health,Personal Information - Redacted,Day Care Income,-85.6,0,INDIVIDUALS
05-06-2022,Adults & Health,Personal Information - Redacted,Day Care Income,-85.6,0,INDIVIDUALS
05-06-2022,Adults & Health,Personal Information - Redacted,Day Care Income,-12.15,0,FOSTER CARERS
05-06-2022,Adults & Health,Personal Information - Redacted,Day Care Income,-12.15,0,FOSTER CARERS
05-06-2022,Adults & Health,Personal Information - Redacted,Day Care Income,-12.15,0,FOSTER CARERS
05-06-2022,Adults & Health,Personal Information - Redacted,Day Care Income,-12.15,0,FOSTER CARERS
05-06-2022,Adults & Health,Personal Information - Redacted,Respite Care - Private Contractors Payment,790.33,0,INDIVIDUALS
05-06-2022,Adults & Health,Personal Information - Redacted,Respite Care - Private Contractors Payment,790.33,0,INDIVIDUALS
05-06-2022,Adults & Health,Personal Information - Redacted,Respite Care - Private Contractors Payment,790.33,0,INDIVIDUALS
05-06-2022,Adults & Health,Personal Information - Redacted,Respite Care - Private Contractors Payment,790.33,0,INDIVIDUALS
05-06-2022,Adults & Health,Personal Information - Redacted,Day Care Income,-6.34,0,FOSTER CARERS
05-06-2022,Adults & Health,Personal Information - Redacted,Day Care Income,-6.34,0,FOSTER CARERS
05-06-2022,Adults & Health,Personal Information - Redacted,Day Care Income,-6.34,0,FOSTER CARERS
05-06-2022,Adults & Health,Personal Information - Redacted,Day Care Income,-6.34,0,FOSTER CARERS
05-06-2022,Adults & Health,Personal Information - Redacted,Day Care Income,-16.2,0,INDIVIDUALS
05-06-2022,Adults & Health,Personal Information - Redacted,Day Care Income,-16.2,0,INDIVIDUALS
05-06-2022,Adults & Health,Personal Information - Redacted,Day Care Income,-16.2,0,INDIVIDUALS
05-06-2022,Adults & Health,Personal Information - Redacted,Day Care Income,-16.2,0,INDIVIDUALS
05-06-2022,Adults & Health,Personal Information - Redacted,Day Care Income,-5.85,0,FOSTER CARERS
05-06-2022,Adults & Health,Personal Information - Redacted,Day Care Income,-5.85,0,FOSTER CARERS
05-06-2022,Adults & Health,Personal Information - Redacted,Day Care Income,-5.85,0,FOSTER CARERS
05-06-2022,Adults & Health,Personal Information - Redacted,Day Care Income,-5.85,0,FOSTER CARERS
05-06-2022,Adults & Health,Personal Information - Redacted,Respite Care - Private Contractors Payment,2300,0,INDIVIDUALS
05-06-2022,Adults & Health,Personal Information - Redacted,Day Care Income,-33.9,0,INDIVIDUALS
05-06-2022,Adults & Health,Personal Information - Redacted,Day Care Income,-33.9,0,INDIVIDUALS
05-06-2022,Adults & Health,Personal Information - Redacted,Day Care Income,-33.9,0,INDIVIDUALS
05-06-2022,Adults & Health,Personal Information - Redacted,Day Care Income,-33.9,0,INDIVIDUALS
05-06-2022,Adults & Health,Personal Information - Redacted,Day Care Income,-30.65,0,FOSTER CARERS
05-06-2022,Adults & Health,Personal Information - Redacted,Day Care Income,-30.65,0,FOSTER CARERS
05-06-2022,Adults & Health,Personal Information - Redacted,Day Care Income,-30.65,0,FOSTER CARERS
05-06-2022,Adults & Health,Personal Information - Redacted,Day Care Income,-30.65,0,FOSTER CARERS
05-06-2022,Adults & Health,Personal Information - Redacted,Day Care Income,-17.57,0,INDIVIDUALS
05-06-2022,Adults & Health,Personal Information - Redacted,Day Care Income,-17.57,0,INDIVIDUALS
05-06-2022,Adults & Health,Personal Information - Redacted,Day Care Income,-17.57,0,INDIVIDUALS
05-06-2022,Adults & Health,Personal Information - Redacted,Day Care Income,-17.57,0,INDIVIDUALS
05-06-2022,Adults & Health,Personal Information - Redacted,Day Care Income,-8,0,INDIVIDUALS
05-06-2022,Adults & Health,Personal Information - Redacted,Day Care Income,-8,0,INDIVIDUALS
05-06-2022,Adults & Health,Personal Information - Redacted,Day Care Income,-8,0,INDIVIDUALS
05-06-2022,Adults & Health,Personal Information - Redacted,Day Care Income,-8,0,INDIVIDUALS
05-06-2022,Adults & Health,Personal Information - Redacted,Day Care Income,-300,0,INDIVIDUALS
05-06-2022,Adults & Health,Personal Information - Redacted,Day Care Income,-300,0,INDIVIDUALS
05-06-2022,Adults & Health,Personal Information - Redacted,Day Care Income,-300,0,INDIVIDUALS
05-06-2022,Adults & Health,Personal Information - Redacted,Day Care Income,-300,0,INDIVIDUALS
05-06-2022,Adults & Health,Personal Information - Redacted,Day Care Income,-5.2,0,INDIVIDUALS
05-06-2022,Adults & Health,Personal Information - Redacted,Day Care Income,-5.2,0,INDIVIDUALS
05-06-2022,Adults & Health,Personal Information - Redacted,Day Care Income,-5.2,0,INDIVIDUALS
05-06-2022,Adults & Health,Personal Information - Redacted,Day Care Income,-5.2,0,INDIVIDUALS
05-06-2022,Adults & Health,Personal Information - Redacted,Day Care Income,-85.91,0,INDIVIDUALS
05-06-2022,Children and Young People,Personal Information - Redacted,Kinship Placement - Private Contractors Payment,300,0,INDIVIDUALS
05-06-2022,Adults & Health,Personal Information - Redacted,Day Care Income,-41.92,0,FOSTER CARERS
05-06-2022,Adults & Health,Personal Information - Redacted,Day Care Income,-41.92,0,FOSTER CARERS
05-06-2022,Adults & Health,Personal Information - Redacted,Day Care Income,-41.92,0,FOSTER CARERS
05-06-2022,Adults & Health,Personal Information - Redacted,Day Care Income,-41.92,0,FOSTER CARERS
05-06-2022,Adults & Health,Personal Information - Redacted,Day Care Income,-13.16,0,FOSTER CARERS
05-06-2022,Adults & Health,Personal Information - Redacted,Day Care Income,-13.16,0,FOSTER CARERS
05-06-2022,Adults & Health,Personal Information - Redacted,Day Care Income,-13.16,0,FOSTER CARERS
05-06-2022,Adults & Health,Personal Information - Redacted,Day Care Income,-13.16,0,FOSTER CARERS
05-06-2022,Children and Young People,Personal Information - Redacted,Payment To Private Sector Landlords (Psl),875,0,INDIVIDUALS
05-06-2022,Children and Young People,Personal Information - Redacted,Payment To Private Sector Landlords (Psl),675,0,INDIVIDUALS
05-06-2022,Adults & Health,Personal Information - Redacted,Day Care Income,-86.36,0,INDIVIDUALS
05-06-2022,Adults & Health,Personal Information - Redacted,Day Care Income,-4.71,0,INDIVIDUALS
05-06-2022,Adults & Health,Personal Information - Redacted,Day Care Income,-4.71,0,INDIVIDUALS
05-06-2022,Adults & Health,Personal Information - Redacted,Day Care Income,-4.71,0,INDIVIDUALS
05-06-2022,Adults & Health,Personal Information - Redacted,Day Care Income,-12.15,0,INDIVIDUALS
05-06-2022,Adults & Health,Personal Information - Redacted,Day Care Income,-12.15,0,INDIVIDUALS
05-06-2022,Adults & Health,Personal Information - Redacted,Day Care Income,-12.15,0,INDIVIDUALS
05-06-2022,Adults & Health,Personal Information - Redacted,Day Care Income,-12.15,0,INDIVIDUALS
05-06-2022,Children and Young People,Personal Information - Redacted,Payment To Private Sector Landlords (Psl),675,0,INDIVIDUALS
05-06-2022,Adults & Health,Personal Information - Redacted,Day Care Income,-10.15,0,INDIVIDUALS
05-06-2022,Adults & Health,Personal Information - Redacted,Day Care Income,-10.15,0,INDIVIDUALS
05-06-2022,Adults & Health,Personal Information - Redacted,Day Care Income,-10.15,0,INDIVIDUALS
05-06-2022,Adults & Health,Personal Information - Redacted,Day Care Income,-10.15,0,INDIVIDUALS
05-06-2022,Adults & Health,Personal Information - Redacted,Day Care Income,-47.14,0,INDIVIDUALS
05-06-2022,Adults & Health,Personal Information - Redacted,Day Care Income,-47.14,0,INDIVIDUALS
05-06-2022,Adults & Health,Personal Information - Redacted,Day Care Income,-47.14,0,INDIVIDUALS
05-06-2022,Adults & Health,Personal Information - Redacted,Day Care Income,-47.14,0,INDIVIDUALS
05-06-2022,Adults & Health,Personal Information - Redacted,Day Care Income,-31.7,0,INDIVIDUALS
05-06-2022,Adults & Health,Personal Information - Redacted,Day Care Income,-31.7,0,INDIVIDUALS
05-06-2022,Adults & Health,Personal Information - Redacted,Day Care Income,-31.7,0,INDIVIDUALS
05-06-2022,Adults & Health,Personal Information - Redacted,Day Care Income,-31.7,0,INDIVIDUALS
05-06-2022,Adults & Health,Vibrance,Day Care Income,-59.08,0,VOLUNTARY ORGANISATION
05-06-2022,Adults & Health,Vibrance,Day Care Income,-59.08,0,VOLUNTARY ORGANISATION
05-06-2022,Adults & Health,Vibrance,Day Care Income,-59.08,0,VOLUNTARY ORGANISATION
05-06-2022,Adults & Health,Vibrance,Day Care Income,-59.08,0,VOLUNTARY ORGANISATION
05-06-2022,Adults & Health,Personal Information - Redacted,Day Care Income,-162,0,FOSTER CARERS
05-06-2022,Adults & Health,Personal Information - Redacted,Day Care Income,-70.19,0,FOSTER CARERS
05-06-2022,Adults & Health,Personal Information - Redacted,Day Care Income,-70.19,0,FOSTER CARERS
05-06-2022,Adults & Health,Personal Information - Redacted,Day Care Income,-70.19,0,FOSTER CARERS
05-06-2022,Adults & Health,Personal Information - Redacted,Day Care Income,-70.19,0,FOSTER CARERS
05-06-2022,Adults & Health,Personal Information - Redacted,Day Care Income,-12.15,0,INDIVIDUALS
05-06-2022,Adults & Health,Personal Information - Redacted,Day Care Income,-12.15,0,INDIVIDUALS
05-06-2022,Adults & Health,Personal Information - Redacted,Day Care Income,-12.15,0,INDIVIDUALS
05-06-2022,Adults & Health,Personal Information - Redacted,Day Care Income,-12.15,0,INDIVIDUALS
05-06-2022,Adults & Health,Personal Information - Redacted,Day Care Income,-36.75,0,INDIVIDUALS
05-06-2022,Adults & Health,Personal Information - Redacted,Day Care Income,-36.75,0,INDIVIDUALS
05-06-2022,Adults & Health,Personal Information - Redacted,Day Care Income,-36.75,0,INDIVIDUALS
05-06-2022,Adults & Health,Personal Information - Redacted,Day Care Income,-36.75,0,INDIVIDUALS
05-06-2022,Adults & Health,Personal Information - Redacted,Day Care Income,-20.52,0,FOSTER CARERS
05-06-2022,Adults & Health,Personal Information - Redacted,Day Care Income,-20.52,0,FOSTER CARERS
05-06-2022,Adults & Health,Personal Information - Redacted,Day Care Income,-20.52,0,FOSTER CARERS
05-06-2022,Adults & Health,Personal Information - Redacted,Day Care Income,-20.52,0,FOSTER CARERS
05-06-2022,Adults & Health,Personal Information - Redacted,Day Care Income,-24.75,0,INDIVIDUALS
05-06-2022,Adults & Health,Personal Information - Redacted,Day Care Income,-24.75,0,INDIVIDUALS
05-06-2022,Adults & Health,Personal Information - Redacted,Day Care Income,-24.75,0,INDIVIDUALS
05-06-2022,Adults & Health,Personal Information - Redacted,Day Care Income,-24.75,0,INDIVIDUALS
05-06-2022,Adults & Health,Personal Information - Redacted,Day Care Income,-18.96,0,INDIVIDUALS
05-06-2022,Adults & Health,Personal Information - Redacted,Day Care Income,-18.96,0,INDIVIDUALS
05-06-2022,Adults & Health,Personal Information - Redacted,Day Care Income,-18.96,0,INDIVIDUALS
05-06-2022,Adults & Health,Personal Information - Redacted,Day Care Income,-18.96,0,INDIVIDUALS
05-06-2022,Children and Young People,Personal Information - Redacted,Kinship Placement - Private Contractors Payment,300,0,INDIVIDUALS
05-06-2022,Adults & Health,Personal Information - Redacted,Day Care Income,-5.9,0,INDIVIDUALS
05-06-2022,Adults & Health,Personal Information - Redacted,Day Care Income,-5.9,0,INDIVIDUALS
05-06-2022,Adults & Health,Personal Information - Redacted,Day Care Income,-5.9,0,INDIVIDUALS
05-06-2022,Adults & Health,Personal Information - Redacted,Day Care Income,-5.9,0,INDIVIDUALS
05-06-2022,Adults & Health,Personal Information - Redacted,Day Care Income,-20.02,0,INDIVIDUALS
05-06-2022,Adults & Health,Personal Information - Redacted,Day Care Income,-20.02,0,INDIVIDUALS
05-06-2022,Adults & Health,Personal Information - Redacted,Day Care Income,-20.02,0,INDIVIDUALS
05-06-2022,Adults & Health,Personal Information - Redacted,Day Care Income,-20.02,0,INDIVIDUALS
05-06-2022,Adults & Health,Personal Information - Redacted,Day Care Income,-22.16,0,FOSTER CARERS
05-06-2022,Adults & Health,Personal Information - Redacted,Day Care Income,-22.16,0,FOSTER CARERS
05-06-2022,Adults & Health,Personal Information - Redacted,Day Care Income,-22.16,0,FOSTER CARERS
05-06-2022,Adults & Health,Personal Information - Redacted,Day Care Income,-22.16,0,FOSTER CARERS
05-06-2022,Adults & Health,Personal Information - Redacted,Day Care Income,-1146.4,0,INDIVIDUALS
05-06-2022,Adults & Health,Personal Information - Redacted,Day Care Income,-44.66,0,INDIVIDUALS
05-06-2022,Adults & Health,Personal Information - Redacted,Day Care Income,-44.66,0,INDIVIDUALS
05-06-2022,Adults & Health,Personal Information - Redacted,Day Care Income,-44.66,0,INDIVIDUALS
05-06-2022,Adults & Health,Personal Information - Redacted,Day Care Income,-24.75,0,INDIVIDUALS
05-06-2022,Adults & Health,Personal Information - Redacted,Day Care Income,-24.75,0,INDIVIDUALS
05-06-2022,Adults & Health,Personal Information - Redacted,Day Care Income,-24.75,0,INDIVIDUALS
05-06-2022,Adults & Health,Personal Information - Redacted,Day Care Income,-24.75,0,INDIVIDUALS
05-06-2022,Adults & Health,Personal Information - Redacted,Day Care Income,-75.82,0,INDIVIDUALS
05-06-2022,Adults & Health,Personal Information - Redacted,Day Care Income,-75.82,0,INDIVIDUALS
05-06-2022,Adults & Health,Personal Information - Redacted,Day Care Income,-75.82,0,INDIVIDUALS
05-06-2022,Adults & Health,Personal Information - Redacted,Day Care Income,-75.82,0,INDIVIDUALS
05-06-2022,Adults & Health,Personal Information - Redacted,Day Care Income,-55.11,0,INDIVIDUALS
05-06-2022,Adults & Health,Personal Information - Redacted,Day Care Income,-55.11,0,INDIVIDUALS
05-06-2022,Adults & Health,Personal Information - Redacted,Day Care Income,-55.11,0,INDIVIDUALS
05-06-2022,Adults & Health,Personal Information - Redacted,Day Care Income,-55.11,0,INDIVIDUALS
05-06-2022,Children and Young People,Personal Information - Redacted,Kinship Placement - Private Contractors Payment,300,0,INDIVIDUALS
05-06-2022,Children and Young People,Personal Information - Redacted,Kinship Placement - Private Contractors Payment,300,0,INDIVIDUALS
05-06-2022,Adults & Health,Personal Information - Redacted,Day Care Income,-31.05,0,NON COMMERCIAL SUPPLIER
05-06-2022,Adults & Health,Personal Information - Redacted,Day Care Income,-31.05,0,NON COMMERCIAL SUPPLIER
05-06-2022,Adults & Health,Personal Information - Redacted,Day Care Income,-31.05,0,NON COMMERCIAL SUPPLIER
05-06-2022,Adults & Health,Personal Information - Redacted,Day Care Income,-31.05,0,NON COMMERCIAL SUPPLIER
05-06-2022,Adults & Health,Personal Information - Redacted,Day Care Income,-34.75,0,INDIVIDUALS
05-06-2022,Adults & Health,Personal Information - Redacted,Day Care Income,-34.75,0,INDIVIDUALS
05-06-2022,Adults & Health,Personal Information - Redacted,Day Care Income,-34.75,0,INDIVIDUALS
05-06-2022,Adults & Health,Personal Information - Redacted,Day Care Income,-34.75,0,INDIVIDUALS
05-06-2022,Adults & Health,Personal Information - Redacted,Day Care Income,-4.97,0,INDIVIDUALS
05-06-2022,Adults & Health,Personal Information - Redacted,Day Care Income,-4.97,0,INDIVIDUALS
05-06-2022,Adults & Health,Personal Information - Redacted,Day Care Income,-4.97,0,INDIVIDUALS
05-06-2022,Adults & Health,Personal Information - Redacted,Day Care Income,-4.97,0,INDIVIDUALS
05-06-2022,Adults & Health,Personal Information - Redacted,Day Care Income,-24.75,0,INDIVIDUALS
05-06-2022,Adults & Health,Personal Information - Redacted,Day Care Income,-24.75,0,INDIVIDUALS
05-06-2022,Adults & Health,Personal Information - Redacted,Day Care Income,-24.75,0,INDIVIDUALS
05-06-2022,Adults & Health,Personal Information - Redacted,Day Care Income,-24.75,0,INDIVIDUALS
05-06-2022,Adults & Health,Personal Information - Redacted,Day Care Income,-34.18,0,INDIVIDUALS
05-06-2022,Adults & Health,Personal Information - Redacted,Day Care Income,-34.18,0,INDIVIDUALS
05-06-2022,Adults & Health,Personal Information - Redacted,Day Care Income,-34.18,0,INDIVIDUALS
05-06-2022,Adults & Health,Personal Information - Redacted,Day Care Income,-34.18,0,INDIVIDUALS
05-06-2022,Adults & Health,Personal Information - Redacted,Day Care Income,-45.06,0,FOSTER CARERS
05-06-2022,Adults & Health,Personal Information - Redacted,Day Care Income,-9.78,0,FOSTER CARERS
05-06-2022,Adults & Health,Personal Information - Redacted,Day Care Income,-8.66,0,INDIVIDUALS
05-06-2022,Adults & Health,Personal Information - Redacted,Day Care Income,-9.78,0,FOSTER CARERS
05-06-2022,Adults & Health,Personal Information - Redacted,Day Care Income,-8.66,0,INDIVIDUALS
05-06-2022,Adults & Health,Personal Information - Redacted,Day Care Income,-9.78,0,FOSTER CARERS
05-06-2022,Adults & Health,Personal Information - Redacted,Day Care Income,-45.06,0,FOSTER CARERS
05-06-2022,Adults & Health,Personal Information - Redacted,Day Care Income,-8.66,0,INDIVIDUALS
05-06-2022,Adults & Health,Personal Information - Redacted,Day Care Income,-45.06,0,FOSTER CARERS
05-06-2022,Adults & Health,Personal Information - Redacted,Day Care Income,-45.06,0,FOSTER CARERS
05-06-2022,Adults & Health,Personal Information - Redacted,Day Care Income,-8.66,0,INDIVIDUALS
05-06-2022,Adults & Health,Personal Information - Redacted,Day Care Income,-9.78,0,FOSTER CARERS
05-06-2022,Adults & Health,Personal Information - Redacted,Day Care Income,-5.9,0,FOSTER CARERS
05-06-2022,Adults & Health,Personal Information - Redacted,Day Care Income,-58.39,0,INDIVIDUALS
05-06-2022,Adults & Health,Personal Information - Redacted,Day Care Income,-10.33,0,INDIVIDUALS
05-06-2022,Adults & Health,Personal Information - Redacted,Day Care Income,-105.44,0,INDIVIDUALS
05-06-2022,Adults & Health,Personal Information - Redacted,Day Care Income,-5.9,0,FOSTER CARERS
05-06-2022,Adults & Health,Personal Information - Redacted,Day Care Income,-58.39,0,INDIVIDUALS
05-06-2022,Adults & Health,Personal Information - Redacted,Day Care Income,-10.33,0,INDIVIDUALS
05-06-2022,Adults & Health,Personal Information - Redacted,Day Care Income,-5.5,0,INDIVIDUALS
05-06-2022,Adults & Health,Personal Information - Redacted,Day Care Income,-25.95,0,INDIVIDUALS
05-06-2022,Adults & Health,Personal Information - Redacted,Day Care Income,-36.05,0,FOSTER CARERS
05-06-2022,Adults & Health,Personal Information - Redacted,Day Care Income,-58.39,0,INDIVIDUALS
05-06-2022,Adults & Health,Personal Information - Redacted,Day Care Income,-10.33,0,INDIVIDUALS
05-06-2022,Adults & Health,Personal Information - Redacted,Day Care Income,-105.44,0,INDIVIDUALS
05-06-2022,Adults & Health,Personal Information - Redacted,Day Care Income,-28.85,0,FOSTER CARERS
05-06-2022,Adults & Health,Personal Information - Redacted,Day Care Income,-5.5,0,INDIVIDUALS
05-06-2022,Adults & Health,Personal Information - Redacted,Day Care Income,-25.95,0,INDIVIDUALS
05-06-2022,Adults & Health,Personal Information - Redacted,Day Care Income,-36.05,0,FOSTER CARERS
05-06-2022,Adults & Health,Personal Information - Redacted,Day Care Income,-58.39,0,INDIVIDUALS
05-06-2022,Adults & Health,Personal Information - Redacted,Day Care Income,-28.85,0,FOSTER CARERS
05-06-2022,Adults & Health,Personal Information - Redacted,Day Care Income,-5.5,0,INDIVIDUALS
05-06-2022,Adults & Health,Personal Information - Redacted,Day Care Income,-51.7,0,INDIVIDUALS
05-06-2022,Adults & Health,Personal Information - Redacted,Day Care Income,-25.95,0,INDIVIDUALS
05-06-2022,Adults & Health,Personal Information - Redacted,Day Care Income,-28.85,0,FOSTER CARERS
05-06-2022,Adults & Health,Personal Information - Redacted,Day Care Income,-5.5,0,INDIVIDUALS
05-06-2022,Adults & Health,Personal Information - Redacted,Day Care Income,-51.7,0,INDIVIDUALS
05-06-2022,Adults & Health,Personal Information - Redacted,Day Care Income,-25.95,0,INDIVIDUALS
05-06-2022,Adults & Health,Personal Information - Redacted,Day Care Income,-36.05,0,FOSTER CARERS
05-06-2022,Adults & Health,Personal Information - Redacted,Respite Care - Private Contractors Payment,458.77,0,FOSTER CARERS
05-06-2022,Adults & Health,Personal Information - Redacted,Day Care Income,-51.7,0,INDIVIDUALS
05-06-2022,Adults & Health,Personal Information - Redacted,Day Care Income,-105.44,0,INDIVIDUALS
05-06-2022,Adults & Health,Personal Information - Redacted,Day Care Income,-36.05,0,FOSTER CARERS
05-06-2022,Adults & Health,Personal Information - Redacted,Day Care Income,-25.95,0,FOSTER CARERS
05-06-2022,Adults & Health,Personal Information - Redacted,Day Care Income,-59.08,0,INDIVIDUALS
05-06-2022,Adults & Health,Personal Information - Redacted,Day Care Income,-51.7,0,INDIVIDUALS
05-06-2022,Adults & Health,Personal Information - Redacted,Day Care Income,-105.44,0,INDIVIDUALS
05-06-2022,Adults & Health,Personal Information - Redacted,Day Care Income,-28.85,0,FOSTER CARERS
05-06-2022,Adults & Health,Personal Information - Redacted,Day Care Income,-25.95,0,FOSTER CARERS
05-06-2022,Adults & Health,Personal Information - Redacted,Day Care Income,-59.08,0,INDIVIDUALS
05-06-2022,Adults & Health,Personal Information - Redacted,Day Care Income,-5.9,0,FOSTER CARERS
05-06-2022,Adults & Health,Personal Information - Redacted,Day Care Income,-25.95,0,FOSTER CARERS
05-06-2022,Adults & Health,Personal Information - Redacted,Day Care Income,-59.08,0,INDIVIDUALS
05-06-2022,Adults & Health,Personal Information - Redacted,Day Care Income,-5.9,0,FOSTER CARERS
05-06-2022,Adults & Health,Personal Information - Redacted,Day Care Income,-10.33,0,INDIVIDUALS
05-06-2022,Adults & Health,Personal Information - Redacted,Day Care Income,-25.95,0,FOSTER CARERS
05-06-2022,Adults & Health,Personal Information - Redacted,Day Care Income,-59.08,0,INDIVIDUALS
05-06-2022,Adults & Health,Personal Information - Redacted,Respite Care - Private Contractors Payment,490.25,0,FOSTER CARERS
05-06-2022,Adults & Health,Personal Information - Redacted,Day Care Income,-51.84,0,INDIVIDUALS
05-06-2022,Adults & Health,Personal Information - Redacted,Day Care Income,-5.9,0,FOSTER CARERS
05-06-2022,Adults & Health,Personal Information - Redacted,Day Care Income,-51.84,0,INDIVIDUALS
05-06-2022,Adults & Health,Personal Information - Redacted,Day Care Income,-8.96,0,INDIVIDUALS
05-06-2022,Adults & Health,Personal Information - Redacted,Day Care Income,-5.9,0,FOSTER CARERS
05-06-2022,Adults & Health,Personal Information - Redacted,Day Care Income,-59.15,0,INDIVIDUALS
05-06-2022,Adults & Health,Personal Information - Redacted,Day Care Income,-51.84,0,INDIVIDUALS
05-06-2022,Adults & Health,Personal Information - Redacted,Day Care Income,-8.96,0,INDIVIDUALS
05-06-2022,Adults & Health,Personal Information - Redacted,Day Care Income,-59.15,0,INDIVIDUALS
05-06-2022,Adults & Health,Personal Information - Redacted,Day Care Income,-51.84,0,INDIVIDUALS
05-06-2022,Adults & Health,Personal Information - Redacted,Day Care Income,-59.15,0,INDIVIDUALS
05-06-2022,Adults & Health,Personal Information - Redacted,Day Care Income,-8.96,0,INDIVIDUALS
05-06-2022,Adults & Health,Personal Information - Redacted,Day Care Income,-8.96,0,INDIVIDUALS
05-06-2022,Adults & Health,Personal Information - Redacted,Day Care Income,-48.6,0,FOSTER CARERS
05-06-2022,Adults & Health,Personal Information - Redacted,Day Care Income,-5.9,0,FOSTER CARERS
05-06-2022,Adults & Health,Personal Information - Redacted,Day Care Income,-16.2,0,FOSTER CARERS
05-06-2022,Adults & Health,Personal Information - Redacted,Day Care Income,-16.2,0,FOSTER CARERS
05-06-2022,Adults & Health,Personal Information - Redacted,Day Care Income,-5.9,0,FOSTER CARERS
05-06-2022,Adults & Health,Personal Information - Redacted,Day Care Income,-59.15,0,INDIVIDUALS
05-06-2022,Adults & Health,Personal Information - Redacted,Day Care Income,-16.2,0,FOSTER CARERS
05-06-2022,Adults & Health,Personal Information - Redacted,Day Care Income,-12.15,0,INDIVIDUALS
05-06-2022,Adults & Health,Personal Information - Redacted,Day Care Income,-12.15,0,INDIVIDUALS
05-06-2022,Adults & Health,Personal Information - Redacted,Day Care Income,-12.15,0,INDIVIDUALS
05-06-2022,Adults & Health,Personal Information - Redacted,Day Care Income,-12.15,0,INDIVIDUALS
05-06-2022,Children and Young People,Personal Information - Redacted,Kinship Placement - Private Contractors Payment,300,0,INDIVIDUALS
05-06-2022,Children and Young People,Personal Information - Redacted,Kinship Placement - Private Contractors Payment,300,0,INDIVIDUALS
05-06-2022,Adults & Health,Personal Information - Redacted,Day Care Income,-15.54,0,INDIVIDUALS
05-06-2022,Adults & Health,Personal Information - Redacted,Day Care Income,-15.54,0,INDIVIDUALS
05-06-2022,Adults & Health,Personal Information - Redacted,Day Care Income,-15.54,0,INDIVIDUALS
05-06-2022,Adults & Health,Personal Information - Redacted,Day Care Income,-15.54,0,INDIVIDUALS
05-06-2022,Adults & Health,Personal Information - Redacted,Day Care Income,-24.18,0,INDIVIDUALS
05-06-2022,Adults & Health,Personal Information - Redacted,Day Care Income,-24.18,0,INDIVIDUALS
05-06-2022,Adults & Health,Personal Information - Redacted,Day Care Income,-24.18,0,INDIVIDUALS
05-06-2022,Adults & Health,Personal Information - Redacted,Day Care Income,-24.18,0,INDIVIDUALS
05-06-2022,Children and Young People,Personal Information - Redacted,Kinship Placement - Private Contractors Payment,300,0,INDIVIDUALS
05-06-2022,Children and Young People,Personal Information - Redacted,Kinship Placement - Private Contractors Payment,300,0,INDIVIDUALS
05-06-2022,Children and Young People,Personal Information - Redacted,Kinship Placement - Private Contractors Payment,300,0,INDIVIDUALS
06-06-2022,Environment and Sustainable Transport,Nigel Turner Monumental Mason,Open Spaces Works,2234,0,LOCAL AUTHORITY SERVICES
06-06-2022,Environment and Sustainable Transport,R.A.M Fleet Solutions Ltd,"Purchase - Equipment, Furniture And Materials",4112.5,0,COMMERCIAL SUPPLIER
06-06-2022,"People, Policy and Performance",Askews and Holts Library Services Ltd,"Books, Publications And Resources",4101.23,0,COMMERCIAL SUPPLIER
06-06-2022,"People, Policy and Performance",Askews and Holts Library Services Ltd,"Books, Publications And Resources",1769.95,0,COMMERCIAL SUPPLIER
06-06-2022,"People, Policy and Performance",Askews and Holts Library Services Ltd,"Books, Publications And Resources",5632.98,0,COMMERCIAL SUPPLIER
06-06-2022,"People, Policy and Performance",Askews and Holts Library Services Ltd,"Books, Publications And Resources",2411.85,0,COMMERCIAL SUPPLIER
06-06-2022,Children and Young People,Gordon Care Services Limited,Residential Placements - Private Contractors Payment,2950,0,COMMERCIAL SUPPLIER
06-06-2022,Children and Young People,Gordon Care Services Limited,Residential Placements - Private Contractors Payment,4260.9,0,COMMERCIAL SUPPLIER
06-06-2022,Children and Young People,Gordon Care Services Limited,Residential Placements - Private Contractors Payment,1638,0,COMMERCIAL SUPPLIER
06-06-2022,Children and Young People,Gordon Care Services Limited,Residential Placements - Private Contractors Payment,1638,0,COMMERCIAL SUPPLIER
06-06-2022,Children and Young People,Gordon Care Services Limited,Residential Placements - Private Contractors Payment,2950,0,COMMERCIAL SUPPLIER
06-06-2022,Children and Young People,Gordon Care Services Limited,Residential Placements - Private Contractors Payment,1638,0,COMMERCIAL SUPPLIER
06-06-2022,Children and Young People,Gordon Care Services Limited,Residential Placements - Private Contractors Payment,2950,0,COMMERCIAL SUPPLIER
06-06-2022,Children and Young People,Gordon Care Services Limited,Residential Placements - Private Contractors Payment,1638,0,COMMERCIAL SUPPLIER
06-06-2022,Children and Young People,Gordon Care Services Limited,Residential Placements - Private Contractors Payment,4046,0,COMMERCIAL SUPPLIER
06-06-2022,Children and Young People,Gordon Care Services Limited,Residential Placements - Private Contractors Payment,2950,0,COMMERCIAL SUPPLIER
06-06-2022,Children and Young People,Gordon Care Services Limited,Residential Placements - Private Contractors Payment,4046,0,COMMERCIAL SUPPLIER
06-06-2022,Children and Young People,Gordon Care Services Limited,Residential Placements - Private Contractors Payment,4046,0,COMMERCIAL SUPPLIER
06-06-2022,Children and Young People,Gordon Care Services Limited,Residential Placements - Private Contractors Payment,2950,0,COMMERCIAL SUPPLIER
06-06-2022,Children and Young People,Gordon Care Services Limited,Residential Placements - Private Contractors Payment,2950,0,COMMERCIAL SUPPLIER
06-06-2022,Children and Young People,Gordon Care Services Limited,Residential Placements - Private Contractors Payment,5948.02,0,COMMERCIAL SUPPLIER
06-06-2022,Children and Young People,Gordon Care Services Limited,Residential Placements - Private Contractors Payment,4046,0,COMMERCIAL SUPPLIER
06-06-2022,Children and Young People,Gordon Care Services Limited,Residential Placements - Private Contractors Payment,4916.33,0,COMMERCIAL SUPPLIER
06-06-2022,Children and Young People,Gordon Care Services Limited,Residential Placements - Private Contractors Payment,1638,0,COMMERCIAL SUPPLIER
06-06-2022,Children and Young People,Gordon Care Services Limited,Residential Placements - Private Contractors Payment,2950,0,COMMERCIAL SUPPLIER
06-06-2022,Children and Young People,Gordon Care Services Limited,Residential Placements - Private Contractors Payment,1638,0,COMMERCIAL SUPPLIER
06-06-2022,Children and Young People,Gordon Care Services Limited,Residential Placements - Private Contractors Payment,2950,0,COMMERCIAL SUPPLIER
06-06-2022,Children and Young People,Gordon Care Services Limited,Residential Placements - Private Contractors Payment,1638,0,COMMERCIAL SUPPLIER
06-06-2022,Children and Young People,Gordon Care Services Limited,Residential Placements - Private Contractors Payment,1638,0,COMMERCIAL SUPPLIER
06-06-2022,Children and Young People,Gordon Care Services Limited,Residential Placements - Private Contractors Payment,2950,0,COMMERCIAL SUPPLIER
06-06-2022,Adults & Health,Valuing  Care Limited,Consultancy Fees,14999,0,COMMERCIAL SUPPLIER
06-06-2022,Environment and Sustainable Transport,Greener Solutions,Highway Services,727.15,0,VENDOR
06-06-2022,Environment and Sustainable Transport,Greener Solutions,Highway Services,8.85,0,VENDOR
06-06-2022,Environment and Sustainable Transport,Greener Solutions,Highway Services,8.5,0,VENDOR
06-06-2022,Environment and Sustainable Transport,Greener Solutions,Highway Services,100,0,VENDOR
06-06-2022,Environment and Sustainable Transport,Greener Solutions,Highway Services,185,0,VENDOR
06-06-2022,RMS,GB Macks Skips,Refuse Collection,1462.6,0,COMMERCIAL SUPPLIER
06-06-2022,Inclusive Economy & Housing,L M Installations Ltd,"Maintenance - Equipment, Furniture And Materials",3122.95,0,CIS
06-06-2022,Environment and Sustainable Transport,Enterprise Flex-E-Rent,Client Transport,510.66,0,COMMERCIAL SUPPLIER
06-06-2022,Environment and Sustainable Transport,Enterprise Flex-E-Rent,Client Transport,641.66,0,COMMERCIAL SUPPLIER
06-06-2022,Environment and Sustainable Transport,Enterprise Flex-E-Rent,Client Transport,395.08,0,COMMERCIAL SUPPLIER
06-06-2022,Environment and Sustainable Transport,Enterprise Flex-E-Rent,Client Transport,395.08,0,COMMERCIAL SUPPLIER
06-06-2022,Environment and Sustainable Transport,Enterprise Flex-E-Rent,Client Transport,395.08,0,COMMERCIAL SUPPLIER
06-06-2022,Environment and Sustainable Transport,Enterprise Flex-E-Rent,Client Transport,395.08,0,COMMERCIAL SUPPLIER
06-06-2022,Environment and Sustainable Transport,Enterprise Flex-E-Rent,Client Transport,395.08,0,COMMERCIAL SUPPLIER
06-06-2022,Environment and Sustainable Transport,Enterprise Flex-E-Rent,Client Transport,395.08,0,COMMERCIAL SUPPLIER
06-06-2022,Environment and Sustainable Transport,Enterprise Flex-E-Rent,Client Transport,395.08,0,COMMERCIAL SUPPLIER
06-06-2022,Environment and Sustainable Transport,Enterprise Flex-E-Rent,Client Transport,533.87,0,COMMERCIAL SUPPLIER
06-06-2022,Environment and Sustainable Transport,Enterprise Flex-E-Rent,Client Transport,663.05,0,COMMERCIAL SUPPLIER
06-06-2022,Environment and Sustainable Transport,Enterprise Flex-E-Rent,Client Transport,565.4,0,COMMERCIAL SUPPLIER
06-06-2022,Environment and Sustainable Transport,Enterprise Flex-E-Rent,Client Transport,565.4,0,COMMERCIAL SUPPLIER
06-06-2022,Environment and Sustainable Transport,Enterprise Flex-E-Rent,Client Transport,256.53,0,COMMERCIAL SUPPLIER
06-06-2022,Environment and Sustainable Transport,Enterprise Flex-E-Rent,Client Transport,408.26,0,COMMERCIAL SUPPLIER
06-06-2022,Environment and Sustainable Transport,Enterprise Flex-E-Rent,Client Transport,408.26,0,COMMERCIAL SUPPLIER
06-06-2022,Environment and Sustainable Transport,Enterprise Flex-E-Rent,Client Transport,408.26,0,COMMERCIAL SUPPLIER
06-06-2022,Environment and Sustainable Transport,Enterprise Flex-E-Rent,Client Transport,408.26,0,COMMERCIAL SUPPLIER
06-06-2022,Environment and Sustainable Transport,Enterprise Flex-E-Rent,Client Transport,408.26,0,COMMERCIAL SUPPLIER
06-06-2022,Environment and Sustainable Transport,Enterprise Flex-E-Rent,Client Transport,256.53,0,COMMERCIAL SUPPLIER
06-06-2022,Environment and Sustainable Transport,Enterprise Flex-E-Rent,Client Transport,408.26,0,COMMERCIAL SUPPLIER
06-06-2022,Environment and Sustainable Transport,Enterprise Flex-E-Rent,Client Transport,408.26,0,COMMERCIAL SUPPLIER
06-06-2022,Environment and Sustainable Transport,Enterprise Flex-E-Rent,Client Transport,408.26,0,COMMERCIAL SUPPLIER
06-06-2022,Environment and Sustainable Transport,Enterprise Flex-E-Rent,Client Transport,408.26,0,COMMERCIAL SUPPLIER
06-06-2022,Environment and Sustainable Transport,Enterprise Flex-E-Rent,Client Transport,408.26,0,COMMERCIAL SUPPLIER
06-06-2022,Environment and Sustainable Transport,Enterprise Flex-E-Rent,Client Transport,408.26,0,COMMERCIAL SUPPLIER
06-06-2022,Environment and Sustainable Transport,Enterprise Flex-E-Rent,Client Transport,408.26,0,COMMERCIAL SUPPLIER
06-06-2022,Environment and Sustainable Transport,Enterprise Flex-E-Rent,Client Transport,803.34,0,COMMERCIAL SUPPLIER
06-06-2022,Environment and Sustainable Transport,Enterprise Flex-E-Rent,Client Transport,420.72,0,COMMERCIAL SUPPLIER
06-06-2022,Children and Young People,Jamma Umoja (Residential Services) Ltd,Residential Placements - Private Contractors Payment,3800,0,COMMERCIAL SUPPLIER
06-06-2022,Children and Young People,Jamma Umoja (Residential Services) Ltd,Residential Placements - Private Contractors Payment,3465,0,COMMERCIAL SUPPLIER
06-06-2022,"People, Policy and Performance",Royal Docks Learning & Activity Centre,Arts And Leisure Costs,412.5,0,VENDOR
06-06-2022,Brighter Futures Director,Royal Docks Learning & Activity Centre,Respite Care - Private Contractors Payment,2506.4,0,VENDOR
06-06-2022,Brighter Futures Director,Royal Docks Learning & Activity Centre,Respite Care - Private Contractors Payment,1261.55,0,VENDOR
06-06-2022,Brighter Futures Director,Royal Docks Learning & Activity Centre,Respite Care - Private Contractors Payment,8388,0,VENDOR
06-06-2022,Children and Young People,National Fostering Agency,Residential Placements - Private Contractors Payment,2996,0,COMMERCIAL SUPPLIER
06-06-2022,Children and Young People,Bio Luminuex Health Care Ltd,Additional Placements - Third Party,2482.27,0,VENDOR
06-06-2022,Children and Young People,Bio Luminuex Health Care Ltd,Additional Placements - Third Party,2482.27,0,VENDOR
06-06-2022,Children and Young People,Bio Luminuex Health Care Ltd,Additional Placements - Third Party,2482.27,0,VENDOR
06-06-2022,Children and Young People,Bio Luminuex Health Care Ltd,Additional Placements - Third Party,2482.27,0,VENDOR
06-06-2022,Children and Young People,Newhaven 16 Plus Ltd,Client Support - Third Party,1920,0,VENDOR
06-06-2022,Adults & Health,Omega Community Living Ltd,Daycare - Private Contractors Payment,74.7,0,VENDOR
06-06-2022,Adults & Health,Omega Community Living Ltd,Daycare - Private Contractors Payment,74.7,0,VENDOR
06-06-2022,Adults & Health,Omega Community Living Ltd,Daycare - Private Contractors Payment,74.7,0,VENDOR
06-06-2022,Adults & Health,Omega Community Living Ltd,Daycare - Private Contractors Payment,74.7,0,VENDOR
06-06-2022,RMS,Travis Perkins Trading Company Ltd,Building Alterations And Materials,350,0,COMMERCIAL SUPPLIER
06-06-2022,RMS,Travis Perkins Trading Company Ltd,Building Alterations And Materials,326.2,0,COMMERCIAL SUPPLIER
06-06-2022,oneSource,CCS Media Limited.,Ict Hardware,1258.25,0,COMMERCIAL SUPPLIER
06-06-2022,oneSource,CCS Media Limited.,Ict Hardware,1328.25,0,COMMERCIAL SUPPLIER
06-06-2022,oneSource,CCS Media Limited.,Ict Hardware,5876.6,0,COMMERCIAL SUPPLIER
06-06-2022,oneSource,CCS Media Limited.,Ict Hardware,4544.4,0,COMMERCIAL SUPPLIER
06-06-2022,oneSource,CCS Media Limited.,Ict Hardware,9231.5,0,COMMERCIAL SUPPLIER
06-06-2022,oneSource,CCS Media Limited.,Ict Hardware,479.25,0,COMMERCIAL SUPPLIER
06-06-2022,Environment and Sustainable Transport,Sparshatt Truck & Van Ltd,Highway Services,133.84,0,COMMERCIAL SUPPLIER
06-06-2022,Environment and Sustainable Transport,Sparshatt Truck & Van Ltd,Highway Services,29.02,0,COMMERCIAL SUPPLIER
06-06-2022,Environment and Sustainable Transport,Sparshatt Truck & Van Ltd,Highway Services,759.38,0,COMMERCIAL SUPPLIER
06-06-2022,Environment and Sustainable Transport,Sparshatt Truck & Van Ltd,Highway Services,34.24,0,COMMERCIAL SUPPLIER
06-06-2022,Environment and Sustainable Transport,Sparshatt Truck & Van Ltd,Highway Services,232.88,0,COMMERCIAL SUPPLIER
06-06-2022,Environment and Sustainable Transport,Sparshatt Truck & Van Ltd,Highway Services,36.98,0,COMMERCIAL SUPPLIER
06-06-2022,Environment and Sustainable Transport,Sparshatt Truck & Van Ltd,Highway Services,271,0,COMMERCIAL SUPPLIER
06-06-2022,Environment and Sustainable Transport,Sparshatt Truck & Van Ltd,Highway Services,79.72,0,COMMERCIAL SUPPLIER
06-06-2022,Environment and Sustainable Transport,Sparshatt Truck & Van Ltd,Highway Services,25.32,0,COMMERCIAL SUPPLIER
06-06-2022,Environment and Sustainable Transport,Sparshatt Truck & Van Ltd,Highway Services,60.56,0,COMMERCIAL SUPPLIER
06-06-2022,Environment and Sustainable Transport,Sparshatt Truck & Van Ltd,Highway Services,205.78,0,COMMERCIAL SUPPLIER
06-06-2022,Environment and Sustainable Transport,Sparshatt Truck & Van Ltd,Highway Services,17.92,0,COMMERCIAL SUPPLIER
06-06-2022,Environment and Sustainable Transport,Sparshatt Truck & Van Ltd,Highway Services,26.4,0,COMMERCIAL SUPPLIER
06-06-2022,Environment and Sustainable Transport,Sparshatt Truck & Van Ltd,Highway Services,15.6,0,COMMERCIAL SUPPLIER
06-06-2022,Environment and Sustainable Transport,Sparshatt Truck & Van Ltd,Highway Services,89.78,0,COMMERCIAL SUPPLIER
06-06-2022,Environment and Sustainable Transport,Sparshatt Truck & Van Ltd,Highway Services,24.26,0,COMMERCIAL SUPPLIER
06-06-2022,Environment and Sustainable Transport,Sparshatt Truck & Van Ltd,Highway Services,10.96,0,COMMERCIAL SUPPLIER
06-06-2022,Environment and Sustainable Transport,Sparshatt Truck & Van Ltd,Highway Services,51.44,0,COMMERCIAL SUPPLIER
06-06-2022,RMS,Travis Perkins Trading Company Ltd,Building Alterations And Materials,448.2,0,COMMERCIAL SUPPLIER
06-06-2022,RMS,Travis Perkins Trading Company Ltd,Building Alterations And Materials,19,0,COMMERCIAL SUPPLIER
06-06-2022,RMS,Travis Perkins Trading Company Ltd,Building Alterations And Materials,25,0,COMMERCIAL SUPPLIER
06-06-2022,RMS,Travis Perkins Trading Company Ltd,Building Alterations And Materials,45.9,0,COMMERCIAL SUPPLIER
06-06-2022,RMS,Travis Perkins Trading Company Ltd,Building Alterations And Materials,124.8,0,COMMERCIAL SUPPLIER
06-06-2022,RMS,Travis Perkins Trading Company Ltd,Building Alterations And Materials,116,0,COMMERCIAL SUPPLIER
06-06-2022,RMS,Travis Perkins Trading Company Ltd,Building Alterations And Materials,121.2,0,COMMERCIAL SUPPLIER
06-06-2022,RMS,Travis Perkins Trading Company Ltd,Building Alterations And Materials,72,0,COMMERCIAL SUPPLIER
06-06-2022,RMS,Travis Perkins Trading Company Ltd,Building Alterations And Materials,1408,0,COMMERCIAL SUPPLIER
06-06-2022,RMS,Travis Perkins Trading Company Ltd,Building Alterations And Materials,1599,0,COMMERCIAL SUPPLIER
06-06-2022,RMS,Travis Perkins Trading Company Ltd,Building Alterations And Materials,899,0,COMMERCIAL SUPPLIER
06-06-2022,RMS,Travis Perkins Trading Company Ltd,Building Alterations And Materials,537.84,0,COMMERCIAL SUPPLIER
06-06-2022,Environment and Sustainable Transport,Fast Forward (Factors) Ltd,Highway Services,285.64,0,COMMERCIAL SUPPLIER
06-06-2022,Environment and Sustainable Transport,Fast Forward (Factors) Ltd,Highway Services,174.62,0,COMMERCIAL SUPPLIER
06-06-2022,Environment and Sustainable Transport,Fast Forward (Factors) Ltd,Highway Services,19.82,0,COMMERCIAL SUPPLIER
06-06-2022,oneSource - Non Shared,GatenbySanderson Ltd,Agency Staff,1475,0,COMMERCIAL SUPPLIER
06-06-2022,RMS,AMA Security Ltd,Private Contractors Payment - Other,382.89,0,COMMERCIAL SUPPLIER
06-06-2022,Environment and Sustainable Transport,Certas Energy uk ltd,Transport Fuel,54003.87,0,
06-06-2022,oneSource,Proquest Consulting Limited,Consultancy Fees,9200,0,COMMERCIAL SUPPLIER
06-06-2022,oneSource - Non Shared,Centre Stage,Events,5620,0,COMMERCIAL SUPPLIER
06-06-2022,Environment and Sustainable Transport,Arup (London),Consultancy Fees,13504,0,COMMERCIAL SUPPLIER
06-06-2022,oneSource,Royal Mail Group Plc,Postage And Courier Services,362.34,0,COMMERCIAL SUPPLIER
06-06-2022,oneSource,Royal Mail Group Plc,Postage And Courier Services,33085.86,0,COMMERCIAL SUPPLIER
06-06-2022,"People, Policy and Performance",British Gas Business,Gas,550.8,0,COMMERCIAL SUPPLIER
06-06-2022,Inclusive Economy & Housing,British Gas Business,Electricity,7336,0,COMMERCIAL SUPPLIER
06-06-2022,Inclusive Economy & Housing,British Gas Business,Electricity,2312.29,0,COMMERCIAL SUPPLIER
06-06-2022,Resources,Jones Lang LaSalle Ltd,Consultancy Fees,15000,0,COMMERCIAL SUPPLIER
06-06-2022,Dedicated Schools Budget,Personal Information - Redacted,Professional Services - General,8000,0,
06-06-2022,Inclusive Economy & Housing,Ronin Ltd,Staff Recruitment Costs,1725,0,COMMERCIAL SUPPLIER
06-06-2022,RMS,Door-Stop International Ltd,"Purchase - Equipment, Furniture And Materials",559.48,0,VENDOR
06-06-2022,RMS,Door-Stop International Ltd,"Purchase - Equipment, Furniture And Materials",562.09,0,VENDOR
06-06-2022,RMS,Door-Stop International Ltd,"Purchase - Equipment, Furniture And Materials",574.08,0,VENDOR
06-06-2022,RMS,Door-Stop International Ltd,"Purchase - Equipment, Furniture And Materials",562.09,0,VENDOR
06-06-2022,RMS,Door-Stop International Ltd,"Purchase - Equipment, Furniture And Materials",538.36,0,VENDOR
06-06-2022,RMS,Door-Stop International Ltd,"Purchase - Equipment, Furniture And Materials",559.48,0,VENDOR
06-06-2022,RMS,Door-Stop International Ltd,"Purchase - Equipment, Furniture And Materials",569.76,0,VENDOR
06-06-2022,RMS,Door-Stop International Ltd,"Purchase - Equipment, Furniture And Materials",572.57,0,VENDOR
06-06-2022,RMS,Door-Stop International Ltd,"Purchase - Equipment, Furniture And Materials",565.19,0,VENDOR
06-06-2022,RMS,Door-Stop International Ltd,"Purchase - Equipment, Furniture And Materials",549.86,0,VENDOR
06-06-2022,RMS,Door-Stop International Ltd,"Purchase - Equipment, Furniture And Materials",586.46,0,VENDOR
06-06-2022,RMS,Door-Stop International Ltd,"Purchase - Equipment, Furniture And Materials",555.75,0,VENDOR
06-06-2022,RMS,Door-Stop International Ltd,"Purchase - Equipment, Furniture And Materials",574.08,0,VENDOR
06-06-2022,Inclusive Economy & Housing,London Walthamstow Ltd,Rents Payable,1302,0,NON COMMERCIAL SUPPLIER
06-06-2022,Inclusive Economy & Housing,London Walthamstow Ltd,Rents Payable,1302,0,NON COMMERCIAL SUPPLIER
06-06-2022,Inclusive Economy & Housing,London Walthamstow Ltd,Rents Payable,1023,0,NON COMMERCIAL SUPPLIER
06-06-2022,Inclusive Economy & Housing,Apex Housing Solutions Ltd,Rents Payable,1472.5,0,NON COMMERCIAL SUPPLIER
06-06-2022,Inclusive Economy & Housing,Apex Housing Solutions Ltd,Rents Payable,1472.5,0,NON COMMERCIAL SUPPLIER
06-06-2022,Inclusive Economy & Housing,Forest Homes London Ltd,Rents Payable,1302,0,NON COMMERCIAL SUPPLIER
06-06-2022,Inclusive Economy & Housing,Empire Guaranteed Ltd,Rents Payable,1534.5,0,NON COMMERCIAL SUPPLIER
06-06-2022,Inclusive Economy & Housing,Empire Guaranteed Ltd,Rents Payable,170.5,0,NON COMMERCIAL SUPPLIER
06-06-2022,Inclusive Economy & Housing,Daddybrown Affia Limited,Rents Payable,1426,0,NON COMMERCIAL SUPPLIER
06-06-2022,Inclusive Economy & Housing,Standard Property Limited,Rents Payable,1472.5,0,NON COMMERCIAL SUPPLIER
06-06-2022,Inclusive Economy & Housing,Sam's Consulting Ltd,Rents Payable,1660.98,0,NON COMMERCIAL SUPPLIER
06-06-2022,Inclusive Economy & Housing,BK Property Mangement Services Ltd,Rents Payable,1417.32,0,COMMERCIAL SUPPLIER
06-06-2022,Inclusive Economy & Housing,BK Property Mangement Services Ltd,Rents Payable,1660.98,0,COMMERCIAL SUPPLIER
06-06-2022,Inclusive Economy & Housing,DC Estates & Letting Ltd,Rents Payable,868,0,COMMERCIAL SUPPLIER
06-06-2022,Inclusive Economy & Housing,DC Estates & Letting Ltd,Rents Payable,1417.32,0,COMMERCIAL SUPPLIER
06-06-2022,Inclusive Economy & Housing,DC Estates & Letting Ltd,Rents Payable,1116,0,COMMERCIAL SUPPLIER
06-06-2022,Inclusive Economy & Housing,DC Estates & Letting Ltd,Rents Payable,1333,0,COMMERCIAL SUPPLIER
06-06-2022,Inclusive Economy & Housing,DC Estates & Letting Ltd,Rents Payable,1488,0,COMMERCIAL SUPPLIER
06-06-2022,Inclusive Economy & Housing,DC Estates & Letting Ltd,Rents Payable,1085,0,COMMERCIAL SUPPLIER
06-06-2022,Inclusive Economy & Housing,DC Estates & Letting Ltd,Rents Payable,1056,0,COMMERCIAL SUPPLIER
06-06-2022,Inclusive Economy & Housing,DC Estates & Letting Ltd,Rents Payable,1417.32,0,COMMERCIAL SUPPLIER
06-06-2022,Inclusive Economy & Housing,DC Estates & Letting Ltd,Rents Payable,1417.32,0,COMMERCIAL SUPPLIER
06-06-2022,Inclusive Economy & Housing,DC Estates & Letting Ltd,Rents Payable,1472.5,0,COMMERCIAL SUPPLIER
06-06-2022,Inclusive Economy & Housing,DC Estates & Letting Ltd,Rents Payable,1417.32,0,COMMERCIAL SUPPLIER
06-06-2022,Inclusive Economy & Housing,DC Estates & Letting Ltd,Rents Payable,1302,0,COMMERCIAL SUPPLIER
06-06-2022,Inclusive Economy & Housing,DC Estates & Letting Ltd,Rents Payable,1417.32,0,COMMERCIAL SUPPLIER
06-06-2022,Inclusive Economy & Housing,Populo Living Ltd,Rents Payable,1224.5,0,NON COMMERCIAL SUPPLIER
06-06-2022,Inclusive Economy & Housing,Populo Living Ltd,Rents Payable,1224.5,0,NON COMMERCIAL SUPPLIER
06-06-2022,Inclusive Economy & Housing,Populo Living Ltd,Rents Payable,316,0,NON COMMERCIAL SUPPLIER
06-06-2022,Inclusive Economy & Housing,Populo Living Ltd,Rents Payable,1224.5,0,NON COMMERCIAL SUPPLIER
06-06-2022,Inclusive Economy & Housing,Populo Living Ltd,Rents Payable,1224.5,0,NON COMMERCIAL SUPPLIER
06-06-2022,Inclusive Economy & Housing,Populo Living Ltd,Rents Payable,1224.5,0,NON COMMERCIAL SUPPLIER
06-06-2022,Inclusive Economy & Housing,Populo Living Ltd,Rents Payable,1224.5,0,NON COMMERCIAL SUPPLIER
06-06-2022,Inclusive Economy & Housing,Populo Living Ltd,Rents Payable,316,0,NON COMMERCIAL SUPPLIER
06-06-2022,Inclusive Economy & Housing,Populo Living Ltd,Rents Payable,1224.5,0,NON COMMERCIAL SUPPLIER
06-06-2022,Inclusive Economy & Housing,Populo Living Ltd,Rents Payable,1224.5,0,NON COMMERCIAL SUPPLIER
06-06-2022,Inclusive Economy & Housing,Populo Living Ltd,Rents Payable,1224.5,0,NON COMMERCIAL SUPPLIER
06-06-2022,Inclusive Economy & Housing,Populo Living Ltd,Rents Payable,1224.5,0,NON COMMERCIAL SUPPLIER
06-06-2022,Inclusive Economy & Housing,Populo Living Ltd,Rents Payable,1224.5,0,NON COMMERCIAL SUPPLIER
06-06-2022,Inclusive Economy & Housing,Populo Living Ltd,Rents Payable,1224.5,0,NON COMMERCIAL SUPPLIER
06-06-2022,Inclusive Economy & Housing,Populo Living Ltd,Rents Payable,1224.5,0,NON COMMERCIAL SUPPLIER
06-06-2022,Inclusive Economy & Housing,Populo Living Ltd,Rents Payable,1224.5,0,NON COMMERCIAL SUPPLIER
06-06-2022,Inclusive Economy & Housing,Populo Living Ltd,Rents Payable,1224.5,0,NON COMMERCIAL SUPPLIER
06-06-2022,Inclusive Economy & Housing,Populo Living Ltd,Rents Payable,1224.5,0,NON COMMERCIAL SUPPLIER
06-06-2022,Inclusive Economy & Housing,Populo Living Ltd,Rents Payable,316,0,NON COMMERCIAL SUPPLIER
06-06-2022,Inclusive Economy & Housing,Populo Living Ltd,Rents Payable,1224.5,0,NON COMMERCIAL SUPPLIER
06-06-2022,Inclusive Economy & Housing,Populo Living Ltd,Rents Payable,1224.5,0,NON COMMERCIAL SUPPLIER
06-06-2022,Inclusive Economy & Housing,Aspire Housing Solution Ltd,Rents Payable,1705,0,COMMERCIAL SUPPLIER
06-06-2022,Inclusive Economy & Housing,UK Housing Group Ltd,Rents Payable,1674,0,NON COMMERCIAL SUPPLIER
06-06-2022,Inclusive Economy & Housing,London Walthamstow Ltd,Rents Payable,1023,0,NON COMMERCIAL SUPPLIER
06-06-2022,Inclusive Economy & Housing,London Walthamstow Ltd,Rents Payable,1023,0,NON COMMERCIAL SUPPLIER
06-06-2022,Inclusive Economy & Housing,London Walthamstow Ltd,Rents Payable,1023,0,NON COMMERCIAL SUPPLIER
06-06-2022,Inclusive Economy & Housing,London Walthamstow Ltd,Rents Payable,1023,0,NON COMMERCIAL SUPPLIER
06-06-2022,Inclusive Economy & Housing,London Walthamstow Ltd,Rents Payable,1302,0,NON COMMERCIAL SUPPLIER
06-06-2022,Inclusive Economy & Housing,London Walthamstow Ltd,Rents Payable,1627.5,0,NON COMMERCIAL SUPPLIER
06-06-2022,Inclusive Economy & Housing,London Walthamstow Ltd,Rents Payable,1302,0,NON COMMERCIAL SUPPLIER
06-06-2022,Inclusive Economy & Housing,London Walthamstow Ltd,Rents Payable,1023,0,NON COMMERCIAL SUPPLIER
06-06-2022,Inclusive Economy & Housing,London Walthamstow Ltd,Rents Payable,528,0,NON COMMERCIAL SUPPLIER
06-06-2022,Inclusive Economy & Housing,London Walthamstow Ltd,Rents Payable,1302,0,NON COMMERCIAL SUPPLIER
06-06-2022,Inclusive Economy & Housing,London Walthamstow Ltd,Rents Payable,1023,0,NON COMMERCIAL SUPPLIER
06-06-2022,Inclusive Economy & Housing,London Walthamstow Ltd,Rents Payable,1302,0,NON COMMERCIAL SUPPLIER
06-06-2022,Inclusive Economy & Housing,London Walthamstow Ltd,Rents Payable,1302,0,NON COMMERCIAL SUPPLIER
06-06-2022,Inclusive Economy & Housing,London Walthamstow Ltd,Rents Payable,1627.5,0,NON COMMERCIAL SUPPLIER
06-06-2022,Inclusive Economy & Housing,London Walthamstow Ltd,Rents Payable,1627.5,0,NON COMMERCIAL SUPPLIER
06-06-2022,Inclusive Economy & Housing,London Walthamstow Ltd,Rents Payable,1302,0,NON COMMERCIAL SUPPLIER
06-06-2022,Inclusive Economy & Housing,London Walthamstow Ltd,Rents Payable,1302,0,NON COMMERCIAL SUPPLIER
06-06-2022,Inclusive Economy & Housing,London Walthamstow Ltd,Rents Payable,1302,0,NON COMMERCIAL SUPPLIER
06-06-2022,Inclusive Economy & Housing,London Walthamstow Ltd,Rents Payable,1534.5,0,NON COMMERCIAL SUPPLIER
06-06-2022,Inclusive Economy & Housing,London Walthamstow Ltd,Rents Payable,1534.5,0,NON COMMERCIAL SUPPLIER
06-06-2022,Inclusive Economy & Housing,London Walthamstow Ltd,Rents Payable,1302,0,NON COMMERCIAL SUPPLIER
06-06-2022,Inclusive Economy & Housing,London Walthamstow Ltd,Rents Payable,1302,0,NON COMMERCIAL SUPPLIER
06-06-2022,Inclusive Economy & Housing,London Walthamstow Ltd,Rents Payable,1023,0,NON COMMERCIAL SUPPLIER
06-06-2022,Inclusive Economy & Housing,London Walthamstow Ltd,Rents Payable,1798,0,NON COMMERCIAL SUPPLIER
06-06-2022,Inclusive Economy & Housing,London Walthamstow Ltd,Rents Payable,1023,0,NON COMMERCIAL SUPPLIER
06-06-2022,Inclusive Economy & Housing,London Walthamstow Ltd,Rents Payable,1627.5,0,NON COMMERCIAL SUPPLIER
06-06-2022,Inclusive Economy & Housing,London Walthamstow Ltd,Rents Payable,1627.5,0,NON COMMERCIAL SUPPLIER
06-06-2022,Inclusive Economy & Housing,London Walthamstow Ltd,Rents Payable,1736,0,NON COMMERCIAL SUPPLIER
06-06-2022,Inclusive Economy & Housing,Metro Letts Ltd,Rents Payable,1472.5,0,COMMERCIAL SUPPLIER
06-06-2022,Inclusive Economy & Housing,Metro Letts Ltd,Rents Payable,1417.32,0,COMMERCIAL SUPPLIER
06-06-2022,Inclusive Economy & Housing,Metro Letts Ltd,Rents Payable,1771.65,0,COMMERCIAL SUPPLIER
06-06-2022,Inclusive Economy & Housing,Metro Letts Ltd,Rents Payable,1116,0,COMMERCIAL SUPPLIER
06-06-2022,Inclusive Economy & Housing,Metro Letts Ltd,Rents Payable,837,0,COMMERCIAL SUPPLIER
06-06-2022,Inclusive Economy & Housing,Metro Letts Ltd,Rents Payable,1472.5,0,COMMERCIAL SUPPLIER
06-06-2022,Inclusive Economy & Housing,Metro Letts Ltd,Rents Payable,775,0,COMMERCIAL SUPPLIER
06-06-2022,Inclusive Economy & Housing,Metro Letts Ltd,Rents Payable,1302,0,COMMERCIAL SUPPLIER
06-06-2022,Inclusive Economy & Housing,Metro Letts Ltd,Rents Payable,1953,0,COMMERCIAL SUPPLIER
06-06-2022,Inclusive Economy & Housing,Metro Letts Ltd,Rents Payable,1472.5,0,COMMERCIAL SUPPLIER
06-06-2022,Inclusive Economy & Housing,Metro Letts Ltd,Rents Payable,1705,0,COMMERCIAL SUPPLIER
06-06-2022,Inclusive Economy & Housing,Metro Letts Ltd,Rents Payable,1860,0,COMMERCIAL SUPPLIER
06-06-2022,Inclusive Economy & Housing,Houseline Limited,Rents Payable,1953,0,COMMERCIAL SUPPLIER
06-06-2022,Inclusive Economy & Housing,Houseline Limited,Rents Payable,1705,0,COMMERCIAL SUPPLIER
06-06-2022,Inclusive Economy & Housing,Houseline Limited,Rents Payable,1705,0,COMMERCIAL SUPPLIER
06-06-2022,Inclusive Economy & Housing,Houseline Limited,Rents Payable,2170,0,COMMERCIAL SUPPLIER
06-06-2022,Inclusive Economy & Housing,Houseline Limited,Rents Payable,2170,0,COMMERCIAL SUPPLIER
06-06-2022,Inclusive Economy & Housing,Houseline Limited,Rents Payable,1660.98,0,COMMERCIAL SUPPLIER
06-06-2022,Inclusive Economy & Housing,New Mayfair Estates Ltd,Rents Payable,1333,0,COMMERCIAL SUPPLIER
06-06-2022,Inclusive Economy & Housing,New Mayfair Estates Ltd,Rents Payable,1875.5,0,COMMERCIAL SUPPLIER
06-06-2022,Inclusive Economy & Housing,New Mayfair Estates Ltd,Rents Payable,1660.98,0,COMMERCIAL SUPPLIER
06-06-2022,Inclusive Economy & Housing,New Mayfair Estates Ltd,Rents Payable,1565.5,0,COMMERCIAL SUPPLIER
06-06-2022,Inclusive Economy & Housing,New Mayfair Estates Ltd,Rents Payable,1417.32,0,COMMERCIAL SUPPLIER
06-06-2022,Inclusive Economy & Housing,Property Link International Ltd,Rents Payable,1472.5,0,COMMERCIAL SUPPLIER
06-06-2022,Inclusive Economy & Housing,Property Link International Ltd,Rents Payable,2170,0,COMMERCIAL SUPPLIER
06-06-2022,Inclusive Economy & Housing,Property Link International Ltd,Rents Payable,1705,0,COMMERCIAL SUPPLIER
06-06-2022,Inclusive Economy & Housing,Property Link International Ltd,Rents Payable,1023,0,COMMERCIAL SUPPLIER
06-06-2022,Inclusive Economy & Housing,Property Link International Ltd,Rents Payable,1953,0,COMMERCIAL SUPPLIER
06-06-2022,Inclusive Economy & Housing,Property Link International Ltd,Rents Payable,1116,0,COMMERCIAL SUPPLIER
06-06-2022,Inclusive Economy & Housing,Property Link International Ltd,Rents Payable,1860,0,COMMERCIAL SUPPLIER
06-06-2022,Inclusive Economy & Housing,Property Link International Ltd,Rents Payable,2170,0,COMMERCIAL SUPPLIER
06-06-2022,Inclusive Economy & Housing,Property Link International Ltd,Rents Payable,2170,0,COMMERCIAL SUPPLIER
06-06-2022,Inclusive Economy & Housing,Property Link International Ltd,Rents Payable,2170,0,COMMERCIAL SUPPLIER
06-06-2022,Inclusive Economy & Housing,Property Link International Ltd,Rents Payable,2170,0,COMMERCIAL SUPPLIER
06-06-2022,Inclusive Economy & Housing,Property Link International Ltd,Rents Payable,1705,0,COMMERCIAL SUPPLIER
06-06-2022,Inclusive Economy & Housing,Property Link International Ltd,Rents Payable,1116,0,COMMERCIAL SUPPLIER
06-06-2022,Inclusive Economy & Housing,Property Link International Ltd,Rents Payable,2170,0,COMMERCIAL SUPPLIER
06-06-2022,Inclusive Economy & Housing,Property Link International Ltd,Rents Payable,837,0,COMMERCIAL SUPPLIER
06-06-2022,Inclusive Economy & Housing,Property Link International Ltd,Rents Payable,1705,0,COMMERCIAL SUPPLIER
06-06-2022,Inclusive Economy & Housing,Property Link International Ltd,Rents Payable,1302,0,COMMERCIAL SUPPLIER
06-06-2022,Inclusive Economy & Housing,Property Link International Ltd,Rents Payable,1116,0,COMMERCIAL SUPPLIER
06-06-2022,Inclusive Economy & Housing,Property Link International Ltd,Rents Payable,1953,0,COMMERCIAL SUPPLIER
06-06-2022,Inclusive Economy & Housing,Plex Properties Ltd,Rents Payable,992,0,COMMERCIAL SUPPLIER
06-06-2022,Inclusive Economy & Housing,Plex Properties Ltd,Rents Payable,992,0,COMMERCIAL SUPPLIER
06-06-2022,Inclusive Economy & Housing,Plex Properties Ltd,Rents Payable,992,0,COMMERCIAL SUPPLIER
06-06-2022,Inclusive Economy & Housing,Plex Properties Ltd,Rents Payable,992,0,COMMERCIAL SUPPLIER
06-06-2022,Inclusive Economy & Housing,Plex Properties Ltd,Rents Payable,992,0,COMMERCIAL SUPPLIER
06-06-2022,Inclusive Economy & Housing,Plex Properties Ltd,Rents Payable,992,0,COMMERCIAL SUPPLIER
06-06-2022,Inclusive Economy & Housing,Plex Properties Ltd,Rents Payable,992,0,COMMERCIAL SUPPLIER
06-06-2022,Inclusive Economy & Housing,Plex Properties Ltd,Rents Payable,280,0,COMMERCIAL SUPPLIER
06-06-2022,Inclusive Economy & Housing,Plex Properties Ltd,Rents Payable,280,0,COMMERCIAL SUPPLIER
06-06-2022,Inclusive Economy & Housing,Plex Properties Ltd,Rents Payable,256,0,COMMERCIAL SUPPLIER
06-06-2022,Inclusive Economy & Housing,Plex Properties Ltd,Rents Payable,320,0,COMMERCIAL SUPPLIER
06-06-2022,Inclusive Economy & Housing,Plex Properties Ltd,Rents Payable,320,0,COMMERCIAL SUPPLIER
06-06-2022,Inclusive Economy & Housing,Plex Properties Ltd,Rents Payable,280,0,COMMERCIAL SUPPLIER
06-06-2022,Inclusive Economy & Housing,Plex Properties Ltd,Rents Payable,280,0,COMMERCIAL SUPPLIER
06-06-2022,Inclusive Economy & Housing,Plex Properties Ltd,Rents Payable,280,0,COMMERCIAL SUPPLIER
06-06-2022,Inclusive Economy & Housing,Plex Properties Ltd,Rents Payable,256,0,COMMERCIAL SUPPLIER
06-06-2022,Inclusive Economy & Housing,Plex Properties Ltd,Rents Payable,70,0,COMMERCIAL SUPPLIER
06-06-2022,Inclusive Economy & Housing,Icon Properties Limited,Rents Payable,1116,0,COMMERCIAL SUPPLIER
06-06-2022,Inclusive Economy & Housing,Icon Properties Limited,Rents Payable,837,0,COMMERCIAL SUPPLIER
06-06-2022,Inclusive Economy & Housing,Freshview Estates Ltd,Rents Payable,1302,0,COMMERCIAL SUPPLIER
06-06-2022,Inclusive Economy & Housing,DC Estates & Letting Ltd,Rents Payable,868,0,COMMERCIAL SUPPLIER
06-06-2022,Inclusive Economy & Housing,DC Estates & Letting Ltd,Rents Payable,1417.32,0,COMMERCIAL SUPPLIER
06-06-2022,Inclusive Economy & Housing,Metro Letts Ltd,Rents Payable,1860,0,COMMERCIAL SUPPLIER
06-06-2022,Inclusive Economy & Housing,Metro Letts Ltd,Rents Payable,1860,0,COMMERCIAL SUPPLIER
06-06-2022,Inclusive Economy & Housing,Metro Letts Ltd,Rents Payable,1860,0,COMMERCIAL SUPPLIER
06-06-2022,Inclusive Economy & Housing,Metro Letts Ltd,Rents Payable,1472.5,0,COMMERCIAL SUPPLIER
06-06-2022,Inclusive Economy & Housing,Metro Letts Ltd,Rents Payable,1860,0,COMMERCIAL SUPPLIER
06-06-2022,Inclusive Economy & Housing,Metro Letts Ltd,Rents Payable,1705,0,COMMERCIAL SUPPLIER
06-06-2022,Inclusive Economy & Housing,Metro Letts Ltd,Rents Payable,1116,0,COMMERCIAL SUPPLIER
06-06-2022,Inclusive Economy & Housing,Metro Letts Ltd,Rents Payable,1953,0,COMMERCIAL SUPPLIER
06-06-2022,Inclusive Economy & Housing,Metro Letts Ltd,Rents Payable,1550,0,COMMERCIAL SUPPLIER
06-06-2022,Inclusive Economy & Housing,Metro Letts Ltd,Rents Payable,837,0,COMMERCIAL SUPPLIER
06-06-2022,Inclusive Economy & Housing,Metro Letts Ltd,Rents Payable,1472.5,0,COMMERCIAL SUPPLIER
06-06-2022,Inclusive Economy & Housing,Metro Letts Ltd,Rents Payable,1660.98,0,COMMERCIAL SUPPLIER
06-06-2022,Inclusive Economy & Housing,Metro Letts Ltd,Rents Payable,1705,0,COMMERCIAL SUPPLIER
06-06-2022,Inclusive Economy & Housing,Metro Letts Ltd,Rents Payable,1860,0,COMMERCIAL SUPPLIER
06-06-2022,Inclusive Economy & Housing,Metro Letts Ltd,Rents Payable,1771.65,0,COMMERCIAL SUPPLIER
06-06-2022,Inclusive Economy & Housing,Metro Letts Ltd,Rents Payable,1417.32,0,COMMERCIAL SUPPLIER
06-06-2022,Inclusive Economy & Housing,Metro Letts Ltd,Rents Payable,1472.5,0,COMMERCIAL SUPPLIER
06-06-2022,Inclusive Economy & Housing,Metro Letts Ltd,Rents Payable,1705,0,COMMERCIAL SUPPLIER
06-06-2022,Inclusive Economy & Housing,Metro Letts Ltd,Rents Payable,1417.32,0,COMMERCIAL SUPPLIER
06-06-2022,Inclusive Economy & Housing,Metro Letts Ltd,Rents Payable,1116,0,COMMERCIAL SUPPLIER
06-06-2022,Inclusive Economy & Housing,Metro Letts Ltd,Rents Payable,1472.5,0,COMMERCIAL SUPPLIER
06-06-2022,Inclusive Economy & Housing,Metro Letts Ltd,Rents Payable,1116,0,COMMERCIAL SUPPLIER
06-06-2022,Inclusive Economy & Housing,Metro Letts Ltd,Rents Payable,1705,0,COMMERCIAL SUPPLIER
06-06-2022,Inclusive Economy & Housing,Metro Letts Ltd,Rents Payable,1472.5,0,COMMERCIAL SUPPLIER
06-06-2022,Inclusive Economy & Housing,Metro Letts Ltd,Rents Payable,1860,0,COMMERCIAL SUPPLIER
06-06-2022,Inclusive Economy & Housing,Metro Letts Ltd,Rents Payable,1472.5,0,COMMERCIAL SUPPLIER
06-06-2022,Inclusive Economy & Housing,Metro Letts Ltd,Rents Payable,1417.32,0,COMMERCIAL SUPPLIER
06-06-2022,Inclusive Economy & Housing,Metro Letts Ltd,Rents Payable,1054,0,COMMERCIAL SUPPLIER
06-06-2022,Inclusive Economy & Housing,Metro Letts Ltd,Rents Payable,1472.5,0,COMMERCIAL SUPPLIER
06-06-2022,Inclusive Economy & Housing,Metro Letts Ltd,Rents Payable,1860,0,COMMERCIAL SUPPLIER
06-06-2022,Inclusive Economy & Housing,Metro Letts Ltd,Rents Payable,1705,0,COMMERCIAL SUPPLIER
06-06-2022,Inclusive Economy & Housing,Metro Letts Ltd,Rents Payable,1417.32,0,COMMERCIAL SUPPLIER
06-06-2022,Inclusive Economy & Housing,Metro Letts Ltd,Rents Payable,1417.32,0,COMMERCIAL SUPPLIER
06-06-2022,Inclusive Economy & Housing,Metro Letts Ltd,Rents Payable,1705,0,COMMERCIAL SUPPLIER
06-06-2022,Inclusive Economy & Housing,Metro Letts Ltd,Rents Payable,1054,0,COMMERCIAL SUPPLIER
06-06-2022,Inclusive Economy & Housing,Metro Letts Ltd,Rents Payable,1472.5,0,COMMERCIAL SUPPLIER
06-06-2022,Inclusive Economy & Housing,Metro Letts Ltd,Rents Payable,1472.5,0,COMMERCIAL SUPPLIER
06-06-2022,Inclusive Economy & Housing,Metro Letts Ltd,Rents Payable,1860,0,COMMERCIAL SUPPLIER
06-06-2022,Inclusive Economy & Housing,Metro Letts Ltd,Rents Payable,1472.5,0,COMMERCIAL SUPPLIER
06-06-2022,Inclusive Economy & Housing,Metro Letts Ltd,Rents Payable,1417.32,0,COMMERCIAL SUPPLIER
06-06-2022,Inclusive Economy & Housing,Metro Letts Ltd,Rents Payable,1767,0,COMMERCIAL SUPPLIER
06-06-2022,Inclusive Economy & Housing,Metro Letts Ltd,Rents Payable,1705,0,COMMERCIAL SUPPLIER
06-06-2022,Inclusive Economy & Housing,Metro Letts Ltd,Rents Payable,1860,0,COMMERCIAL SUPPLIER
06-06-2022,Inclusive Economy & Housing,Metro Letts Ltd,Rents Payable,1116,0,COMMERCIAL SUPPLIER
06-06-2022,Inclusive Economy & Housing,Metro Letts Ltd,Rents Payable,1860,0,COMMERCIAL SUPPLIER
06-06-2022,Inclusive Economy & Housing,Metro Letts Ltd,Rents Payable,1860,0,COMMERCIAL SUPPLIER
06-06-2022,Inclusive Economy & Housing,Metro Letts Ltd,Rents Payable,1550,0,COMMERCIAL SUPPLIER
06-06-2022,Inclusive Economy & Housing,Metro Letts Ltd,Rents Payable,1116,0,COMMERCIAL SUPPLIER
06-06-2022,Inclusive Economy & Housing,Metro Letts Ltd,Rents Payable,1953,0,COMMERCIAL SUPPLIER
06-06-2022,Inclusive Economy & Housing,Metro Letts Ltd,Rents Payable,1953,0,COMMERCIAL SUPPLIER
06-06-2022,Inclusive Economy & Housing,Metro Letts Ltd,Rents Payable,868,0,COMMERCIAL SUPPLIER
06-06-2022,Inclusive Economy & Housing,Metro Letts Ltd,Rents Payable,868,0,COMMERCIAL SUPPLIER
06-06-2022,Inclusive Economy & Housing,Metro Letts Ltd,Rents Payable,868,0,COMMERCIAL SUPPLIER
06-06-2022,Inclusive Economy & Housing,Metro Letts Ltd,Rents Payable,1472.5,0,COMMERCIAL SUPPLIER
06-06-2022,Inclusive Economy & Housing,Metro Letts Ltd,Rents Payable,1116,0,COMMERCIAL SUPPLIER
06-06-2022,Inclusive Economy & Housing,Metro Letts Ltd,Rents Payable,476,0,COMMERCIAL SUPPLIER
06-06-2022,Inclusive Economy & Housing,Metro Letts Ltd,Rents Payable,1302,0,COMMERCIAL SUPPLIER
06-06-2022,Inclusive Economy & Housing,Metro Letts Ltd,Rents Payable,1472.5,0,COMMERCIAL SUPPLIER
06-06-2022,Inclusive Economy & Housing,Metro Letts Ltd,Rents Payable,1705,0,COMMERCIAL SUPPLIER
06-06-2022,Inclusive Economy & Housing,Metro Letts Ltd,Rents Payable,500,0,COMMERCIAL SUPPLIER
06-06-2022,Inclusive Economy & Housing,Metro Letts Ltd,Rents Payable,1116,0,COMMERCIAL SUPPLIER
06-06-2022,Inclusive Economy & Housing,Metro Letts Ltd,Rents Payable,1472.5,0,COMMERCIAL SUPPLIER
06-06-2022,Inclusive Economy & Housing,Metro Letts Ltd,Rents Payable,1472.5,0,COMMERCIAL SUPPLIER
06-06-2022,Inclusive Economy & Housing,Metro Letts Ltd,Rents Payable,1302,0,COMMERCIAL SUPPLIER
06-06-2022,Inclusive Economy & Housing,AMS Housing Group,Rents Payable,1860,0,NON COMMERCIAL SUPPLIER
06-06-2022,Inclusive Economy & Housing,AMS Housing Group,Rents Payable,1116,0,NON COMMERCIAL SUPPLIER
06-06-2022,Inclusive Economy & Housing,AMS Housing Group,Rents Payable,1085,0,NON COMMERCIAL SUPPLIER
06-06-2022,Inclusive Economy & Housing,AMS Housing Group,Rents Payable,1674,0,NON COMMERCIAL SUPPLIER
06-06-2022,Inclusive Economy & Housing,ZK1 t/a Capel Estates,Rents Payable,1660.98,0,COMMERCIAL SUPPLIER
06-06-2022,Inclusive Economy & Housing,Claremont Residential Ltd,Rents Payable,1705,0,NON COMMERCIAL SUPPLIER
06-06-2022,Inclusive Economy & Housing,Claremont Residential Ltd,Rents Payable,1417.32,0,NON COMMERCIAL SUPPLIER
06-06-2022,Inclusive Economy & Housing,Claremont Residential Ltd,Rents Payable,1860,0,NON COMMERCIAL SUPPLIER
06-06-2022,Inclusive Economy & Housing,Claremont Residential Ltd,Rents Payable,1860,0,NON COMMERCIAL SUPPLIER
06-06-2022,Inclusive Economy & Housing,Claremont Residential Ltd,Rents Payable,1395,0,NON COMMERCIAL SUPPLIER
06-06-2022,Inclusive Economy & Housing,Claremont Residential Ltd,Rents Payable,1472.5,0,NON COMMERCIAL SUPPLIER
06-06-2022,Inclusive Economy & Housing,Claremont Residential Ltd,Rents Payable,1674,0,NON COMMERCIAL SUPPLIER
06-06-2022,Inclusive Economy & Housing,Claremont Residential Ltd,Rents Payable,1705,0,NON COMMERCIAL SUPPLIER
06-06-2022,Inclusive Economy & Housing,Claremont Residential Ltd,Rents Payable,1705,0,NON COMMERCIAL SUPPLIER
06-06-2022,Inclusive Economy & Housing,Claremont Residential Ltd,Rents Payable,1472.5,0,NON COMMERCIAL SUPPLIER
06-06-2022,Inclusive Economy & Housing,Claremont Residential Ltd,Rents Payable,1705,0,NON COMMERCIAL SUPPLIER
06-06-2022,Inclusive Economy & Housing,Claremont Residential Ltd,Rents Payable,1472.5,0,NON COMMERCIAL SUPPLIER
06-06-2022,Inclusive Economy & Housing,Claremont Residential Ltd,Rents Payable,1472.5,0,NON COMMERCIAL SUPPLIER
06-06-2022,Inclusive Economy & Housing,Claremont Residential Ltd,Rents Payable,1860,0,NON COMMERCIAL SUPPLIER
06-06-2022,Inclusive Economy & Housing,Claremont Residential Ltd,Rents Payable,1550,0,NON COMMERCIAL SUPPLIER
06-06-2022,Inclusive Economy & Housing,Claremont Residential Ltd,Rents Payable,1472.5,0,NON COMMERCIAL SUPPLIER
06-06-2022,Inclusive Economy & Housing,Claremont Residential Ltd,Rents Payable,1860,0,NON COMMERCIAL SUPPLIER
06-06-2022,Inclusive Economy & Housing,Claremont Residential Ltd,Rents Payable,1705,0,NON COMMERCIAL SUPPLIER
06-06-2022,Inclusive Economy & Housing,Claremont Residential Ltd,Rents Payable,617.5,0,NON COMMERCIAL SUPPLIER
06-06-2022,Inclusive Economy & Housing,Claremont Residential Ltd,Rents Payable,1705,0,NON COMMERCIAL SUPPLIER
06-06-2022,Inclusive Economy & Housing,Claremont Residential Ltd,Rents Payable,1472.5,0,NON COMMERCIAL SUPPLIER
06-06-2022,Inclusive Economy & Housing,Claremont Residential Ltd,Rents Payable,1705,0,NON COMMERCIAL SUPPLIER
06-06-2022,Inclusive Economy & Housing,Claremont Residential Ltd,Rents Payable,1054,0,NON COMMERCIAL SUPPLIER
06-06-2022,Inclusive Economy & Housing,Claremont Residential Ltd,Rents Payable,1860,0,NON COMMERCIAL SUPPLIER
06-06-2022,Inclusive Economy & Housing,Claremont Residential Ltd,Rents Payable,1503.5,0,NON COMMERCIAL SUPPLIER
06-06-2022,Inclusive Economy & Housing,Claremont Residential Ltd,Rents Payable,1705,0,NON COMMERCIAL SUPPLIER
06-06-2022,Inclusive Economy & Housing,Claremont Residential Ltd,Rents Payable,1085,0,NON COMMERCIAL SUPPLIER
06-06-2022,Inclusive Economy & Housing,Claremont Residential Ltd,Rents Payable,1860,0,NON COMMERCIAL SUPPLIER
06-06-2022,Inclusive Economy & Housing,Claremont Residential Ltd,Rents Payable,1860,0,NON COMMERCIAL SUPPLIER
06-06-2022,Inclusive Economy & Housing,Claremont Residential Ltd,Rents Payable,1705,0,NON COMMERCIAL SUPPLIER
06-06-2022,Inclusive Economy & Housing,Claremont Residential Ltd,Rents Payable,1472.5,0,NON COMMERCIAL SUPPLIER
06-06-2022,Inclusive Economy & Housing,Claremont Residential Ltd,Rents Payable,1472.5,0,NON COMMERCIAL SUPPLIER
06-06-2022,Inclusive Economy & Housing,Metro Letts Ltd,Rents Payable,1395,0,COMMERCIAL SUPPLIER
06-06-2022,Inclusive Economy & Housing,Metro Letts Ltd,Rents Payable,1705,0,COMMERCIAL SUPPLIER
06-06-2022,Inclusive Economy & Housing,Metro Letts Ltd,Rents Payable,1860,0,COMMERCIAL SUPPLIER
06-06-2022,Inclusive Economy & Housing,Metro Letts Ltd,Rents Payable,1116,0,COMMERCIAL SUPPLIER
06-06-2022,Inclusive Economy & Housing,Metro Letts Ltd,Rents Payable,1860,0,COMMERCIAL SUPPLIER
06-06-2022,Inclusive Economy & Housing,Metro Letts Ltd,Rents Payable,1417.32,0,COMMERCIAL SUPPLIER
06-06-2022,Inclusive Economy & Housing,Metro Letts Ltd,Rents Payable,1860,0,COMMERCIAL SUPPLIER
06-06-2022,Inclusive Economy & Housing,Metro Letts Ltd,Rents Payable,1860,0,COMMERCIAL SUPPLIER
06-06-2022,Inclusive Economy & Housing,Metro Letts Ltd,Rents Payable,1705,0,COMMERCIAL SUPPLIER
06-06-2022,Inclusive Economy & Housing,Metro Letts Ltd,Rents Payable,1116,0,COMMERCIAL SUPPLIER
06-06-2022,Inclusive Economy & Housing,Metro Letts Ltd,Rents Payable,1417.32,0,COMMERCIAL SUPPLIER
06-06-2022,Inclusive Economy & Housing,Metro Letts Ltd,Rents Payable,1953,0,COMMERCIAL SUPPLIER
06-06-2022,Inclusive Economy & Housing,Metro Letts Ltd,Rents Payable,1417.32,0,COMMERCIAL SUPPLIER
06-06-2022,Inclusive Economy & Housing,Metro Letts Ltd,Rents Payable,1705,0,COMMERCIAL SUPPLIER
06-06-2022,Inclusive Economy & Housing,Metro Letts Ltd,Rents Payable,1116,0,COMMERCIAL SUPPLIER
06-06-2022,Inclusive Economy & Housing,Metro Letts Ltd,Rents Payable,1705,0,COMMERCIAL SUPPLIER
06-06-2022,Inclusive Economy & Housing,Metro Letts Ltd,Rents Payable,1472.5,0,COMMERCIAL SUPPLIER
06-06-2022,Inclusive Economy & Housing,Metro Letts Ltd,Rents Payable,1705,0,COMMERCIAL SUPPLIER
06-06-2022,Inclusive Economy & Housing,Metro Letts Ltd,Rents Payable,1472.5,0,COMMERCIAL SUPPLIER
06-06-2022,Inclusive Economy & Housing,Metro Letts Ltd,Rents Payable,1660.98,0,COMMERCIAL SUPPLIER
06-06-2022,Inclusive Economy & Housing,Metro Letts Ltd,Rents Payable,1116,0,COMMERCIAL SUPPLIER
06-06-2022,Inclusive Economy & Housing,Metro Letts Ltd,Rents Payable,1705,0,COMMERCIAL SUPPLIER
06-06-2022,Inclusive Economy & Housing,Metro Letts Ltd,Rents Payable,1271,0,COMMERCIAL SUPPLIER
06-06-2022,Inclusive Economy & Housing,Metro Letts Ltd,Rents Payable,1472.5,0,COMMERCIAL SUPPLIER
06-06-2022,Inclusive Economy & Housing,Metro Letts Ltd,Rents Payable,1705,0,COMMERCIAL SUPPLIER
06-06-2022,Inclusive Economy & Housing,Metro Letts Ltd,Rents Payable,1472.5,0,COMMERCIAL SUPPLIER
06-06-2022,Inclusive Economy & Housing,Metro Letts Ltd,Rents Payable,1705,0,COMMERCIAL SUPPLIER
06-06-2022,Inclusive Economy & Housing,JS Management Ltd,Rents Payable,1705,0,COMMERCIAL SUPPLIER
06-06-2022,Inclusive Economy & Housing,JS Management Ltd,Rents Payable,1705,0,COMMERCIAL SUPPLIER
06-06-2022,Inclusive Economy & Housing,JS Management Ltd,Rents Payable,1302,0,COMMERCIAL SUPPLIER
06-06-2022,Inclusive Economy & Housing,JS Management Ltd,Rents Payable,1705,0,COMMERCIAL SUPPLIER
06-06-2022,Inclusive Economy & Housing,JS Management Ltd,Rents Payable,1953,0,COMMERCIAL SUPPLIER
06-06-2022,Inclusive Economy & Housing,JS Management Ltd,Rents Payable,1705,0,COMMERCIAL SUPPLIER
06-06-2022,Inclusive Economy & Housing,JS Management Ltd,Rents Payable,510,0,COMMERCIAL SUPPLIER
06-06-2022,Inclusive Economy & Housing,JS Management Ltd,Rents Payable,472.5,0,COMMERCIAL SUPPLIER
06-06-2022,Inclusive Economy & Housing,JS Management Ltd,Rents Payable,1705,0,COMMERCIAL SUPPLIER
06-06-2022,Inclusive Economy & Housing,JS Management Ltd,Rents Payable,1302,0,COMMERCIAL SUPPLIER
06-06-2022,Inclusive Economy & Housing,JS Management Ltd,Rents Payable,1302,0,COMMERCIAL SUPPLIER
06-06-2022,Inclusive Economy & Housing,JS Management Ltd,Rents Payable,1705,0,COMMERCIAL SUPPLIER
06-06-2022,Inclusive Economy & Housing,JS Management Ltd,Rents Payable,1953,0,COMMERCIAL SUPPLIER
06-06-2022,Inclusive Economy & Housing,JS Management Ltd,Rents Payable,837,0,COMMERCIAL SUPPLIER
06-06-2022,Inclusive Economy & Housing,JS Management Ltd,Rents Payable,1023,0,COMMERCIAL SUPPLIER
06-06-2022,Inclusive Economy & Housing,JS Management Ltd,Rents Payable,1085,0,COMMERCIAL SUPPLIER
06-06-2022,Inclusive Economy & Housing,JS Management Ltd,Rents Payable,459,0,COMMERCIAL SUPPLIER
06-06-2022,Inclusive Economy & Housing,JS Management Ltd,Rents Payable,1705,0,COMMERCIAL SUPPLIER
06-06-2022,Inclusive Economy & Housing,JS Management Ltd,Rents Payable,2263,0,COMMERCIAL SUPPLIER
06-06-2022,Inclusive Economy & Housing,JS Management Ltd,Rents Payable,726,0,COMMERCIAL SUPPLIER
06-06-2022,Inclusive Economy & Housing,JS Management Ltd,Rents Payable,1627.5,0,COMMERCIAL SUPPLIER
06-06-2022,Inclusive Economy & Housing,JS Management Ltd,Rents Payable,1953,0,COMMERCIAL SUPPLIER
06-06-2022,Inclusive Economy & Housing,JS Management Ltd,Rents Payable,1488,0,COMMERCIAL SUPPLIER
06-06-2022,Inclusive Economy & Housing,JS Management Ltd,Rents Payable,1410.5,0,COMMERCIAL SUPPLIER
06-06-2022,Inclusive Economy & Housing,JS Management Ltd,Rents Payable,1302,0,COMMERCIAL SUPPLIER
06-06-2022,Inclusive Economy & Housing,London Property Developments,Rents Payable,1116,0,NON COMMERCIAL SUPPLIER
06-06-2022,Inclusive Economy & Housing,London Property Developments,Rents Payable,1302,0,NON COMMERCIAL SUPPLIER
06-06-2022,Inclusive Economy & Housing,London Property Developments,Rents Payable,1395,0,NON COMMERCIAL SUPPLIER
06-06-2022,Inclusive Economy & Housing,London Property Developments,Rents Payable,1116,0,NON COMMERCIAL SUPPLIER
06-06-2022,Inclusive Economy & Housing,London Property Developments,Rents Payable,1395,0,NON COMMERCIAL SUPPLIER
06-06-2022,Inclusive Economy & Housing,London Property Developments,Rents Payable,1023,0,NON COMMERCIAL SUPPLIER
06-06-2022,Inclusive Economy & Housing,London Property Developments,Rents Payable,1333,0,NON COMMERCIAL SUPPLIER
06-06-2022,Inclusive Economy & Housing,London Property Developments,Rents Payable,1798,0,NON COMMERCIAL SUPPLIER
06-06-2022,Inclusive Economy & Housing,London Property Developments,Rents Payable,1798,0,NON COMMERCIAL SUPPLIER
06-06-2022,Inclusive Economy & Housing,London Property Developments,Rents Payable,1798,0,NON COMMERCIAL SUPPLIER
06-06-2022,Inclusive Economy & Housing,London Property Developments,Rents Payable,1798,0,NON COMMERCIAL SUPPLIER
06-06-2022,Inclusive Economy & Housing,London Property Developments,Rents Payable,1627.5,0,NON COMMERCIAL SUPPLIER
06-06-2022,Inclusive Economy & Housing,London Property Developments,Rents Payable,1116,0,NON COMMERCIAL SUPPLIER
06-06-2022,Inclusive Economy & Housing,London Property Developments,Rents Payable,1302,0,NON COMMERCIAL SUPPLIER
06-06-2022,Inclusive Economy & Housing,London Property Developments,Rents Payable,1302,0,NON COMMERCIAL SUPPLIER
06-06-2022,Inclusive Economy & Housing,London Property Developments,Rents Payable,1674,0,NON COMMERCIAL SUPPLIER
06-06-2022,Inclusive Economy & Housing,London Property Developments,Rents Payable,1302,0,NON COMMERCIAL SUPPLIER
06-06-2022,Inclusive Economy & Housing,London Property Developments,Rents Payable,1333,0,NON COMMERCIAL SUPPLIER
06-06-2022,Inclusive Economy & Housing,London Property Developments,Rents Payable,1302,0,NON COMMERCIAL SUPPLIER
06-06-2022,Inclusive Economy & Housing,London Property Developments,Rents Payable,1116,0,NON COMMERCIAL SUPPLIER
06-06-2022,Inclusive Economy & Housing,London Property Developments,Rents Payable,1503.5,0,NON COMMERCIAL SUPPLIER
06-06-2022,Inclusive Economy & Housing,London Property Developments,Rents Payable,1302,0,NON COMMERCIAL SUPPLIER
06-06-2022,Inclusive Economy & Housing,London Property Developments,Rents Payable,1503.5,0,NON COMMERCIAL SUPPLIER
06-06-2022,Inclusive Economy & Housing,Midos Management Co Ltd,Rents Payable,1860,0,COMMERCIAL SUPPLIER
06-06-2022,Inclusive Economy & Housing,Midos Management Co Ltd,Rents Payable,1395,0,COMMERCIAL SUPPLIER
06-06-2022,Inclusive Economy & Housing,AMS Housing Group,Rents Payable,1678.65,0,NON COMMERCIAL SUPPLIER
06-06-2022,Inclusive Economy & Housing,AMS Housing Group,Rents Payable,1417.32,0,NON COMMERCIAL SUPPLIER
06-06-2022,Inclusive Economy & Housing,AMS Housing Group,Rents Payable,1472.5,0,NON COMMERCIAL SUPPLIER
06-06-2022,Inclusive Economy & Housing,AMS Housing Group,Rents Payable,1767,0,NON COMMERCIAL SUPPLIER
06-06-2022,Inclusive Economy & Housing,AMS Housing Group,Rents Payable,1417.32,0,NON COMMERCIAL SUPPLIER
06-06-2022,Inclusive Economy & Housing,AMS Housing Group,Rents Payable,1705,0,NON COMMERCIAL SUPPLIER
06-06-2022,Inclusive Economy & Housing,AMS Housing Group,Rents Payable,1472.5,0,NON COMMERCIAL SUPPLIER
06-06-2022,Inclusive Economy & Housing,AMS Housing Group,Rents Payable,1417.32,0,NON COMMERCIAL SUPPLIER
06-06-2022,Inclusive Economy & Housing,AMS Housing Group,Rents Payable,1705,0,NON COMMERCIAL SUPPLIER
06-06-2022,Inclusive Economy & Housing,AMS Housing Group,Rents Payable,1472.5,0,NON COMMERCIAL SUPPLIER
06-06-2022,Inclusive Economy & Housing,AMS Housing Group,Rents Payable,1472.5,0,NON COMMERCIAL SUPPLIER
06-06-2022,Inclusive Economy & Housing,AMS Housing Group,Rents Payable,1472.5,0,NON COMMERCIAL SUPPLIER
06-06-2022,Inclusive Economy & Housing,AMS Housing Group,Rents Payable,1472.5,0,NON COMMERCIAL SUPPLIER
06-06-2022,Inclusive Economy & Housing,AMS Housing Group,Rents Payable,1472.5,0,NON COMMERCIAL SUPPLIER
06-06-2022,Inclusive Economy & Housing,JS Management Ltd,Rents Payable,1302,0,COMMERCIAL SUPPLIER
06-06-2022,Inclusive Economy & Housing,JS Management Ltd,Rents Payable,1705,0,COMMERCIAL SUPPLIER
06-06-2022,Inclusive Economy & Housing,JS Management Ltd,Rents Payable,798,0,COMMERCIAL SUPPLIER
06-06-2022,Inclusive Economy & Housing,JS Management Ltd,Rents Payable,1705,0,COMMERCIAL SUPPLIER
06-06-2022,Inclusive Economy & Housing,JS Management Ltd,Rents Payable,1705,0,COMMERCIAL SUPPLIER
06-06-2022,Inclusive Economy & Housing,JS Management Ltd,Rents Payable,1627.5,0,COMMERCIAL SUPPLIER
06-06-2022,Inclusive Economy & Housing,JS Management Ltd,Rents Payable,1417.32,0,COMMERCIAL SUPPLIER
06-06-2022,Inclusive Economy & Housing,JS Management Ltd,Rents Payable,1085,0,COMMERCIAL SUPPLIER
06-06-2022,Inclusive Economy & Housing,JS Management Ltd,Rents Payable,1705,0,COMMERCIAL SUPPLIER
06-06-2022,Inclusive Economy & Housing,JS Management Ltd,Rents Payable,1705,0,COMMERCIAL SUPPLIER
06-06-2022,Inclusive Economy & Housing,JS Management Ltd,Rents Payable,1953,0,COMMERCIAL SUPPLIER
06-06-2022,Inclusive Economy & Housing,JS Management Ltd,Rents Payable,1705,0,COMMERCIAL SUPPLIER
06-06-2022,Inclusive Economy & Housing,JS Management Ltd,Rents Payable,1302,0,COMMERCIAL SUPPLIER
06-06-2022,Inclusive Economy & Housing,JS Management Ltd,Rents Payable,1302,0,COMMERCIAL SUPPLIER
06-06-2022,Inclusive Economy & Housing,JS Management Ltd,Rents Payable,1302,0,COMMERCIAL SUPPLIER
06-06-2022,Inclusive Economy & Housing,JS Management Ltd,Rents Payable,1953,0,COMMERCIAL SUPPLIER
06-06-2022,Inclusive Economy & Housing,JS Management Ltd,Rents Payable,1472.5,0,COMMERCIAL SUPPLIER
06-06-2022,Inclusive Economy & Housing,JS Management Ltd,Rents Payable,1798,0,COMMERCIAL SUPPLIER
06-06-2022,Inclusive Economy & Housing,JS Management Ltd,Rents Payable,1705,0,COMMERCIAL SUPPLIER
06-06-2022,Inclusive Economy & Housing,JS Management Ltd,Rents Payable,1705,0,COMMERCIAL SUPPLIER
06-06-2022,Inclusive Economy & Housing,JS Management Ltd,Rents Payable,2015,0,COMMERCIAL SUPPLIER
06-06-2022,Inclusive Economy & Housing,JS Management Ltd,Rents Payable,1627.5,0,COMMERCIAL SUPPLIER
06-06-2022,Inclusive Economy & Housing,JS Management Ltd,Rents Payable,1271,0,COMMERCIAL SUPPLIER
06-06-2022,Inclusive Economy & Housing,JS Management Ltd,Rents Payable,1705,0,COMMERCIAL SUPPLIER
06-06-2022,Inclusive Economy & Housing,JS Management Ltd,Rents Payable,1860,0,COMMERCIAL SUPPLIER
06-06-2022,Inclusive Economy & Housing,JS Management Ltd,Rents Payable,1550,0,COMMERCIAL SUPPLIER
06-06-2022,Inclusive Economy & Housing,JS Management Ltd,Rents Payable,1860,0,COMMERCIAL SUPPLIER
06-06-2022,Inclusive Economy & Housing,JS Management Ltd,Rents Payable,1705,0,COMMERCIAL SUPPLIER
06-06-2022,Inclusive Economy & Housing,JS Management Ltd,Rents Payable,1771.65,0,COMMERCIAL SUPPLIER
06-06-2022,Inclusive Economy & Housing,JS Management Ltd,Rents Payable,1771.65,0,COMMERCIAL SUPPLIER
06-06-2022,Inclusive Economy & Housing,JS Management Ltd,Rents Payable,1860,0,COMMERCIAL SUPPLIER
06-06-2022,Inclusive Economy & Housing,JS Management Ltd,Rents Payable,1023,0,COMMERCIAL SUPPLIER
06-06-2022,Inclusive Economy & Housing,JS Management Ltd,Rents Payable,2015,0,COMMERCIAL SUPPLIER
06-06-2022,Inclusive Economy & Housing,JS Management Ltd,Rents Payable,1705,0,COMMERCIAL SUPPLIER
06-06-2022,Inclusive Economy & Housing,JS Management Ltd,Rents Payable,1749.33,0,COMMERCIAL SUPPLIER
06-06-2022,Inclusive Economy & Housing,JS Management Ltd,Rents Payable,2170,0,COMMERCIAL SUPPLIER
06-06-2022,Inclusive Economy & Housing,JS Management Ltd,Rents Payable,1116,0,COMMERCIAL SUPPLIER
06-06-2022,Inclusive Economy & Housing,JS Management Ltd,Rents Payable,1627.5,0,COMMERCIAL SUPPLIER
06-06-2022,Inclusive Economy & Housing,JS Management Ltd,Rents Payable,1705,0,COMMERCIAL SUPPLIER
06-06-2022,Inclusive Economy & Housing,JS Management Ltd,Rents Payable,1627.5,0,COMMERCIAL SUPPLIER
06-06-2022,Inclusive Economy & Housing,JS Management Ltd,Rents Payable,1240,0,COMMERCIAL SUPPLIER
06-06-2022,Inclusive Economy & Housing,JS Management Ltd,Rents Payable,1705,0,COMMERCIAL SUPPLIER
06-06-2022,Inclusive Economy & Housing,JS Management Ltd,Rents Payable,1116,0,COMMERCIAL SUPPLIER
06-06-2022,Inclusive Economy & Housing,JS Management Ltd,Rents Payable,1417.32,0,COMMERCIAL SUPPLIER
06-06-2022,Inclusive Economy & Housing,JS Management Ltd,Rents Payable,1116,0,COMMERCIAL SUPPLIER
06-06-2022,Inclusive Economy & Housing,JS Management Ltd,Rents Payable,1302,0,COMMERCIAL SUPPLIER
06-06-2022,Inclusive Economy & Housing,JS Management Ltd,Rents Payable,1472.5,0,COMMERCIAL SUPPLIER
06-06-2022,Inclusive Economy & Housing,JS Management Ltd,Rents Payable,1627.5,0,COMMERCIAL SUPPLIER
06-06-2022,Inclusive Economy & Housing,JS Management Ltd,Rents Payable,1116,0,COMMERCIAL SUPPLIER
06-06-2022,Inclusive Economy & Housing,JS Management Ltd,Rents Payable,1116,0,COMMERCIAL SUPPLIER
06-06-2022,Inclusive Economy & Housing,JS Management Ltd,Rents Payable,1240,0,COMMERCIAL SUPPLIER
06-06-2022,Inclusive Economy & Housing,JS Management Ltd,Rents Payable,1705,0,COMMERCIAL SUPPLIER
06-06-2022,Inclusive Economy & Housing,JS Management Ltd,Rents Payable,1472.5,0,COMMERCIAL SUPPLIER
06-06-2022,Inclusive Economy & Housing,JS Management Ltd,Rents Payable,1426,0,COMMERCIAL SUPPLIER
06-06-2022,Inclusive Economy & Housing,JS Management Ltd,Rents Payable,1054,0,COMMERCIAL SUPPLIER
06-06-2022,Inclusive Economy & Housing,JS Management Ltd,Rents Payable,1550,0,COMMERCIAL SUPPLIER
06-06-2022,Inclusive Economy & Housing,JS Management Ltd,Rents Payable,1705,0,COMMERCIAL SUPPLIER
06-06-2022,Inclusive Economy & Housing,JS Management Ltd,Rents Payable,1705,0,COMMERCIAL SUPPLIER
06-06-2022,Inclusive Economy & Housing,JS Management Ltd,Rents Payable,1705,0,COMMERCIAL SUPPLIER
06-06-2022,Inclusive Economy & Housing,JS Management Ltd,Rents Payable,1705,0,COMMERCIAL SUPPLIER
06-06-2022,Inclusive Economy & Housing,JS Management Ltd,Rents Payable,1240,0,COMMERCIAL SUPPLIER
06-06-2022,Inclusive Economy & Housing,JS Management Ltd,Rents Payable,2170,0,COMMERCIAL SUPPLIER
06-06-2022,Inclusive Economy & Housing,JS Management Ltd,Rents Payable,1116,0,COMMERCIAL SUPPLIER
06-06-2022,Inclusive Economy & Housing,JS Management Ltd,Rents Payable,1705,0,COMMERCIAL SUPPLIER
06-06-2022,Inclusive Economy & Housing,Winmore Properties Ltd,Rents Payable,1395,0,COMMERCIAL SUPPLIER
06-06-2022,Inclusive Economy & Housing,Winmore Properties Ltd,Rents Payable,1240,0,COMMERCIAL SUPPLIER
06-06-2022,Inclusive Economy & Housing,Winmore Properties Ltd,Rents Payable,1240,0,COMMERCIAL SUPPLIER
06-06-2022,Inclusive Economy & Housing,Winmore Properties Ltd,Rents Payable,1023,0,COMMERCIAL SUPPLIER
06-06-2022,Inclusive Economy & Housing,Winmore Properties Ltd,Rents Payable,1860,0,COMMERCIAL SUPPLIER
06-06-2022,Inclusive Economy & Housing,Winmore Properties Ltd,Rents Payable,1054,0,COMMERCIAL SUPPLIER
06-06-2022,Inclusive Economy & Housing,Winmore Properties Ltd,Rents Payable,1271,0,COMMERCIAL SUPPLIER
06-06-2022,Inclusive Economy & Housing,Winmore Properties Ltd,Rents Payable,883.5,0,COMMERCIAL SUPPLIER
06-06-2022,Inclusive Economy & Housing,Winmore Properties Ltd,Rents Payable,1178,0,COMMERCIAL SUPPLIER
06-06-2022,Inclusive Economy & Housing,Winmore Properties Ltd,Rents Payable,1435.3,0,COMMERCIAL SUPPLIER
06-06-2022,Inclusive Economy & Housing,Winmore Properties Ltd,Rents Payable,1472.5,0,COMMERCIAL SUPPLIER
06-06-2022,Inclusive Economy & Housing,Winmore Properties Ltd,Rents Payable,1271,0,COMMERCIAL SUPPLIER
06-06-2022,Inclusive Economy & Housing,Winmore Properties Ltd,Rents Payable,883.5,0,COMMERCIAL SUPPLIER
06-06-2022,Inclusive Economy & Housing,Winmore Properties Ltd,Rents Payable,883.5,0,COMMERCIAL SUPPLIER
06-06-2022,Inclusive Economy & Housing,Winmore Properties Ltd,Rents Payable,1271,0,COMMERCIAL SUPPLIER
06-06-2022,Inclusive Economy & Housing,Winmore Properties Ltd,Rents Payable,883.5,0,COMMERCIAL SUPPLIER
06-06-2022,Inclusive Economy & Housing,Winmore Properties Ltd,Rents Payable,1771.65,0,COMMERCIAL SUPPLIER
06-06-2022,Inclusive Economy & Housing,Winmore Properties Ltd,Rents Payable,1472.5,0,COMMERCIAL SUPPLIER
06-06-2022,Inclusive Economy & Housing,Winmore Properties Ltd,Rents Payable,1054,0,COMMERCIAL SUPPLIER
06-06-2022,Inclusive Economy & Housing,Winmore Properties Ltd,Rents Payable,1054,0,COMMERCIAL SUPPLIER
06-06-2022,Inclusive Economy & Housing,Winmore Properties Ltd,Rents Payable,1054,0,COMMERCIAL SUPPLIER
06-06-2022,Inclusive Economy & Housing,Winmore Properties Ltd,Rents Payable,868,0,COMMERCIAL SUPPLIER
06-06-2022,Inclusive Economy & Housing,Winmore Properties Ltd,Rents Payable,1054,0,COMMERCIAL SUPPLIER
06-06-2022,Inclusive Economy & Housing,Winmore Properties Ltd,Rents Payable,883.5,0,COMMERCIAL SUPPLIER
06-06-2022,Inclusive Economy & Housing,Winmore Properties Ltd,Rents Payable,1472.5,0,COMMERCIAL SUPPLIER
06-06-2022,Inclusive Economy & Housing,Winmore Properties Ltd,Rents Payable,1472.5,0,COMMERCIAL SUPPLIER
06-06-2022,Inclusive Economy & Housing,Winmore Properties Ltd,Rents Payable,1417.32,0,COMMERCIAL SUPPLIER
06-06-2022,Inclusive Economy & Housing,Winmore Properties Ltd,Rents Payable,883.5,0,COMMERCIAL SUPPLIER
06-06-2022,Inclusive Economy & Housing,Winmore Properties Ltd,Rents Payable,1395,0,COMMERCIAL SUPPLIER
06-06-2022,Inclusive Economy & Housing,Winmore Properties Ltd,Rents Payable,883.5,0,COMMERCIAL SUPPLIER
06-06-2022,Inclusive Economy & Housing,Winmore Properties Ltd,Rents Payable,1417.32,0,COMMERCIAL SUPPLIER
06-06-2022,Inclusive Economy & Housing,Winmore Properties Ltd,Rents Payable,1302,0,COMMERCIAL SUPPLIER
06-06-2022,Inclusive Economy & Housing,Winmore Properties Ltd,Rents Payable,883.5,0,COMMERCIAL SUPPLIER
06-06-2022,Inclusive Economy & Housing,Winmore Properties Ltd,Rents Payable,1771.65,0,COMMERCIAL SUPPLIER
06-06-2022,Inclusive Economy & Housing,Winmore Properties Ltd,Rents Payable,1271,0,COMMERCIAL SUPPLIER
06-06-2022,Inclusive Economy & Housing,Winmore Properties Ltd,Rents Payable,1054,0,COMMERCIAL SUPPLIER
06-06-2022,Inclusive Economy & Housing,Winmore Properties Ltd,Rents Payable,1771.65,0,COMMERCIAL SUPPLIER
06-06-2022,Inclusive Economy & Housing,Winmore Properties Ltd,Rents Payable,1054,0,COMMERCIAL SUPPLIER
06-06-2022,Inclusive Economy & Housing,Winmore Properties Ltd,Rents Payable,1771.65,0,COMMERCIAL SUPPLIER
06-06-2022,Inclusive Economy & Housing,Winmore Properties Ltd,Rents Payable,883.5,0,COMMERCIAL SUPPLIER
06-06-2022,Inclusive Economy & Housing,Winmore Properties Ltd,Rents Payable,1953,0,COMMERCIAL SUPPLIER
06-06-2022,Inclusive Economy & Housing,Winmore Properties Ltd,Rents Payable,1860,0,COMMERCIAL SUPPLIER
06-06-2022,Inclusive Economy & Housing,Winmore Properties Ltd,Rents Payable,1417.32,0,COMMERCIAL SUPPLIER
06-06-2022,Inclusive Economy & Housing,Winmore Properties Ltd,Rents Payable,1472.5,0,COMMERCIAL SUPPLIER
06-06-2022,Inclusive Economy & Housing,Winmore Properties Ltd,Rents Payable,1705,0,COMMERCIAL SUPPLIER
06-06-2022,Inclusive Economy & Housing,Winmore Properties Ltd,Rents Payable,627,0,COMMERCIAL SUPPLIER
06-06-2022,Inclusive Economy & Housing,Winmore Properties Ltd,Rents Payable,1550,0,COMMERCIAL SUPPLIER
06-06-2022,Inclusive Economy & Housing,Winmore Properties Ltd,Rents Payable,1395,0,COMMERCIAL SUPPLIER
06-06-2022,Inclusive Economy & Housing,JS Management Ltd,Rents Payable,1953,0,COMMERCIAL SUPPLIER
06-06-2022,Inclusive Economy & Housing,JS Management Ltd,Rents Payable,1953,0,COMMERCIAL SUPPLIER
06-06-2022,Inclusive Economy & Housing,JS Management Ltd,Rents Payable,1417.32,0,COMMERCIAL SUPPLIER
06-06-2022,Inclusive Economy & Housing,JS Management Ltd,Rents Payable,1705,0,COMMERCIAL SUPPLIER
06-06-2022,Inclusive Economy & Housing,JS Management Ltd,Rents Payable,1302,0,COMMERCIAL SUPPLIER
06-06-2022,Inclusive Economy & Housing,JS Management Ltd,Rents Payable,1495,0,COMMERCIAL SUPPLIER
06-06-2022,Inclusive Economy & Housing,JS Management Ltd,Rents Payable,1395,0,COMMERCIAL SUPPLIER
06-06-2022,Inclusive Economy & Housing,JS Management Ltd,Rents Payable,840,0,COMMERCIAL SUPPLIER
06-06-2022,Inclusive Economy & Housing,JS Management Ltd,Rents Payable,1953,0,COMMERCIAL SUPPLIER
06-06-2022,Inclusive Economy & Housing,JS Management Ltd,Rents Payable,1302,0,COMMERCIAL SUPPLIER
06-06-2022,Inclusive Economy & Housing,JS Management Ltd,Rents Payable,1417.32,0,COMMERCIAL SUPPLIER
06-06-2022,Inclusive Economy & Housing,JS Management Ltd,Rents Payable,1193.5,0,COMMERCIAL SUPPLIER
06-06-2022,Inclusive Economy & Housing,JS Management Ltd,Rents Payable,1627.5,0,COMMERCIAL SUPPLIER
06-06-2022,Inclusive Economy & Housing,JS Management Ltd,Rents Payable,1302,0,COMMERCIAL SUPPLIER
06-06-2022,Inclusive Economy & Housing,JS Management Ltd,Rents Payable,1417.32,0,COMMERCIAL SUPPLIER
06-06-2022,Inclusive Economy & Housing,JS Management Ltd,Rents Payable,1302,0,COMMERCIAL SUPPLIER
06-06-2022,Inclusive Economy & Housing,My Housing Ltd,Rents Payable,1705,0,NON COMMERCIAL SUPPLIER
06-06-2022,Inclusive Economy & Housing,My Housing Ltd,Rents Payable,1472.5,0,NON COMMERCIAL SUPPLIER
06-06-2022,Inclusive Economy & Housing,My Housing Ltd,Rents Payable,1472.5,0,NON COMMERCIAL SUPPLIER
06-06-2022,Inclusive Economy & Housing,My Housing Ltd,Rents Payable,1395,0,NON COMMERCIAL SUPPLIER
06-06-2022,Inclusive Economy & Housing,My Housing Ltd,Rents Payable,1705,0,NON COMMERCIAL SUPPLIER
06-06-2022,Inclusive Economy & Housing,My Housing Ltd,Rents Payable,1472.5,0,NON COMMERCIAL SUPPLIER
06-06-2022,Inclusive Economy & Housing,My Housing Ltd,Rents Payable,1705,0,NON COMMERCIAL SUPPLIER
06-06-2022,Inclusive Economy & Housing,My Housing Ltd,Rents Payable,1116,0,NON COMMERCIAL SUPPLIER
06-06-2022,Inclusive Economy & Housing,My Housing Ltd,Rents Payable,1705,0,NON COMMERCIAL SUPPLIER
06-06-2022,Inclusive Economy & Housing,My Housing Ltd,Rents Payable,1705,0,NON COMMERCIAL SUPPLIER
06-06-2022,Inclusive Economy & Housing,My Housing Ltd,Rents Payable,1116,0,NON COMMERCIAL SUPPLIER
06-06-2022,Inclusive Economy & Housing,My Housing Ltd,Rents Payable,1472.5,0,NON COMMERCIAL SUPPLIER
06-06-2022,Inclusive Economy & Housing,My Housing Ltd,Rents Payable,1472.5,0,NON COMMERCIAL SUPPLIER
06-06-2022,Inclusive Economy & Housing,My Housing Ltd,Rents Payable,1302,0,NON COMMERCIAL SUPPLIER
06-06-2022,Inclusive Economy & Housing,My Housing Ltd,Rents Payable,1116,0,NON COMMERCIAL SUPPLIER
06-06-2022,Inclusive Economy & Housing,My Housing Ltd,Rents Payable,1472.5,0,NON COMMERCIAL SUPPLIER
06-06-2022,Inclusive Economy & Housing,My Housing Ltd,Rents Payable,1705,0,NON COMMERCIAL SUPPLIER
06-06-2022,Inclusive Economy & Housing,My Housing Ltd,Rents Payable,1302,0,NON COMMERCIAL SUPPLIER
06-06-2022,Inclusive Economy & Housing,My Housing Ltd,Rents Payable,1472.5,0,NON COMMERCIAL SUPPLIER
06-06-2022,Inclusive Economy & Housing,My Housing Ltd,Rents Payable,1472.5,0,NON COMMERCIAL SUPPLIER
06-06-2022,Inclusive Economy & Housing,My Housing Ltd,Rents Payable,1705,0,NON COMMERCIAL SUPPLIER
06-06-2022,Inclusive Economy & Housing,My Housing Ltd,Rents Payable,1302,0,NON COMMERCIAL SUPPLIER
06-06-2022,Inclusive Economy & Housing,My Housing Ltd,Rents Payable,1472.5,0,NON COMMERCIAL SUPPLIER
06-06-2022,Inclusive Economy & Housing,My Housing Ltd,Rents Payable,1472.5,0,NON COMMERCIAL SUPPLIER
06-06-2022,Inclusive Economy & Housing,My Housing Ltd,Rents Payable,1472.5,0,NON COMMERCIAL SUPPLIER
06-06-2022,Inclusive Economy & Housing,My Housing Ltd,Rents Payable,1472.5,0,NON COMMERCIAL SUPPLIER
06-06-2022,Inclusive Economy & Housing,My Housing Ltd,Rents Payable,1472.5,0,NON COMMERCIAL SUPPLIER
06-06-2022,Inclusive Economy & Housing,BML Property Group Ltd,Rents Payable,1395,0,NON COMMERCIAL SUPPLIER
06-06-2022,Inclusive Economy & Housing,BML Property Group Ltd,Rents Payable,1240,0,NON COMMERCIAL SUPPLIER
06-06-2022,Inclusive Economy & Housing,Thomas Patrick Properties,Rents Payable,1364,0,COMMERCIAL SUPPLIER
06-06-2022,Inclusive Economy & Housing,Thomas Patrick Properties,Rents Payable,1519,0,COMMERCIAL SUPPLIER
06-06-2022,Inclusive Economy & Housing,Winmore Properties Ltd,Rents Payable,1860,0,COMMERCIAL SUPPLIER
06-06-2022,Inclusive Economy & Housing,Winmore Properties Ltd,Rents Payable,775,0,COMMERCIAL SUPPLIER
06-06-2022,Inclusive Economy & Housing,Winmore Properties Ltd,Rents Payable,1771.65,0,COMMERCIAL SUPPLIER
06-06-2022,Inclusive Economy & Housing,Winmore Properties Ltd,Rents Payable,883.5,0,COMMERCIAL SUPPLIER
06-06-2022,Inclusive Economy & Housing,Winmore Properties Ltd,Rents Payable,1860,0,COMMERCIAL SUPPLIER
06-06-2022,Inclusive Economy & Housing,Winmore Properties Ltd,Rents Payable,1472.5,0,COMMERCIAL SUPPLIER
06-06-2022,Inclusive Economy & Housing,Winmore Properties Ltd,Rents Payable,883.5,0,COMMERCIAL SUPPLIER
06-06-2022,Inclusive Economy & Housing,Winmore Properties Ltd,Rents Payable,1705,0,COMMERCIAL SUPPLIER
06-06-2022,Inclusive Economy & Housing,Winmore Properties Ltd,Rents Payable,1550,0,COMMERCIAL SUPPLIER
06-06-2022,Inclusive Economy & Housing,Winmore Properties Ltd,Rents Payable,1860,0,COMMERCIAL SUPPLIER
06-06-2022,Inclusive Economy & Housing,Winmore Properties Ltd,Rents Payable,1705,0,COMMERCIAL SUPPLIER
06-06-2022,Inclusive Economy & Housing,Winmore Properties Ltd,Rents Payable,1240,0,COMMERCIAL SUPPLIER
06-06-2022,Inclusive Economy & Housing,Winmore Properties Ltd,Rents Payable,1550,0,COMMERCIAL SUPPLIER
06-06-2022,Inclusive Economy & Housing,Winmore Properties Ltd,Rents Payable,1550,0,COMMERCIAL SUPPLIER
06-06-2022,Inclusive Economy & Housing,Winmore Properties Ltd,Rents Payable,1705,0,COMMERCIAL SUPPLIER
06-06-2022,Inclusive Economy & Housing,Winmore Properties Ltd,Rents Payable,1550,0,COMMERCIAL SUPPLIER
06-06-2022,Inclusive Economy & Housing,Winmore Properties Ltd,Rents Payable,1550,0,COMMERCIAL SUPPLIER
06-06-2022,Inclusive Economy & Housing,Winmore Properties Ltd,Rents Payable,1705,0,COMMERCIAL SUPPLIER
06-06-2022,Inclusive Economy & Housing,Winmore Properties Ltd,Rents Payable,1705,0,COMMERCIAL SUPPLIER
06-06-2022,Inclusive Economy & Housing,Winmore Properties Ltd,Rents Payable,1550,0,COMMERCIAL SUPPLIER
06-06-2022,Inclusive Economy & Housing,Winmore Properties Ltd,Rents Payable,1550,0,COMMERCIAL SUPPLIER
06-06-2022,Inclusive Economy & Housing,Winmore Properties Ltd,Rents Payable,1705,0,COMMERCIAL SUPPLIER
06-06-2022,Inclusive Economy & Housing,Winmore Properties Ltd,Rents Payable,1860,0,COMMERCIAL SUPPLIER
06-06-2022,Inclusive Economy & Housing,Winmore Properties Ltd,Rents Payable,1550,0,COMMERCIAL SUPPLIER
06-06-2022,Inclusive Economy & Housing,Winmore Properties Ltd,Rents Payable,1240,0,COMMERCIAL SUPPLIER
06-06-2022,Inclusive Economy & Housing,Winmore Properties Ltd,Rents Payable,1240,0,COMMERCIAL SUPPLIER
06-06-2022,Inclusive Economy & Housing,Winmore Properties Ltd,Rents Payable,1860,0,COMMERCIAL SUPPLIER
06-06-2022,Inclusive Economy & Housing,Winmore Properties Ltd,Rents Payable,855,0,COMMERCIAL SUPPLIER
06-06-2022,Inclusive Economy & Housing,Winmore Properties Ltd,Rents Payable,1705,0,COMMERCIAL SUPPLIER
06-06-2022,Inclusive Economy & Housing,Winmore Properties Ltd,Rents Payable,1054,0,COMMERCIAL SUPPLIER
06-06-2022,Inclusive Economy & Housing,Winmore Properties Ltd,Rents Payable,1395,0,COMMERCIAL SUPPLIER
06-06-2022,Inclusive Economy & Housing,Winmore Properties Ltd,Rents Payable,1395,0,COMMERCIAL SUPPLIER
06-06-2022,Inclusive Economy & Housing,Winmore Properties Ltd,Rents Payable,1705,0,COMMERCIAL SUPPLIER
06-06-2022,Inclusive Economy & Housing,Pinnacle Estates Ltd,Rents Payable,1472.5,0,NON COMMERCIAL SUPPLIER
06-06-2022,Inclusive Economy & Housing,Pinnacle Estates Ltd,Rents Payable,1550,0,NON COMMERCIAL SUPPLIER
06-06-2022,Inclusive Economy & Housing,Pinnacle Estates Ltd,Rents Payable,1705,0,NON COMMERCIAL SUPPLIER
06-06-2022,Inclusive Economy & Housing,Pinnacle Estates Ltd,Rents Payable,1472.5,0,NON COMMERCIAL SUPPLIER
06-06-2022,Inclusive Economy & Housing,Pinnacle Estates Ltd,Rents Payable,1271,0,NON COMMERCIAL SUPPLIER
06-06-2022,Inclusive Economy & Housing,Pinnacle Estates Ltd,Rents Payable,180,0,NON COMMERCIAL SUPPLIER
06-06-2022,Inclusive Economy & Housing,Pinnacle Estates Ltd,Rents Payable,1054,0,NON COMMERCIAL SUPPLIER
06-06-2022,Inclusive Economy & Housing,Pinnacle Estates Ltd,Rents Payable,1054,0,NON COMMERCIAL SUPPLIER
06-06-2022,Inclusive Economy & Housing,Pinnacle Estates Ltd,Rents Payable,1417.32,0,NON COMMERCIAL SUPPLIER
06-06-2022,Inclusive Economy & Housing,Pinnacle Estates Ltd,Rents Payable,1178,0,NON COMMERCIAL SUPPLIER
06-06-2022,Inclusive Economy & Housing,Pinnacle Estates Ltd,Rents Payable,1178,0,NON COMMERCIAL SUPPLIER
06-06-2022,Inclusive Economy & Housing,Pinnacle Estates Ltd,Rents Payable,1417.32,0,NON COMMERCIAL SUPPLIER
06-06-2022,Inclusive Economy & Housing,Pinnacle Estates Ltd,Rents Payable,1116,0,NON COMMERCIAL SUPPLIER
06-06-2022,Inclusive Economy & Housing,Pinnacle Estates Ltd,Rents Payable,1224.5,0,NON COMMERCIAL SUPPLIER
06-06-2022,Inclusive Economy & Housing,Pinnacle Estates Ltd,Rents Payable,1116,0,NON COMMERCIAL SUPPLIER
06-06-2022,Inclusive Economy & Housing,Pinnacle Estates Ltd,Rents Payable,1054,0,NON COMMERCIAL SUPPLIER
06-06-2022,Inclusive Economy & Housing,Pinnacle Estates Ltd,Rents Payable,1472.5,0,NON COMMERCIAL SUPPLIER
06-06-2022,Inclusive Economy & Housing,Pinnacle Estates Ltd,Rents Payable,868,0,NON COMMERCIAL SUPPLIER
06-06-2022,Inclusive Economy & Housing,Pinnacle Estates Ltd,Rents Payable,1417.32,0,NON COMMERCIAL SUPPLIER
06-06-2022,Inclusive Economy & Housing,Pinnacle Estates Ltd,Rents Payable,1417.32,0,NON COMMERCIAL SUPPLIER
06-06-2022,Inclusive Economy & Housing,Pinnacle Estates Ltd,Rents Payable,1178,0,NON COMMERCIAL SUPPLIER
06-06-2022,Inclusive Economy & Housing,Pinnacle Estates Ltd,Rents Payable,1472.5,0,NON COMMERCIAL SUPPLIER
06-06-2022,Inclusive Economy & Housing,Pinnacle Estates Ltd,Rents Payable,1271,0,NON COMMERCIAL SUPPLIER
06-06-2022,Inclusive Economy & Housing,Pinnacle Estates Ltd,Rents Payable,28.5,0,NON COMMERCIAL SUPPLIER
06-06-2022,Inclusive Economy & Housing,Pinnacle Estates Ltd,Rents Payable,1054,0,NON COMMERCIAL SUPPLIER
06-06-2022,Inclusive Economy & Housing,Pinnacle Estates Ltd,Rents Payable,1705,0,NON COMMERCIAL SUPPLIER
06-06-2022,Inclusive Economy & Housing,Pinnacle Estates Ltd,Rents Payable,775,0,NON COMMERCIAL SUPPLIER
06-06-2022,Inclusive Economy & Housing,Pinnacle Estates Ltd,Rents Payable,1660.98,0,NON COMMERCIAL SUPPLIER
06-06-2022,Inclusive Economy & Housing,Pinnacle Estates Ltd,Rents Payable,1771.65,0,NON COMMERCIAL SUPPLIER
06-06-2022,Inclusive Economy & Housing,Pinnacle Estates Ltd,Rents Payable,775,0,NON COMMERCIAL SUPPLIER
06-06-2022,Inclusive Economy & Housing,Pinnacle Estates Ltd,Rents Payable,1771.65,0,NON COMMERCIAL SUPPLIER
06-06-2022,Inclusive Economy & Housing,Pinnacle Estates Ltd,Rents Payable,1581,0,NON COMMERCIAL SUPPLIER
06-06-2022,Inclusive Economy & Housing,Pinnacle Estates Ltd,Rents Payable,775,0,NON COMMERCIAL SUPPLIER
06-06-2022,Inclusive Economy & Housing,My Housing Ltd,Rents Payable,1860,0,NON COMMERCIAL SUPPLIER
06-06-2022,Inclusive Economy & Housing,My Housing Ltd,Rents Payable,1705,0,NON COMMERCIAL SUPPLIER
06-06-2022,Inclusive Economy & Housing,My Housing Ltd,Rents Payable,1472.5,0,NON COMMERCIAL SUPPLIER
06-06-2022,Inclusive Economy & Housing,My Housing Ltd,Rents Payable,1705,0,NON COMMERCIAL SUPPLIER
06-06-2022,Inclusive Economy & Housing,My Housing Ltd,Rents Payable,1302,0,NON COMMERCIAL SUPPLIER
06-06-2022,Inclusive Economy & Housing,My Housing Ltd,Rents Payable,1705,0,NON COMMERCIAL SUPPLIER
06-06-2022,Inclusive Economy & Housing,My Housing Ltd,Rents Payable,1705,0,NON COMMERCIAL SUPPLIER
06-06-2022,Inclusive Economy & Housing,My Housing Ltd,Rents Payable,1705,0,NON COMMERCIAL SUPPLIER
06-06-2022,Inclusive Economy & Housing,My Housing Ltd,Rents Payable,1472.5,0,NON COMMERCIAL SUPPLIER
06-06-2022,Inclusive Economy & Housing,My Housing Ltd,Rents Payable,1705,0,NON COMMERCIAL SUPPLIER
06-06-2022,Inclusive Economy & Housing,My Housing Ltd,Rents Payable,1472.5,0,NON COMMERCIAL SUPPLIER
06-06-2022,Inclusive Economy & Housing,My Housing Ltd,Rents Payable,950,0,NON COMMERCIAL SUPPLIER
06-06-2022,Inclusive Economy & Housing,My Housing Ltd,Rents Payable,1472.5,0,NON COMMERCIAL SUPPLIER
06-06-2022,Inclusive Economy & Housing,My Housing Ltd,Rents Payable,1472.5,0,NON COMMERCIAL SUPPLIER
06-06-2022,Inclusive Economy & Housing,My Housing Ltd,Rents Payable,1472.5,0,NON COMMERCIAL SUPPLIER
06-06-2022,Inclusive Economy & Housing,My Housing Ltd,Rents Payable,1472.5,0,NON COMMERCIAL SUPPLIER
